Workbook

Sheet Elteq
XFB1: Option | XFC1: Sheet name | XFD1: Prod
... 2 more rows

Sheet ABTECH
A4: sheetname | B4: Objednávací kód | C4: Rozmery v mm D x Š x H | D4: Popis | E4: Balenie | F4: Cena za kus | G4: Cena za kus po zľave
A5: =REPLACE(CELL("Filename",$A$1),1,FIND("]",CELL("filename",$A$1)),"") -> ABTECH | D5: Hliníkové skrine
A6: =REPLACE(CELL("Filename",$A$1),1,FIND("]",CELL("filename",$A$1)),"") -> ABTECH | B6: ZAG 1 | C6: 50 x 45 x 30 | D6: =B6 -> ZAG 1 | E6: 1ks | F6: 7.822405528 | G6: =F6*(1-Elteq!$F$4) -> 7.822405528
A7: ABTECH | B7: ZAG 2 | C7: 58 x 64 x 34 | D7: =B7 -> ZAG 2 | E7: 1ks | F7: 9.545536101 | G7: =F7*(1-Elteq!$F$4) -> 9.545536101
A8: ABTECH | B8: ZAG 3 | C8: 98 x 64 x 34 | D8: ZAG 3 | E8: 1ks | F8: 10.8170091 | G8: =F8*(1-Elteq!$F$4) -> 10.8170091
A9: ABTECH | B9: ZAG 4 | C9: 150 x 64 x 36 | D9: ZAG 4 | E9: 1ks | F9: 14.41508792 | G9: =F9*(1-Elteq!$F$4) -> 14.41508792
A10: ABTECH | B10: ZAG 5 | C10: 75 x 80 x 57 | D10: ZAG 5 | E10: 1ks | F10: 13.85715797 | G10: =F10*(1-Elteq!$F$4) -> 13.85715797
A11: ABTECH | B11: ZAG 6 | C11: 125 x 80 x 57 | D11: ZAG 6 | E11: 1ks | F11: 16.98080657 | G11: =F11*(1-Elteq!$F$4) -> 16.98080657
A12: ABTECH | B12: ZAG 7 | C12: 175 x 80 x 57 | D12: ZAG 7 | E12: 1ks | F12: 19.78184261 | G12: =F12*(1-Elteq!$F$4) -> 19.78184261
A13: ABTECH | B13: ZAG 8 | C13: 250 x 80 x 54 | D13: ZAG 8 | E13: 1ks | F13: 33.40368319 | G13: =F13*(1-Elteq!$F$4) -> 33.40368319
A14: ABTECH | B14: ZAG 9 | C14: 122 x 120 x 80 | D14: ZAG 9 | E14: 1ks | F14: 31.37691727 | G14: =F14*(1-Elteq!$F$4) -> 31.37691727
A15: ABTECH | B15: ZAG 9.9 | C15: 122 x 120 x 90 | D15: ZAG 9.9 | E15: 1ks | F15: 33.94263592 | G15: =F15*(1-Elteq!$F$4) -> 33.94263592
A16: ABTECH | B16: ZAG 10 | C16: 220 x 120 x 80 | D16: ZAG 10 | E16: 1ks | F16: 36.3109916 | G16: =F16*(1-Elteq!$F$4) -> 36.3109916
A17: ABTECH | B17: ZAG 10.9 | C17: 220 x 120 x 90 | D17: ZAG 10.9 | E17: 1ks | F17: 42.75565176 | G17: =F17*(1-Elteq!$F$4) -> 42.75565176
A18: ABTECH | B18: ZAG 11 | C18: 160 x 160 x 90 | D18: ZAG 11 | E18: 1ks | F18: 41.48417876 | G18: =F18*(1-Elteq!$F$4) -> 41.48417876
A19: ABTECH | B19: ZAG 12 | C19: 260 x 160 x 90 | D19: ZAG 12 | E19: 1ks | F19: 53.09823063 | G19: =F19*(1-Elteq!$F$4) -> 53.09823063
A20: ABTECH | B20: ZAG 13 | C20: 360 x 160 x 90 | D20: ZAG 13 | E20: 1ks | F20: 65.06146316 | G20: =F20*(1-Elteq!$F$4) -> 65.06146316
A21: ABTECH | B21: ZAG 14 | C21: 560 x 160 x 90 | D21: ZAG 14 | E21: 1ks | F21: 111.5366479 | G21: =F21*(1-Elteq!$F$4) -> 111.5366479
A22: ABTECH | B22: ZAG 15 | C22: 200 x 230 x 110 | D22: ZAG 15 | E22: 1ks | F22: 85.20766817 | G22: =F22*(1-Elteq!$F$4) -> 85.20766817
A23: ABTECH | B23: ZAG 16 | C23: 330 x 230 x 110 | D23: ZAG 16 | E23: 1ks | F23: 113.8063221 | G23: =F23*(1-Elteq!$F$4) -> 113.8063221
A24: ABTECH | B24: ZAG 17 | C24: 330 x 230 x 180 | D24: ZAG 17 | E24: 1ks | F24: 171.3641968 | G24: =F24*(1-Elteq!$F$4) -> 171.3641968
A25: ABTECH | B25: ZAG 18 | C25: 400 x 230 x 110 | D25: ZAG 18 | E25: 1ks | F25: 173.0455775 | G25: =F25*(1-Elteq!$F$4) -> 173.0455775
A26: ABTECH | B26: ZAG 18.3 | C26: 400 x 310 x 110 | D26: ZAG 18.3 | E26: 1ks | F26: 230.1328175 | G26: =F26*(1-Elteq!$F$4) -> 230.1328175
A27: ABTECH | B27: ZAG 19 | C27: 420 x 240 x 210 | D27: ZAG 19 | E27: 1ks | F27: 332.6477002 | G27: =F27*(1-Elteq!$F$4) -> 332.6477002
A28: ABTECH | B28: ZAG 20 | C28: 600 x 230 x 110 | D28: ZAG 20 | E28: 1ks | F28: 223.2782496 | G28: =F28*(1-Elteq!$F$4) -> 223.2782496
A29: ABTECH | B29: ZAG 21 | C29: 360 x 120 x 80 | D29: ZAG 21 | E29: 1ks | F29: 63.03469724 | G29: =F29*(1-Elteq!$F$4) -> 63.03469724
A30: ABTECH | B30: ZAG 22 | C30: 280 x 230 x 110 | D30: ZAG 22 | E30: 1ks | F30: 107.7715696 | G30: =F30*(1-Elteq!$F$4) -> 107.7715696
A31: ABTECH | D31: Polyesterové skrine
A32: ABTECH | B32: BPG 1 | C32: 80 x 75 x 55 | D32: =B32 -> BPG 1 | E32: 1ks | F32: 15.68843207 | G32: =F32*(1-Elteq!$F$4) -> 15.68843207
A33: ABTECH | B33: BPG 1.5 | C33: 80 x 75 x 75 | D33: =B33 -> BPG 1.5 | E33: 1ks | F33: 20.86044264 | G33: =F33*(1-Elteq!$F$4) -> 20.86044264
A34: ABTECH | B34: BPG 2 | C34: 110 x 75 x 55 | D34: BPG 2 | E34: 1ks | F34: 17.41243559 | G34: =F34*(1-Elteq!$F$4) -> 17.41243559
A35: ABTECH | B35: BPG 2.5 | C35: 110 x 75 x 75 | D35: BPG 2.5 | E35: 1ks | F35: 20.25704141 | G35: =F35*(1-Elteq!$F$4) -> 20.25704141
A36: ABTECH | B36: BPG 3 | C36: 160 x 75 x 55 | D36: BPG 3 | E36: 1ks | F36: 19.52433991 | G36: =F36*(1-Elteq!$F$4) -> 19.52433991
A37: ABTECH | B37: BPG 3.5 | C37: 160 x 75 x 75 | D37: BPG 3.5 | E37: 1ks | F37: 23.01544705 | G37: =F37*(1-Elteq!$F$4) -> 23.01544705
A38: ABTECH | B38: BPG 4 | C38: 190 x 75 x 55 | D38: BPG 4 | E38: 1ks | F38: 20.98974291 | G38: =F38*(1-Elteq!$F$4) -> 20.98974291
A39: ABTECH | B39: BPG 4.5 | C39: 190 x 75 x 75 | D39: BPG 4.5 | E39: 1ks | F39: 23.10164722 | G39: =F39*(1-Elteq!$F$4) -> 23.10164722
A40: ABTECH | B40: BPG 5 | C40: 230 x 75 x 50 | D40: BPG 5 | E40: 1ks | F40: 22.02414502 | G40: =F40*(1-Elteq!$F$4) -> 22.02414502
A41: ABTECH | B41: BPG 6 | C41: 122 x 120 x 90 | D41: BPG 6 | E41: 1ks | F41: 28.53225832 | G41: =F41*(1-Elteq!$F$4) -> 28.53225832
A42: ABTECH | B42: BPG 7 | C42: 220 x 120 x 90 | D42: BPG 7 | E42: 1ks | F42: 34.73867101 | G42: =F42*(1-Elteq!$F$4) -> 34.73867101
A43: ABTECH | B43: BPG 8 | C43: 160 x 160 x 90 | D43: BPG 8 | E43: 1ks | F43: 40.34168246 | G43: =F43*(1-Elteq!$F$4) -> 40.34168246
A44: ABTECH | B44: BPG 9 | C44: 260 x 160 x 90 | D44: BPG 9 | E44: 1ks | F44: 50.08230237 | G44: =F44*(1-Elteq!$F$4) -> 50.08230237
A45: ABTECH | B45: BPG 10 | C45: 360 x 160 x 90 | D45: BPG 10 | E45: 1ks | F45: 62.6675281 | G45: =F45*(1-Elteq!$F$4) -> 62.6675281
A46: ABTECH | B46: BPG 11 | C46: 560 x 160 x 90 | D46: BPG 11 | E46: 1ks | F46: 99.21640281 | G46: =F46*(1-Elteq!$F$4) -> 99.21640281
A47: ABTECH | B47: BPG 12 | C47: 255 x 250 x 120 | D47: BPG 12 | E47: 1ks | F47: 82.75216915 | G47: =F47*(1-Elteq!$F$4) -> 82.75216915
A48: ABTECH | B48: BPG 13 | C48: 400 x 250 x 120 | D48: BPG 13 | E48: 1ks | F48: 118.2666417 | G48: =F48*(1-Elteq!$F$4) -> 118.2666417
A49: ABTECH | B49: BPG 13.5 | C49: 400 x 250 x 160 | D49: BPG 13.5 | E49: 1ks | F49: 225.78836 | G49: =F49*(1-Elteq!$F$4) -> 225.78836
A50: ABTECH | B50: BPG 14 | C50: 600 x 250 x 120 | D50: BPG 14 | E50: 1ks | F50: 211.6214326 | G50: =F50*(1-Elteq!$F$4) -> 211.6214326
A51: ABTECH | B51: BPG 15 | C51: 400 x 405 x 120 | D51: BPG 15 | E51: 1ks | F51: 140.0752863 | G51: =F51*(1-Elteq!$F$4) -> 140.0752863
A52: ABTECH | D52: Polycarbonátové skrine
A53: ABTECH | B53: ZP 1 | C53: 52 x 50 x 35 | D53: =B53 -> ZP 1 | E53: 1ks | F53: 4.525509251 | G53: =F53*(1-Elteq!$F$4) -> 4.525509251
A54: ABTECH | B54: ZP 2 | C54: 65 x 50 x 35 | D54: =B54 -> ZP 2 | E54: 1ks | F54: 6.292612863 | G54: =F54*(1-Elteq!$F$4) -> 6.292612863
A55: ABTECH | B55: ZP 3 | C55: 82 x 80 x 55 | D55: ZP 3 | E55: 1ks | F55: 8.921718237 | G55: =F55*(1-Elteq!$F$4) -> 8.921718237
A56: ABTECH | B56: ZP 4 | C56: 82 x 80 x 85 | D56: ZP 4 | E56: 1ks | F56: 10.5164215 | G56: =F56*(1-Elteq!$F$4) -> 10.5164215
A57: ABTECH | B57: ZP 5 | C57: 120 x 80 x 55 | D57: ZP 5 | E57: 1ks | F57: 10.25782097 | G57: =F57*(1-Elteq!$F$4) -> 10.25782097
A58: ABTECH | B58: ZP 6 | C58: 120 x 80 x 85 | D58: ZP 6 | E58: 1ks | F58: 11.89562432 | G58: =F58*(1-Elteq!$F$4) -> 11.89562432
A59: ABTECH | B59: ZP 7 | C59: 160 x 80 x 55 | D59: ZP 7 | E59: 1ks | F59: 11.63702379 | G59: =F59*(1-Elteq!$F$4) -> 11.63702379
A60: ABTECH | B60: ZP 8 | C60: 160 x 80 x 85 | D60: ZP 8 | E60: 1ks | F60: 12.93002643 | G60: =F60*(1-Elteq!$F$4) -> 12.93002643
A61: ABTECH | B61: ZP 9 | C61: 122 x 120 x 55 | D61: ZP 9 | E61: 1ks | F61: 12.84382625 | G61: =F61*(1-Elteq!$F$4) -> 12.84382625
A62: ABTECH | B62: ZP 10 | C62: 122 x 120 x 85 | D62: ZP 10 | E62: 1ks | F62: 14.56782978 | G62: =F62*(1-Elteq!$F$4) -> 14.56782978
A63: ABTECH | B63: ZP 11 | C63: 200 x 120 x 75 | D63: ZP 11 | E63: 1ks | F63: 18.53303788 | G63: =F63*(1-Elteq!$F$4) -> 18.53303788
A64: ABTECH | B64: ZP 11.9 Shr | C64: 200 x 120 x 90 | D64: ZP 11.9 Shr | E64: 1ks | F64: 20.47254185 | G64: =F64*(1-Elteq!$F$4) -> 20.47254185
A65: ABTECH | B65: ZP 12 | C65: 200 x 150 x 75 | D65: ZP 12 | E65: 1ks | F65: 20.42944176 | G65: =F65*(1-Elteq!$F$4) -> 20.42944176
A66: ABTECH | B66: ZP 13 | C66: 240 x 120 x 100 | D66: ZP 13 | E66: 1ks | F66: 21.3776437 | G66: =F66*(1-Elteq!$F$4) -> 21.3776437
A67: ABTECH | B67: ZP 14 | C67: 240 x 160 x 90 | D67: ZP 14 | E67: 1ks | F67: 23.1878474 | G67: =F67*(1-Elteq!$F$4) -> 23.1878474
A68: ABTECH | B68: ZP 15 | C68: 250 x 160 x 90 | D68: ZP 15 | E68: 1ks | F68: 24.04984916 | G68: =F68*(1-Elteq!$F$4) -> 24.04984916
A69: ABTECH | B69: ZP 16 | C69: 240 x 160 x 120 | D69: ZP 16 | E69: 1ks | F69: 29.82526097 | G69: =F69*(1-Elteq!$F$4) -> 29.82526097
A70: =REPLACE(CELL("Filename",$A$1),1,FIND("]",CELL("filename",$A$1)),"") -> ABTECH | B70: ZP 17 | C70: 300 x 230 x 85 | D70: ZP 17 | E70: 1ks | F70: 38.79007929 | G70: =F70*(1-Elteq!$F$4) -> 38.79007929
A71: ABTECH | B71: ZP 18 | C71: 360 x 200 x 150 | D71: ZP 18 | E71: 1ks | F71: 61.07282484 | G71: =F71*(1-Elteq!$F$4) -> 61.07282484
A72: ABTECH | B72: ZP 19 | C72: 300 x 230 x 110 | D72: ZP 19 | E72: 1ks | F72: 44.5654911 | G72: =F72*(1-Elteq!$F$4) -> 44.5654911
A73: ABTECH | B73: ZP 21 Shr | C73: 98 x 64 x 36 | D73: ZP 21 Shr | E73: 1ks | F73: 10.55952158 | G73: =F73*(1-Elteq!$F$4) -> 10.55952158
A74: ABTECH | B74: ZP 22 Shr | C74: 160 x 120 x 90 | D74: ZP 22 Shr | E74: 1ks | F74: 19.48123982 | G74: =F74*(1-Elteq!$F$4) -> 19.48123982
A75: ABTECH | B75: ZP 24 Shr | C75: 122 x 120 x 105 | D75: ZP 24 Shr | E75: 1ks | F75: 18.102037 | G75: =F75*(1-Elteq!$F$4) -> 18.102037
A76: ABTECH | B76: ZP 25 Shr | C76: 250 x 160 x 120 | D76: ZP 25 Shr | E76: 1ks | F76: 32.5836666 | G76: =F76*(1-Elteq!$F$4) -> 32.5836666
A77: ABTECH | B77: ZP 26 Shr | C77: 340 x 150 x 100 | D77: ZP 26 Shr | E77: 1ks | F77: 40.08308193 | G77: =F77*(1-Elteq!$F$4) -> 40.08308193
A78: ABTECH | D78: ABS skrine
A79: ABTECH | B79: ZPS 1 | C79: 52 x 50 x 35 | D79: =B79 -> ZPS 1 | E79: 1ks | F79: 3.706558 | G79: =F79*(1-Elteq!$F$4) -> 3.706558
A80: ABTECH | B80: ZPS 2 | C80: 65 x 50 x 35 | D80: =B80 -> ZPS 2 | E80: 1ks | F80: 5.344410925 | G80: =F80*(1-Elteq!$F$4) -> 5.344410925
A81: ABTECH | B81: ZPS 3 | C81: 82 x 80 x 55 | D81: ZPS 3 | E81: 1ks | F81: 7.327014977 | G81: =F81*(1-Elteq!$F$4) -> 7.327014977
A82: ABTECH | B82: ZPS 4 | C82: 82 x 80 x 85 | D82: ZPS 4 | E82: 1ks | F82: 8.576917532 | G82: =F82*(1-Elteq!$F$4) -> 8.576917532
A83: ABTECH | B83: ZPS 5 | C83: 120 x 80 x 55 | D83: ZPS 5 | E83: 1ks | F83: 8.490717356 | G83: =F83*(1-Elteq!$F$4) -> 8.490717356
A84: ABTECH | B84: ZPS 6 | C84: 120 x 80 x 85 | D84: ZPS 6 | E84: 1ks | F84: 9.611319647 | G84: =F84*(1-Elteq!$F$4) -> 9.611319647
A85: ABTECH | B85: ZPS 7 | C85: 160 x 80 x 55 | D85: ZPS 7 | E85: 1ks | F85: 9.697519823 | G85: =F85*(1-Elteq!$F$4) -> 9.697519823
A86: ABTECH | B86: ZPS 8 | C86: 160 x 80 x 85 | D86: ZPS 8 | E86: 1ks | F86: 10.64572176 | G86: =F86*(1-Elteq!$F$4) -> 10.64572176
A87: ABTECH | B87: ZPS 9 | C87: 122 x 120 x 55 | D87: ZPS 9 | E87: 1ks | F87: 10.17162079 | G87: =F87*(1-Elteq!$F$4) -> 10.17162079
A88: ABTECH | B88: ZPS 10 | C88: 122 x 120 x 85 | D88: ZPS 10 | E88: 1ks | F88: 11.80942414 | G88: =F88*(1-Elteq!$F$4) -> 11.80942414
A89: ABTECH | B89: ZPS 11 | C89: 200 x 120 x 75 | D89: ZPS 11 | E89: 1ks | F89: 14.65402995 | G89: =F89*(1-Elteq!$F$4) -> 14.65402995
A90: ABTECH | B90: ZPS 11.9 Shr | C90: 200 x 120 x 90 | D90: ZPS 11.9 Shr | E90: 1ks | F90: 17.15383506 | G90: =F90*(1-Elteq!$F$4) -> 17.15383506
A91: ABTECH | B91: ZPS 12 | C91: 200 x 150 x 75 | D91: ZPS 12 | E91: 1ks | F91: 17.49863577 | G91: =F91*(1-Elteq!$F$4) -> 17.49863577
A92: ABTECH | B92: ZPS 13 | C92: 240 x 120 x 100 | D92: ZPS 13 | E92: 1ks | F92: 18.18823718 | G92: =F92*(1-Elteq!$F$4) -> 18.18823718
A93: ABTECH | B93: ZPS 14 | C93: 240 x 160 x 90 | D93: ZPS 14 | E93: 1ks | F93: 18.61923806 | G93: =F93*(1-Elteq!$F$4) -> 18.61923806
A94: ABTECH | B94: ZPS 15 | C94: 250 x 160 x 90 | D94: ZPS 15 | E94: 1ks | F94: 19.73984035 | G94: =F94*(1-Elteq!$F$4) -> 19.73984035
A95: ABTECH | B95: ZPS 16 | C95: 240 x 160 x 120 | D95: ZPS 16 | E95: 1ks | F95: 24.39464987 | G95: =F95*(1-Elteq!$F$4) -> 24.39464987
A96: ABTECH | B96: ZPS 17 | C96: 300 x 230 x 85 | D96: ZPS 17 | E96: 1ks | F96: 34.65247083 | G96: =F96*(1-Elteq!$F$4) -> 34.65247083
A97: ABTECH | B97: ZPS 18 | C97: 360 x 200 x 150 | D97: ZPS 18 | E97: 1ks | F97: 42.84148757 | G97: =F97*(1-Elteq!$F$4) -> 42.84148757
A98: ABTECH | B98: ZPS 19 | C98: 300 x 230 x 110 | D98: ZPS 19 | E98: 1ks | F98: 39.13488 | G98: =F98*(1-Elteq!$F$4) -> 39.13488
A99: ABTECH | B99: ZPS 21 Shr | C99: 98 x 64 x 36 | D99: ZPS 21 Shr | E99: 1ks | F99: 7.154614625 | G99: =F99*(1-Elteq!$F$4) -> 7.154614625
A100: ABTECH | B100: ZPS 22 Shr | C100: 160 x 120 x 90 | D100: ZPS 22 Shr | E100: 1ks | F100: 17.67103612 | G100: =F100*(1-Elteq!$F$4) -> 17.67103612
A101: ABTECH | B101: ZPS 24 Shr | C101: 122 x 120 x 105 | D101: ZPS 24 Shr | E101: 1ks | F101: 15.68843207 | G101: =F101*(1-Elteq!$F$4) -> 15.68843207
A102: ABTECH | B102: ZPS 25 Shr | C102: 250 x 160 x 120 | D102: ZPS 25 Shr | E102: 1ks | F102: 28.35985797 | G102: =F102*(1-Elteq!$F$4) -> 28.35985797
A103: ABTECH | B103: ZPS 26 Shr | C103: 340 x 150 x 100 | D103: ZPS 26 Shr | E103: 1ks | F103: 35.25587207 | G103: =F103*(1-Elteq!$F$4) -> 35.25587207
A104: ABTECH | D104: Hliníkové skrině EX
A105: ABTECH | B105: ZAG-EX 2 | C105: 58 x 64 x 34 | D105: =B105 -> ZAG-EX 2 | E105: 1ks | F105: 16.93833462 | G105: =F105*(1-Elteq!$F$4) -> 16.93833462
A106: ABTECH | B106: ZAG-EX 3 | C106: 98 x 64 x 34 | D106: =B106 -> ZAG-EX 3 | E106: 1ks | F106: 18.27443735 | G106: =F106*(1-Elteq!$F$4) -> 18.27443735
A107: ABTECH | B107: ZAG-EX 4 | C107: 150 x 64 x 36 | D107: ZAG-EX 4 | E107: 1ks | F107: 21.24834343 | G107: =F107*(1-Elteq!$F$4) -> 21.24834343
A108: ABTECH | B108: ZAG-EX 5 | C108: 75 x 80 x 57 | D108: ZAG-EX 5 | E108: 1ks | F108: 20.3001415 | G108: =F108*(1-Elteq!$F$4) -> 20.3001415
A109: ABTECH | B109: ZAG-EX 6 | C109: 125 x 80 x 57 | D109: ZAG-EX 6 | E109: 1ks | F109: 24.04984916 | G109: =F109*(1-Elteq!$F$4) -> 24.04984916
A110: ABTECH | B110: ZAG-EX 7 | C110: 175 x 80 x 57 | D110: ZAG-EX 7 | E110: 1ks | F110: 26.46345409 | G110: =F110*(1-Elteq!$F$4) -> 26.46345409
A111: ABTECH | B111: ZAG-EX 9 | C111: 122 x 120 x 80 | D111: ZAG-EX 9 | E111: 1ks | F111: 42.7552874 | G111: =F111*(1-Elteq!$F$4) -> 42.7552874
A112: ABTECH | B112: ZAG-EX 9.9 | C112: 122 x 120 x 90 | D112: ZAG-EX 9.9 | E112: 1ks | F112: 62.15432 | G112: =F112*(1-Elteq!$F$4) -> 62.15432
A113: ABTECH | B113: ZAG-EX 10 | C113: 220 x 120 x 80 | D113: ZAG-EX 10 | E113: 1ks | F113: 47.88419788 | G113: =F113*(1-Elteq!$F$4) -> 47.88419788
A114: ABTECH | B114: ZAG-EX 10.9 | C114: 220 x 120 x 90 | D114: ZAG-EX 10.9 | E114: 1ks | F114: 69.59916 | G114: =F114*(1-Elteq!$F$4) -> 69.59916
A115: ABTECH | B115: ZAG-EX 11 | C115: 160 x 160 x 90 | D115: ZAG-EX 11 | E115: 1ks | F115: 50.64260352 | G115: =F115*(1-Elteq!$F$4) -> 50.64260352
A116: ABTECH | B116: ZAG-EX 12 | C116: 260 x 160 x 90 | D116: ZAG-EX 12 | E116: 1ks | F116: 58.14201885 | G116: =F116*(1-Elteq!$F$4) -> 58.14201885
A117: ABTECH | B117: ZAG-EX 13 | C117: 360 x 160 x 90 | D117: ZAG-EX 13 | E117: 1ks | F117: 70.2531436 | G117: =F117*(1-Elteq!$F$4) -> 70.2531436
A118: ABTECH | B118: ZAG-EX 15 | C118: 200 x 230 x 110 | D118: ZAG-EX 15 | E118: 1ks | F118: 81.54536669 | G118: =F118*(1-Elteq!$F$4) -> 81.54536669
A119: ABTECH | B119: ZAG-EX 16 | C119: 330 x 230 x 110 | D119: ZAG-EX 16 | E119: 1ks | F119: 113.6980324 | G119: =F119*(1-Elteq!$F$4) -> 113.6980324
A120: ABTECH | D120: Polyesterové skrine EX
A121: ABTECH | B121: BPG-EX 1 | C121: 80 x 75 x 55 | D121: =B121 -> BPG-EX 1 | E121: 1ks | F121: 23.96364898 | G121: =F121*(1-Elteq!$F$4) -> 23.96364898
A122: ABTECH | B122: BPG-EX 2 | C122: 110 x 75 x 55 | D122: =B122 -> BPG-EX 2 | E122: 1ks | F122: 25.86005286 | G122: =F122*(1-Elteq!$F$4) -> 25.86005286
A123: ABTECH | B123: BPG-EX 3 | C123: 160 x 75 x 55 | D123: BPG-EX 3 | E123: 1ks | F123: 27.97195718 | G123: =F123*(1-Elteq!$F$4) -> 27.97195718
A124: ABTECH | B124: BPG-EX 4 | C124: 190 x 75 x 55 | D124: BPG-EX 4 | E124: 1ks | F124: 29.65286061 | G124: =F124*(1-Elteq!$F$4) -> 29.65286061
A125: ABTECH | B125: BPG-EX 4.5 | C125: 190 x 75 x 75 | D125: BPG-EX 4.5 | E125: 1ks | F125: 30.34246202 | G125: =F125*(1-Elteq!$F$4) -> 30.34246202
A126: ABTECH | B126: BPG-EX 5 | C126: 230 x 75 x 50 | D126: BPG-EX 5 | E126: 1ks | F126: 30.73036282 | G126: =F126*(1-Elteq!$F$4) -> 30.73036282
A127: ABTECH | B127: BPG-EX 6 | C127: 122 x 120 x 90 | D127: BPG-EX 6 | E127: 1ks | F127: 38.01427771 | G127: =F127*(1-Elteq!$F$4) -> 38.01427771
A128: ABTECH | B128: BPG-EX 7 | C128: 220 x 120 x 90 | D128: BPG-EX 7 | E128: 1ks | F128: 44.5654911 | G128: =F128*(1-Elteq!$F$4) -> 44.5654911
A129: ABTECH | B129: BPG-EX 8 | C129: 160 x 160 x 90 | D129: BPG-EX 8 | E129: 1ks | F129: 50.85810396 | G129: =F129*(1-Elteq!$F$4) -> 50.85810396
A130: ABTECH | B130: BPG-EX 9 | C130: 260 x 160 x 90 | D130: BPG-EX 9 | E130: 1ks | F130: 82.66986 | G130: =F130*(1-Elteq!$F$4) -> 82.66986
A131: ABTECH | B131: BPG-EX 10 | C131: 360 x 160 x 90 | D131: BPG-EX 10 | E131: 1ks | F131: 74.82175294 | G131: =F131*(1-Elteq!$F$4) -> 74.82175294
A132: ABTECH | B132: BPG-EX 11 | C132: 560 x 160 x 90 | D132: BPG-EX 11 | E132: 1ks | F132: 113.8273327 | G132: =F132*(1-Elteq!$F$4) -> 113.8273327
A133: ABTECH | B133: BPG-EX 12 | C133: 255 x 250 x 120 | D133: BPG-EX 12 | E133: 1ks | F133: 93.95819206 | G133: =F133*(1-Elteq!$F$4) -> 93.95819206
A134: =REPLACE(CELL("Filename",$A$1),1,FIND("]",CELL("filename",$A$1)),"") -> ABTECH | B134: BPG-EX 13 | C134: 400 x 250 x 120 | D134: BPG-EX 13 | E134: 1ks | F134: 136.4548789 | G134: =F134*(1-Elteq!$F$4) -> 136.4548789
A135: ABTECH | B135: BPG-EX 13.5 | C135: 400 x 250 x 160 | D135: BPG-EX 13.5 | E135: 1ks | F135: 255.05272 | G135: =F135*(1-Elteq!$F$4) -> 255.05272
A136: ABTECH | B136: BPG-EX 14 | C136: 600 x 250 x 120 | D136: BPG-EX 14 | E136: 1ks | F136: 229.2924687 | G136: =F136*(1-Elteq!$F$4) -> 229.2924687
A137: ABTECH | B137: BPG-EX 15 | C137: 400 x 405 x 120 | D137: BPG-EX 15 | E137: 1ks | F137: 158.3497237 | G137: =F137*(1-Elteq!$F$4) -> 158.3497237

Sheet ANAMET-M
A4: sheetname | B4: Objednávací kód | C4: Rozmer | D4: Popis | E4: Počet ks alebo m (malé balenie) | F4: Cena za ks alebo m (malé balenie) | G4: Cena po zľave za ks alebo m (malé balenie)
A5: =REPLACE(CELL("Filename",$A$1),1,FIND("]",CELL("filename",$A$1)),"") -> ANAMET-M | B5: 2560120 | C5: M12 x 1,5 | D5: Multiflex fittings for FCEN, Straight fixed with male thread, IP 40 | E5: 1 | F5: 2.387609337 | G5: =F5*(1-Elteq!$F$5) -> 2.387609337
A6: =REPLACE(CELL("Filename",$A$1),1,FIND("]",CELL("filename",$A$1)),"") -> ANAMET-M | B6: 2560150 | C6: M16 x 1,5 | D6: Multiflex fittings for FCEN, Straight fixed with male thread, IP 40 | E6: 1 | F6: 2.387609337 | G6: =F6*(1-Elteq!$F$5) -> 2.387609337
A7: ANAMET-M | B7: 2560160 | C7: M16 x 1,5 | D7: Multiflex fittings for FCEN, Straight fixed with male thread, IP 40 | E7: 1 | F7: 2.731350759 | G7: =F7*(1-Elteq!$F$5) -> 2.731350759
A8: ANAMET-M | B8: 2560170 | C8: M20 x 1,5 | D8: Multiflex fittings for FCEN, Straight fixed with male thread, IP 40 | E8: 1 | F8: 2.972898785 | G8: =F8*(1-Elteq!$F$5) -> 2.972898785
A9: ANAMET-M | B9: 2560200 | C9: M20 x 1,5 | D9: Multiflex fittings for FCEN, Straight fixed with male thread, IP 40 | E9: 1 | F9: 3.558188233 | G9: =F9*(1-Elteq!$F$5) -> 3.558188233
A10: ANAMET-M | B10: 2560250 | C10: M25 x 1,5 | D10: Multiflex fittings for FCEN, Straight fixed with male thread, IP 40 | E10: 1 | F10: 5.174701948 | G10: =F10*(1-Elteq!$F$5) -> 5.174701948
A11: ANAMET-M | B11: 2560320 | C11: M32 x 1,5 | D11: Multiflex fittings for FCEN, Straight fixed with male thread, IP 40 | E11: 1 | F11: 9.011599442 | G11: =F11*(1-Elteq!$F$5) -> 9.011599442
A12: ANAMET-M | B12: 2561120 | C12: M12 x 1,5 | D12: Multiflex fittings for FCEN, Straight fixed with male thread, IP 40 | E12: 1 | F12: 3.065801872 | G12: =F12*(1-Elteq!$F$5) -> 3.065801872
A13: ANAMET-M | B13: 2561150 | C13: M16 x 1,5 | D13: Multiflex fittings for FCEN, Straight swivel with male thread, IP 40 | E13: 1 | F13: 3.214446811 | G13: =F13*(1-Elteq!$F$5) -> 3.214446811
A14: ANAMET-M | B14: 2561160 | C14: M16 x 1,5 | D14: Multiflex fittings for FCEN, Straight swivel with male thread, IP 40 | E14: 1 | F14: 3.22373712 | G14: =F14*(1-Elteq!$F$5) -> 3.22373712
A15: ANAMET-M | B15: 2561170 | C15: M20 x 1,5 | D15: Multiflex fittings for FCEN, Straight swivel with male thread, IP 40 | E15: 1 | F15: 3.669671938 | G15: =F15*(1-Elteq!$F$5) -> 3.669671938
A16: ANAMET-M | B16: 2561200 | C16: M20 x 1,5 | D16: Multiflex fittings for FCEN, Straight swivel with male thread, IP 40 | E16: 1 | F16: 4.412896634 | G16: =F16*(1-Elteq!$F$5) -> 4.412896634
A17: ANAMET-M | B17: 2561250 | C17: M25 x 1,5 | D17: Multiflex fittings for FCEN, Straight swivel with male thread, IP 40 | E17: 1 | F17: 6.623990106 | G17: =F17*(1-Elteq!$F$5) -> 6.623990106
A18: ANAMET-M | B18: 2561320 | C18: M32 x 1,5 | D18: Multiflex fittings for FCEN, Straight swivel with male thread, IP 40 | E18: 1 | F18: 11.71507928 | G18: =F18*(1-Elteq!$F$5) -> 11.71507928
A19: ANAMET-M | B19: 2641120 | C19: - | D19: Multiflex fittings for FCEN, End cap, IP 40 | E19: 1 | F19: 1.523610627 | G19: =F19*(1-Elteq!$F$5) -> 1.523610627
A20: ANAMET-M | B20: 2641160 | C20: - | D20: Multiflex fittings for FCEN, End cap, IP 40 | E20: 1 | F20: 1.904513284 | G20: =F20*(1-Elteq!$F$5) -> 1.904513284
A21: ANAMET-M | B21: 2641200 | C21: - | D21: Multiflex fittings for FCEN, End cap, IP 40 | E21: 1 | F21: 2.359738411 | G21: =F21*(1-Elteq!$F$5) -> 2.359738411
A22: ANAMET-M | B22: 2641250 | C22: - | D22: Multiflex fittings for FCEN, End cap, IP 40 | E22: 1 | F22: 3.288769281 | G22: =F22*(1-Elteq!$F$5) -> 3.288769281
A23: ANAMET-M | B23: 2641320 | C23: - | D23: Multiflex fittings for FCEN, End cap, IP 40 | E23: 1 | F23: 4.895992687 | G23: =F23*(1-Elteq!$F$5) -> 4.895992687
A24: ANAMET-M | B24: 7120143 | C24: M20 x 1,5 | D24: Multiflex fittings for FCEN, Straight fixed with male thread, IP 40 | E24: 1 | F24: 5.667088309 | G24: =F24*(1-Elteq!$F$5) -> 5.667088309
A25: ANAMET-M | B25: 7120153 | C25: M16 x 1,5 | D25: Multiflex fittings for FCEN, Straight fixed with male thread, IP 40 | E25: 1 | F25: 5.360508122 | G25: =F25*(1-Elteq!$F$5) -> 5.360508122
A26: ANAMET-M | B26: 7120163 | C26: M16 x 1,5 | D26: Multiflex fittings for FCEN, Straight fixed with male thread, IP 40 | E26: 1 | F26: 4.357154782 | G26: =F26*(1-Elteq!$F$5) -> 4.357154782
A27: ANAMET-M | B27: 7120173 | C27: M20 x 1,5 | D27: Multiflex fittings for FCEN, Straight fixed with male thread, IP 40 | E27: 1 | F27: 4.663734969 | G27: =F27*(1-Elteq!$F$5) -> 4.663734969
A28: ANAMET-M | B28: 7120203 | C28: M20 x 1,5 | D28: Multiflex fittings for FCEN, Straight fixed with male thread, IP 40 | E28: 1 | F28: 4.979605465 | G28: =F28*(1-Elteq!$F$5) -> 4.979605465
A29: ANAMET-M | B29: 7120253 | C29: M25 x 1,5 | D29: Multiflex fittings for FCEN, Straight fixed with male thread, IP 40 | E29: 1 | F29: 7.395085728 | G29: =F29*(1-Elteq!$F$5) -> 7.395085728
A30: ANAMET-M | B30: 7120323 | C30: M32 x 1,5 | D30: Multiflex fittings for FCEN, Straight fixed with male thread, IP 40 | E30: 1 | F30: 12.33752996 | G30: =F30*(1-Elteq!$F$5) -> 12.33752996
A31: ANAMET-M | B31: 8127153 | C31: M16 x 1,5 | D31: Multiflex fittings for FCEN, Straight cablehose male thread, IP 68 | E31: 1 | F31: 12.92281941 | G31: =F31*(1-Elteq!$F$5) -> 12.92281941
A32: ANAMET-M | B32: 8127163 | C32: M16 x 1,5 | D32: Multiflex fittings for FCEN, Straight cablehose male thread, IP 68 | E32: 1 | F32: 15.38475121 | G32: =F32*(1-Elteq!$F$5) -> 15.38475121
A33: ANAMET-M | B33: 8127173 | C33: M20 x 1,5 | D33: Multiflex fittings for FCEN, Straight cablehose male thread, IP 68 | E33: 1 | F33: 13.03430311 | G33: =F33*(1-Elteq!$F$5) -> 13.03430311
A34: ANAMET-M | B34: 8127203 | C34: M20 x 1,5 | D34: Multiflex fittings for FCEN, Straight cablehose male thread, IP 68 | E34: 1 | F34: 17.59584468 | G34: =F34*(1-Elteq!$F$5) -> 17.59584468
A35: ANAMET-M | B35: 8127253 | C35: M25 x 1,5 | D35: Multiflex fittings for FCEN, Straight cablehose male thread, IP 68 | E35: 1 | F35: 24.56357621 | G35: =F35*(1-Elteq!$F$5) -> 24.56357621
A36: ANAMET-M | B36: 8127323 | C36: M32 x 1,5 | D36: Multiflex fittings for FCEN, Straight cablehose male thread, IP 68 | E36: 1 | F36: 61.87345596 | G36: =F36*(1-Elteq!$F$5) -> 61.87345596
A37: ANAMET-M | B37: 8130153 | C37: M16 x 1,5 | D37: Multiflex fittings for FCEN, Straight swivel with male thread, IP 40 | E37: 1 | F37: 9.513276112 | G37: =F37*(1-Elteq!$F$5) -> 9.513276112
A38: ANAMET-M | B38: 8130163 | C38: M16 x 1,5 | D38: Multiflex fittings for FCEN, Straight swivel with male thread, IP 40 | E38: 1 | F38: 8.872244812 | G38: =F38*(1-Elteq!$F$5) -> 8.872244812
A39: ANAMET-M | B39: 8130203 | C39: M20 x 1,5 | D39: Multiflex fittings for FCEN, Straight swivel with male thread, IP 40 | E39: 1 | F39: 10.05211402 | G39: =F39*(1-Elteq!$F$5) -> 10.05211402
A40: ANAMET-M | B40: 8130253 | C40: M25 x 1,5 | D40: Multiflex fittings for FCEN, Straight swivel with male thread, IP 40 | E40: 1 | F40: 13.16436743 | G40: =F40*(1-Elteq!$F$5) -> 13.16436743
A41: ANAMET-M | B41: 8130323 | C41: M32 x 1,5 | D41: Multiflex fittings for FCEN, Straight swivel with male thread, IP 40 | E41: 1 | F41: 22.37106336 | G41: =F41*(1-Elteq!$F$5) -> 22.37106336
A42: ANAMET-M | B42: 8171120 | C42: - | D42: Multiflex fittings for FCEN, Connection set for FCEN | E42: 1 | F42: 0.8918696355 | G42: =F42*(1-Elteq!$F$5) -> 0.8918696355
A43: ANAMET-M | B43: 8171160 | C43: - | D43: Multiflex fittings for FCEN, Connection set for FCEN | E43: 1 | F43: 1.00335334 | G43: =F43*(1-Elteq!$F$5) -> 1.00335334
A44: ANAMET-M | B44: 8171200 | C44: - | D44: Multiflex fittings for FCEN, Connection set for FCEN | E44: 1 | F44: 1.114837044 | G44: =F44*(1-Elteq!$F$5) -> 1.114837044
A45: ANAMET-M | B45: 8171250 | C45: - | D45: Multiflex fittings for FCEN, Connection set for FCEN | E45: 1 | F45: 1.393546306 | G45: =F45*(1-Elteq!$F$5) -> 1.393546306
A46: ANAMET-M | B46: 8171320 | C46: - | D46: Multiflex fittings for FCEN, Connection set for FCEN | E46: 1 | F46: 2.787092611 | G46: =F46*(1-Elteq!$F$5) -> 2.787092611
A47: ANAMET-M | B47: 7100116 | C47: PG 11 | D47: Multiflex fittings for SL / SLI, Straight fixed with male thread, IP 40 | E47: 1 | F47: 4.412896634 | G47: =F47*(1-Elteq!$F$5) -> 4.412896634
A48: ANAMET-M | B48: 7100136 | C48: PG 13,5 | D48: Multiflex fittings for SL / SLI, Straight fixed with male thread, IP 40 | E48: 1 | F48: 4.422186943 | G48: =F48*(1-Elteq!$F$5) -> 4.422186943
A49: ANAMET-M | B49: 7100166 | C49: PG 16 | D49: Multiflex fittings for SL / SLI, Straight fixed with male thread, IP 40 | E49: 1 | F49: 5.146831022 | G49: =F49*(1-Elteq!$F$5) -> 5.146831022
A50: ANAMET-M | B50: 7100216 | C50: PG 21 | D50: Multiflex fittings for SL / SLI, Straight fixed with male thread, IP 40 | E50: 1 | F50: 7.515859741 | G50: =F50*(1-Elteq!$F$5) -> 7.515859741
A51: ANAMET-M | B51: 7100296 | C51: PG 29 | D51: Multiflex fittings for SL / SLI, Straight fixed with male thread, IP 40 | E51: 1 | F51: 12.74630354 | G51: =F51*(1-Elteq!$F$5) -> 12.74630354
A52: ANAMET-M | B52: 7100366 | C52: PG 36 | D52: Multiflex fittings for SL / SLI, Straight fixed with male thread, IP 40 | E52: 1 | F52: 19.78835754 | G52: =F52*(1-Elteq!$F$5) -> 19.78835754
A53: ANAMET-M | B53: 7120146 | C53: M20 x 1,5 | D53: Multiflex fittings for SL / SLI, Straight fixed with male thread, IP 40 | E53: 1 | F53: 4.775218674 | G53: =F53*(1-Elteq!$F$5) -> 4.775218674
A54: ANAMET-M | B54: 7120156 | C54: M16 x 1,5 | D54: Multiflex fittings for SL / SLI, Straight fixed with male thread, IP 40 | E54: 1 | F54: 4.468638486 | G54: =F54*(1-Elteq!$F$5) -> 4.468638486
A55: ANAMET-M | B55: 7120166 | C55: M16 x 1,5 | D55: Multiflex fittings for SL / SLI, Straight fixed with male thread, IP 40 | E55: 1 | F55: 4.357154782 | G55: =F55*(1-Elteq!$F$5) -> 4.357154782
A56: ANAMET-M | B56: 7120176 | C56: M20 x 1,5 | D56: Multiflex fittings for SL / SLI, Straight fixed with male thread, IP 40 | E56: 1 | F56: 4.663734969 | G56: =F56*(1-Elteq!$F$5) -> 4.663734969
A57: ANAMET-M | B57: 7120206 | C57: M20 x 1,5 | D57: Multiflex fittings for SL / SLI, Straight fixed with male thread, IP 40 | E57: 1 | F57: 4.979605465 | G57: =F57*(1-Elteq!$F$5) -> 4.979605465
A58: ANAMET-M | B58: 7120256 | C58: M25 x 1,5 | D58: Multiflex fittings for SL / SLI, Straight fixed with male thread, IP 40 | E58: 1 | F58: 7.395085728 | G58: =F58*(1-Elteq!$F$5) -> 7.395085728
A59: ANAMET-M | B59: 7120326 | C59: M32 x 1,5 | D59: Multiflex fittings for SL / SLI, Straight fixed with male thread, IP 40 | E59: 1 | F59: 12.33752996 | G59: =F59*(1-Elteq!$F$5) -> 12.33752996
A60: ANAMET-M | B60: 7120406 | C60: M40 x 1,5 | D60: Multiflex fittings for SL / SLI, Straight fixed with male thread, IP 40 | E60: 1 | F60: 19.6397126 | G60: =F60*(1-Elteq!$F$5) -> 19.6397126
A61: ANAMET-M | B61: 7129146 | C61: M20 x 1,5 | D61: Multiflex fittings for SL / SLI, 90° elbow fixed with male thread, IP 40 | E61: 1 | F61: 9.095212221 | G61: =F61*(1-Elteq!$F$5) -> 9.095212221
A62: ANAMET-M | B62: 7129156 | C62: M16 x 1,5 | D62: Multiflex fittings for SL / SLI, 90° elbow fixed with male thread, IP 40 | E62: 1 | F62: 7.23715048 | G62: =F62*(1-Elteq!$F$5) -> 7.23715048
A63: ANAMET-M | B63: 7129166 | C63: M16 x 1,5 | D63: Multiflex fittings for SL / SLI, 90° elbow fixed with male thread, IP 40 | E63: 1 | F63: 7.032763689 | G63: =F63*(1-Elteq!$F$5) -> 7.032763689
A64: ANAMET-M | B64: 7129176 | C64: M20 x 1,5 | D64: Multiflex fittings for SL / SLI, 90° elbow fixed with male thread, IP 40 | E64: 1 | F64: 8.091858881 | G64: =F64*(1-Elteq!$F$5) -> 8.091858881
A65: ANAMET-M | B65: 7129206 | C65: M20 x 1,5 | D65: Multiflex fittings for SL / SLI, 90° elbow fixed with male thread, IP 40 | E65: 1 | F65: 8.305535981 | G65: =F65*(1-Elteq!$F$5) -> 8.305535981
A66: ANAMET-M | B66: 7129256 | C66: M25 x 1,5 | D66: Multiflex fittings for SL / SLI, 90° elbow fixed with male thread, IP 40 | E66: 1 | F66: 12.76488416 | G66: =F66*(1-Elteq!$F$5) -> 12.76488416
A67: ANAMET-M | B67: 7129326 | C67: M32 x 1,5 | D67: Multiflex fittings for SL / SLI, 90° elbow fixed with male thread, IP 40 | E67: 1 | F67: 23.4859004 | G67: =F67*(1-Elteq!$F$5) -> 23.4859004
A68: ANAMET-M | B68: 7129406 | C68: M40 x 1,5 | D68: Multiflex fittings for SL / SLI, 90° elbow fixed with male thread, IP 40 | E68: 1 | F68: 37.45852469 | G68: =F68*(1-Elteq!$F$5) -> 37.45852469
A69: ANAMET-M | B69: 8130156 | C69: M16 x 1,5 | D69: Multiflex fittings for SL / SLI, Straight swivel with male thread, IP 40 | E69: 1 | F69: 9.503985804 | G69: =F69*(1-Elteq!$F$5) -> 9.503985804
A70: =REPLACE(CELL("Filename",$A$1),1,FIND("]",CELL("filename",$A$1)),"") -> ANAMET-M | B70: 8130166 | C70: M16 x 1,5 | D70: Multiflex fittings for SL / SLI, Straight swivel with male thread, IP 40 | E70: 1 | F70: 8.872244812 | G70: =F70*(1-Elteq!$F$5) -> 8.872244812
A71: ANAMET-M | B71: 8130206 | C71: M20 x 1,5 | D71: Multiflex fittings for SL / SLI, Straight swivel with male thread, IP 40 | E71: 1 | F71: 10.05211402 | G71: =F71*(1-Elteq!$F$5) -> 10.05211402
A72: ANAMET-M | B72: 8130256 | C72: M25 x 1,5 | D72: Multiflex fittings for SL / SLI, Straight swivel with male thread, IP 40 | E72: 1 | F72: 17.62371561 | G72: =F72*(1-Elteq!$F$5) -> 17.62371561
A73: ANAMET-M | B73: 8130326 | C73: M32 x 1,5 | D73: Multiflex fittings for SL / SLI, Straight swivel with male thread, IP 40 | E73: 1 | F73: 22.37106336 | G73: =F73*(1-Elteq!$F$5) -> 22.37106336
A74: ANAMET-M | B74: 8130406 | C74: M40 x 1,5 | D74: Multiflex fittings for SL / SLI, Straight swivel with male thread, IP 40 | E74: 1 | F74: 26.84899215 | G74: =F74*(1-Elteq!$F$5) -> 26.84899215
A75: ANAMET-M | B75: 8139156 | C75: M16 x 1,5 | D75: Multiflex fittings for SL / SLI, 90° elbow swivel with male thread, IP 40 | E75: 1 | F75: 16.56462042 | G75: =F75*(1-Elteq!$F$5) -> 16.56462042
A76: ANAMET-M | B76: 8139166 | C76: M16 x 1,5 | D76: Multiflex fittings for SL / SLI, 90° elbow swivel with male thread, IP 40 | E76: 1 | F76: 14.82733269 | G76: =F76*(1-Elteq!$F$5) -> 14.82733269
A77: ANAMET-M | B77: 8139206 | C77: M20 x 1,5 | D77: Multiflex fittings for SL / SLI, 90° elbow swivel with male thread, IP 40 | E77: 1 | F77: 19.01726192 | G77: =F77*(1-Elteq!$F$5) -> 19.01726192
A78: ANAMET-M | B78: 8139256 | C78: M20 x 1,5 | D78: Multiflex fittings for SL / SLI, 90° elbow swivel with male thread, IP 40 | E78: 1 | F78: 30.14705174 | G78: =F78*(1-Elteq!$F$5) -> 30.14705174
A79: ANAMET-M | B79: 8139326 | C79: M25 x 1,5 | D79: Multiflex fittings for SL / SLI, 90° elbow swivel with male thread, IP 40 | E79: 1 | F79: 49.07141057 | G79: =F79*(1-Elteq!$F$5) -> 49.07141057
A80: ANAMET-M | B80: 8172106 | C80: M32 x 1,5 | D80: Multiflex fittings for SL / SLI, Connection ring SL / SLI | E80: 1 | F80: 0.8918696355 | G80: =F80*(1-Elteq!$F$5) -> 0.8918696355
A81: ANAMET-M | B81: 8172136 | C81: - | D81: Multiflex fittings for SL / SLI, Connection ring SL / SLI | E81: 1 | F81: 1.00335334 | G81: =F81*(1-Elteq!$F$5) -> 1.00335334
A82: ANAMET-M | B82: 8172166 | C82: - | D82: Multiflex fittings for SL / SLI, Connection ring SL / SLI | E82: 1 | F82: 1.114837044 | G82: =F82*(1-Elteq!$F$5) -> 1.114837044
A83: ANAMET-M | B83: 8172206 | C83: - | D83: Multiflex fittings for SL / SLI, Connection ring SL / SLI | E83: 1 | F83: 1.393546306 | G83: =F83*(1-Elteq!$F$5) -> 1.393546306
A84: ANAMET-M | B84: 8172266 | C84: - | D84: Multiflex fittings for SL / SLI, Connection ring SL / SLI | E84: 1 | F84: 2.787092611 | G84: =F84*(1-Elteq!$F$5) -> 2.787092611
A85: ANAMET-M | B85: 8172356 | C85: - | D85: Multiflex fittings for SL / SLI, Connection ring SL / SLI | E85: 1 | F85: 4.236380769 | G85: =F85*(1-Elteq!$F$5) -> 4.236380769
A86: ANAMET-M | B86: 7109116 | C86: PG 11 | D86: Multiflex fittings for SL / SLI, 90° elbow fixed with male thread, IP 40 | E86: 1 | F86: 7.283602024 | G86: =F86*(1-Elteq!$F$5) -> 7.283602024
A87: ANAMET-M | B87: 7109136 | C87: PG 13,5 | D87: Multiflex fittings for SL / SLI, 90° elbow fixed with male thread, IP 40 | E87: 1 | F87: 7.478698506 | G87: =F87*(1-Elteq!$F$5) -> 7.478698506
A88: ANAMET-M | B88: 7109166 | C88: PG 16 | D88: Multiflex fittings for SL / SLI, 90° elbow fixed with male thread, IP 40 | E88: 1 | F88: 8.788632033 | G88: =F88*(1-Elteq!$F$5) -> 8.788632033
A89: ANAMET-M | B89: 7109216 | C89: PG 21 | D89: Multiflex fittings for SL / SLI, 90° elbow fixed with male thread, IP 40 | E89: 1 | F89: 12.63481984 | G89: =F89*(1-Elteq!$F$5) -> 12.63481984
A90: ANAMET-M | B90: 7109296 | C90: PG 29 | D90: Multiflex fittings for SL / SLI, 90° elbow fixed with male thread, IP 40 | E90: 1 | F90: 23.78319028 | G90: =F90*(1-Elteq!$F$5) -> 23.78319028
A91: ANAMET-M | B91: 7109366 | C91: PG 36 | D91: Multiflex fittings for SL / SLI, 90° elbow fixed with male thread, IP 40 | E91: 1 | F91: 37.45852469 | G91: =F91*(1-Elteq!$F$5) -> 37.45852469
A92: ANAMET-M | B92: 7140126 | C92: NPT 1/2" | D92: Multiflex fittings for SL / SLI, Straight fixed with male thread, IP 40 | E92: 1 | F92: 4.533670647 | G92: =F92*(1-Elteq!$F$5) -> 4.533670647
A93: ANAMET-M | B93: 7140166 | C93: NPT 1/2" | D93: Multiflex fittings for SL / SLI, Straight fixed with male thread, IP 40 | E93: 1 | F93: 5.165411639 | G93: =F93*(1-Elteq!$F$5) -> 5.165411639
A94: ANAMET-M | B94: 7140206 | C94: NPT 3/4" | D94: Multiflex fittings for SL / SLI, Straight fixed with male thread, IP 40 | E94: 1 | F94: 7.069924923 | G94: =F94*(1-Elteq!$F$5) -> 7.069924923
A95: ANAMET-M | B95: 7140266 | C95: NPT 1" | D95: Multiflex fittings for SL / SLI, Straight fixed with male thread, IP 40 | E95: 1 | F95: 12.76488416 | G95: =F95*(1-Elteq!$F$5) -> 12.76488416
A96: ANAMET-M | B96: 7140356 | C96: NPT 1.1/4" | D96: Multiflex fittings for SL / SLI, Straight fixed with male thread, IP 40 | E96: 1 | F96: 20.46655007 | G96: =F96*(1-Elteq!$F$5) -> 20.46655007
A97: ANAMET-M | B97: 7149126 | C97: NPT 1/2" | D97: Multiflex fittings for SL / SLI, 90° elbow fixed with male thread, IP 40 | E97: 1 | F97: 7.571601593 | G97: =F97*(1-Elteq!$F$5) -> 7.571601593
A98: ANAMET-M | B98: 7149166 | C98: NPT 1/2" | D98: Multiflex fittings for SL / SLI, 90° elbow fixed with male thread, IP 40 | E98: 1 | F98: 8.927986664 | G98: =F98*(1-Elteq!$F$5) -> 8.927986664
A99: ANAMET-M | B99: 7149206 | C99: NPT 3/4" | D99: Multiflex fittings for SL / SLI, 90° elbow fixed with male thread, IP 40 | E99: 1 | F99: 12.56049737 | G99: =F99*(1-Elteq!$F$5) -> 12.56049737
A100: ANAMET-M | B100: 7149266 | C100: NPT 1" | D100: Multiflex fittings for SL / SLI, 90° elbow fixed with male thread, IP 40 | E100: 1 | F100: 23.4859004 | G100: =F100*(1-Elteq!$F$5) -> 23.4859004
A101: ANAMET-M | B101: 7149356 | C101: NPT 1.1/4" | D101: Multiflex fittings for SL / SLI, 90° elbow fixed with male thread, IP 40 | E101: 1 | F101: 37.45852469 | G101: =F101*(1-Elteq!$F$5) -> 37.45852469
A102: ANAMET-M | B102: 7840106 | C102: - | D102: Multiflex fittings for SL / SLI, Conduit connector, IP 40 | E102: 1 | F102: 8.305535981 | G102: =F102*(1-Elteq!$F$5) -> 8.305535981
A103: ANAMET-M | B103: 7840126 | C103: - | D103: Multiflex fittings for SL / SLI, Conduit connector, IP 40 | E103: 1 | F103: 7.190698936 | G103: =F103*(1-Elteq!$F$5) -> 7.190698936
A104: ANAMET-M | B104: 7840166 | C104: - | D104: Multiflex fittings for SL / SLI, Conduit connector, IP 40 | E104: 1 | F104: 8.639987094 | G104: =F104*(1-Elteq!$F$5) -> 8.639987094
A105: ANAMET-M | B105: 7840206 | C105: - | D105: Multiflex fittings for SL / SLI, Conduit connector, IP 40 | E105: 1 | F105: 12.70914231 | G105: =F105*(1-Elteq!$F$5) -> 12.70914231
A106: ANAMET-M | B106: 7840266 | C106: - | D106: Multiflex fittings for SL / SLI, Conduit connector, IP 40 | E106: 1 | F106: 23.08641713 | G106: =F106*(1-Elteq!$F$5) -> 23.08641713
A107: ANAMET-M | B107: 7840356 | C107: - | D107: Multiflex fittings for SL / SLI, Conduit connector, IP 40 | E107: 1 | F107: 31.47556589 | G107: =F107*(1-Elteq!$F$5) -> 31.47556589
A108: ANAMET-M | B108: 8100096 | C108: PG 9 | D108: Multiflex fittings for SL / SLI, Straight fixed with male thread, IP 40 | E108: 1 | F108: 6.131603744 | G108: =F108*(1-Elteq!$F$5) -> 6.131603744
A109: ANAMET-M | B109: 8100106 | C109: PG 9 | D109: Multiflex fittings for SL / SLI, Straight fixed with male thread, IP 40 | E109: 1 | F109: 8.342697216 | G109: =F109*(1-Elteq!$F$5) -> 8.342697216
A110: ANAMET-M | B110: 8100116 | C110: PG 11 | D110: Multiflex fittings for SL / SLI, Straight fixed with male thread, IP 40 | E110: 1 | F110: 8.491342155 | G110: =F110*(1-Elteq!$F$5) -> 8.491342155
A111: ANAMET-M | B111: 8100126 | C111: PG 11 | D111: Multiflex fittings for SL / SLI, Straight fixed with male thread, IP 40 | E111: 1 | F111: 7.16282801 | G111: =F111*(1-Elteq!$F$5) -> 7.16282801
A112: ANAMET-M | B112: 8100136 | C112: PG 13,5 | D112: Multiflex fittings for SL / SLI, Straight fixed with male thread, IP 40 | E112: 1 | F112: 8.491342155 | G112: =F112*(1-Elteq!$F$5) -> 8.491342155
A113: ANAMET-M | B113: 8100166 | C113: PG 16 | D113: Multiflex fittings for SL / SLI, Straight fixed with male thread, IP 40 | E113: 1 | F113: 9.290308703 | G113: =F113*(1-Elteq!$F$5) -> 9.290308703
A114: ANAMET-M | B114: 8100216 | C114: PG 21 | D114: Multiflex fittings for SL / SLI, Straight fixed with male thread, IP 40 | E114: 1 | F114: 12.1703044 | G114: =F114*(1-Elteq!$F$5) -> 12.1703044
A115: ANAMET-M | B115: 8100296 | C115: PG 29 | D115: Multiflex fittings for SL / SLI, Straight fixed with male thread, IP 40 | E115: 1 | F115: 20.43867915 | G115: =F115*(1-Elteq!$F$5) -> 20.43867915
A116: ANAMET-M | B116: 8100366 | C116: PG 36 | D116: Multiflex fittings for SL / SLI, Straight fixed with male thread, IP 40 | E116: 1 | F116: 25.64125202 | G116: =F116*(1-Elteq!$F$5) -> 25.64125202
A117: ANAMET-M | B117: 8103116 | C117: PG 11 | D117: Multiflex fittings for SL / SLI, Straight fixed with female thread, IP 40 | E117: 1 | F117: 9.215986234 | G117: =F117*(1-Elteq!$F$5) -> 9.215986234
A118: ANAMET-M | B118: 8103126 | C118: PG 11 | D118: Multiflex fittings for SL / SLI, Straight fixed with female thread, IP 40 | E118: 1 | F118: 8.082568572 | G118: =F118*(1-Elteq!$F$5) -> 8.082568572
A119: ANAMET-M | B119: 8103136 | C119: PG 13,5 | D119: Multiflex fittings for SL / SLI, Straight fixed with female thread, IP 40 | E119: 1 | F119: 9.215986234 | G119: =F119*(1-Elteq!$F$5) -> 9.215986234
A120: ANAMET-M | B120: 8103146 | C120: PG 13,5 | D120: Multiflex fittings for SL / SLI, Straight fixed with female thread, IP 40 | E120: 1 | F120: 8.082568572 | G120: =F120*(1-Elteq!$F$5) -> 8.082568572
A121: ANAMET-M | B121: 8103166 | C121: PG 16 | D121: Multiflex fittings for SL / SLI, Straight fixed with female thread, IP 40 | E121: 1 | F121: 9.661921052 | G121: =F121*(1-Elteq!$F$5) -> 9.661921052
A122: ANAMET-M | B122: 8103216 | C122: PG 21 | D122: Multiflex fittings for SL / SLI, Straight fixed with female thread, IP 40 | E122: 1 | F122: 13.65675379 | G122: =F122*(1-Elteq!$F$5) -> 13.65675379
A123: ANAMET-M | B123: 8103296 | C123: PG 29 | D123: Multiflex fittings for SL / SLI, Straight fixed with female thread, IP 40 | E123: 1 | F123: 19.97416371 | G123: =F123*(1-Elteq!$F$5) -> 19.97416371
A124: ANAMET-M | B124: 8103366 | C124: PG 36 | D124: Multiflex fittings for SL / SLI, Straight fixed with female thread, IP 40 | E124: 1 | F124: 32.84124127 | G124: =F124*(1-Elteq!$F$5) -> 32.84124127
A125: ANAMET-M | B125: 8107096 | C125: PG 9 | D125: Multiflex fittings for SL / SLI, Straight cablehose male thread, IP 68 | E125: 1 | F125: 14.47430096 | G125: =F125*(1-Elteq!$F$5) -> 14.47430096
A126: ANAMET-M | B126: 8107116 | C126: PG 11 | D126: Multiflex fittings for SL / SLI, Straight cablehose male thread, IP 68 | E126: 1 | F126: 15.4776543 | G126: =F126*(1-Elteq!$F$5) -> 15.4776543
A127: ANAMET-M | B127: 8107126 | C127: PG 9 | D127: Multiflex fittings for SL / SLI, Straight cablehose male thread, IP 68 | E127: 1 | F127: 15.4776543 | G127: =F127*(1-Elteq!$F$5) -> 15.4776543
A128: ANAMET-M | B128: 8107146 | C128: PG 11 | D128: Multiflex fittings for SL / SLI, Straight cablehose male thread, IP 68 | E128: 1 | F128: 14.34423664 | G128: =F128*(1-Elteq!$F$5) -> 14.34423664
A129: ANAMET-M | B129: 8107156 | C129: PG 13,5 | D129: Multiflex fittings for SL / SLI, Straight cablehose male thread, IP 68 | E129: 1 | F129: 17.35429666 | G129: =F129*(1-Elteq!$F$5) -> 17.35429666
A130: ANAMET-M | B130: 8107166 | C130: PG 16 | D130: Multiflex fittings for SL / SLI, Straight cablehose male thread, IP 68 | E130: 1 | F130: 21.01467829 | G130: =F130*(1-Elteq!$F$5) -> 21.01467829
A131: ANAMET-M | B131: 8107216 | C131: PG 21 | D131: Multiflex fittings for SL / SLI, Straight cablehose male thread, IP 68 | E131: 1 | F131: 32.20020997 | G131: =F131*(1-Elteq!$F$5) -> 32.20020997
A132: ANAMET-M | B132: 8107296 | C132: PG 29 | D132: Multiflex fittings for SL / SLI, Straight cablehose male thread, IP 68 | E132: 1 | F132: 48.43966958 | G132: =F132*(1-Elteq!$F$5) -> 48.43966958
A133: ANAMET-M | B133: 8120146 | C133: M20 x 1,5 | D133: Multiflex fittings for SL / SLI, Straight fixed with male thread, IP 40 | E133: 1 | F133: 7.729536841 | G133: =F133*(1-Elteq!$F$5) -> 7.729536841
A134: =REPLACE(CELL("Filename",$A$1),1,FIND("]",CELL("filename",$A$1)),"") -> ANAMET-M | B134: 8120156 | C134: M16 x 1,5 | D134: Multiflex fittings for SL / SLI, Straight fixed with male thread, IP 40 | E134: 1 | F134: 5.871475101 | G134: =F134*(1-Elteq!$F$5) -> 5.871475101
A135: ANAMET-M | B135: 8120166 | C135: M16 x 1,5 | D135: Multiflex fittings for SL / SLI, Straight fixed with male thread, IP 40 | E135: 1 | F135: 8.036117028 | G135: =F135*(1-Elteq!$F$5) -> 8.036117028
A136: ANAMET-M | B136: 8120176 | C136: M20 x 1,5 | D136: Multiflex fittings for SL / SLI, Straight fixed with male thread, IP 40 | E136: 1 | F136: 8.379858451 | G136: =F136*(1-Elteq!$F$5) -> 8.379858451
A137: ANAMET-M | B137: 8120206 | C137: M20 x 1,5 | D137: Multiflex fittings for SL / SLI, Straight fixed with male thread, IP 40 | E137: 1 | F137: 8.379858451 | G137: =F137*(1-Elteq!$F$5) -> 8.379858451
A138: ANAMET-M | B138: 8120256 | C138: M25 x 1,5 | D138: Multiflex fittings for SL / SLI, Straight fixed with male thread, IP 40 | E138: 1 | F138: 11.72436958 | G138: =F138*(1-Elteq!$F$5) -> 11.72436958
A139: ANAMET-M | B139: 8120326 | C139: M32 x 1,5 | D139: Multiflex fittings for SL / SLI, Straight fixed with male thread, IP 40 | E139: 1 | F139: 19.04513284 | G139: =F139*(1-Elteq!$F$5) -> 19.04513284
A140: ANAMET-M | B140: 8120406 | C140: M40 x 1,5 | D140: Multiflex fittings for SL / SLI, Straight fixed with male thread, IP 40 | E140: 1 | F140: 25.64125202 | G140: =F140*(1-Elteq!$F$5) -> 25.64125202
A141: ANAMET-M | B141: 8123156 | C141: M16 x 1,5 | D141: Multiflex fittings for SL / SLI, Straight fixed with female thread, IP 40 | E141: 1 | F141: 7.81314962 | G141: =F141*(1-Elteq!$F$5) -> 7.81314962
A142: ANAMET-M | B142: 8123166 | C142: M16 x 1,5 | D142: Multiflex fittings for SL / SLI, Straight fixed with female thread, IP 40 | E142: 1 | F142: 8.95585759 | G142: =F142*(1-Elteq!$F$5) -> 8.95585759
A143: ANAMET-M | B143: 8123206 | C143: M20 x 1,5 | D143: Multiflex fittings for SL / SLI, Straight fixed with female thread, IP 40 | E143: 1 | F143: 9.364631173 | G143: =F143*(1-Elteq!$F$5) -> 9.364631173
A144: ANAMET-M | B144: 8123256 | C144: M25 x 1,5 | D144: Multiflex fittings for SL / SLI, Straight fixed with female thread, IP 40 | E144: 1 | F144: 13.17365774 | G144: =F144*(1-Elteq!$F$5) -> 13.17365774
A145: ANAMET-M | B145: 8123326 | C145: M32 x 1,5 | D145: Multiflex fittings for SL / SLI, Straight fixed with female thread, IP 40 | E145: 1 | F145: 19.26810025 | G145: =F145*(1-Elteq!$F$5) -> 19.26810025
A146: ANAMET-M | B146: 8123406 | C146: M40 x 1,5 | D146: Multiflex fittings for SL / SLI, Straight fixed with female thread, IP 40 | E146: 1 | F146: 32.84124127 | G146: =F146*(1-Elteq!$F$5) -> 32.84124127
A147: ANAMET-M | B147: 8127156 | C147: M16 x 1,5 | D147: Multiflex fittings for SL / SLI, Straight cablehose male thread, IP 68 | E147: 1 | F147: 12.9135291 | G147: =F147*(1-Elteq!$F$5) -> 12.9135291
A148: ANAMET-M | B148: 8127166 | C148: M16 x 1,5 | D148: Multiflex fittings for SL / SLI, Straight cablehose male thread, IP 68 | E148: 1 | F148: 15.4776543 | G148: =F148*(1-Elteq!$F$5) -> 15.4776543
A149: ANAMET-M | B149: 8127176 | C149: M20 x 1,5 | D149: Multiflex fittings for SL / SLI, Straight cablehose male thread, IP 68 | E149: 1 | F149: 15.4776543 | G149: =F149*(1-Elteq!$F$5) -> 15.4776543
A150: ANAMET-M | B150: 8127206 | C150: M20 x 1,5 | D150: Multiflex fittings for SL / SLI, Straight cablehose male thread, IP 68 | E150: 1 | F150: 17.35429666 | G150: =F150*(1-Elteq!$F$5) -> 17.35429666
A151: ANAMET-M | B151: 8127256 | C151: M25 x 1,5 | D151: Multiflex fittings for SL / SLI, Straight cablehose male thread, IP 68 | E151: 1 | F151: 27.62937808 | G151: =F151*(1-Elteq!$F$5) -> 27.62937808
A152: ANAMET-M | B152: 8127326 | C152: M32 x 1,5 | D152: Multiflex fittings for SL / SLI, Straight cablehose male thread, IP 68 | E152: 1 | F152: 65.88686932 | G152: =F152*(1-Elteq!$F$5) -> 65.88686932
A153: ANAMET-M | B153: 8127406 | C153: M40 x 1,5 | D153: Multiflex fittings for SL / SLI, Straight cablehose male thread, IP 68 | E153: 1 | F153: 82.15419986 | G153: =F153*(1-Elteq!$F$5) -> 82.15419986
A154: ANAMET-M | B154: 8172106 | C154: M32 x 1,5 | D154: Multiflex fittings for SL / SLI, Connection ring SL / SLI | E154: 1 | F154: 0.8918696355 | G154: =F154*(1-Elteq!$F$5) -> 0.8918696355
A155: ANAMET-M | B155: 8172356 | C155: - | D155: Multiflex fittings for SL / SLI, Connection ring SL / SLI | E155: 1 | F155: 4.236380769 | G155: =F155*(1-Elteq!$F$5) -> 4.236380769
A156: ANAMET-M | B156: 8173126 | C156: - | D156: Multiflex fittings for SL / SLI, Connection set for SL / SLI | E156: 1 | F156: 3.455994838 | G156: =F156*(1-Elteq!$F$5) -> 3.455994838
A157: ANAMET-M | B157: 8173166 | C157: - | D157: Multiflex fittings for SL / SLI, Connection set for SL / SLI | E157: 1 | F157: 3.455994838 | G157: =F157*(1-Elteq!$F$5) -> 3.455994838
A158: ANAMET-M | B158: 8173206 | C158: - | D158: Multiflex fittings for SL / SLI, Connection set for SL / SLI | E158: 1 | F158: 4.459348178 | G158: =F158*(1-Elteq!$F$5) -> 4.459348178
A159: ANAMET-M | B159: 8173266 | C159: - | D159: Multiflex fittings for SL / SLI, Connection set for SL / SLI | E159: 1 | F159: 6.800505971 | G159: =F159*(1-Elteq!$F$5) -> 6.800505971
A160: ANAMET-M | B160: 8172106 | C160: M32 x 1,5 | D160: Multiflex fittings for SL / SLI, Connection ring SL / SLI | E160: 1 | F160: 0.8918696355 | G160: =F160*(1-Elteq!$F$5) -> 0.8918696355
A161: ANAMET-M | B161: 8172136 | C161: - | D161: Multiflex fittings for SL / SLI, Connection ring SL / SLI | E161: 1 | F161: 1.00335334 | G161: =F161*(1-Elteq!$F$5) -> 1.00335334
A162: ANAMET-M | B162: 8172166 | C162: - | D162: Multiflex fittings for SL / SLI, Connection ring SL / SLI | E162: 1 | F162: 1.114837044 | G162: =F162*(1-Elteq!$F$5) -> 1.114837044
A163: ANAMET-M | B163: 8172206 | C163: - | D163: Multiflex fittings for SL / SLI, Connection ring SL / SLI | E163: 1 | F163: 1.393546306 | G163: =F163*(1-Elteq!$F$5) -> 1.393546306
A164: ANAMET-M | B164: 8172266 | C164: - | D164: Multiflex fittings for SL / SLI, Connection ring SL / SLI | E164: 1 | F164: 2.787092611 | G164: =F164*(1-Elteq!$F$5) -> 2.787092611
A165: ANAMET-M | B165: 8172356 | C165: - | D165: Multiflex fittings for SL / SLI, Connection ring SL / SLI | E165: 1 | F165: 4.236380769 | G165: =F165*(1-Elteq!$F$5) -> 4.236380769
A166: ANAMET-M | B166: 7120169-6 | C166: M16 x 1,5 | D166: Stainless steel 304 fittings SLI, Straight fixed with male thread, IP 40 | E166: 1 | F166: 18.97081037 | G166: =F166*(1-Elteq!$F$5) -> 18.97081037
A167: ANAMET-M | B167: 7120179-6 | C167: M20 x 1,5 | D167: Stainless steel 304 fittings SLI, Straight fixed with male thread, IP 40 | E167: 1 | F167: 25.31609122 | G167: =F167*(1-Elteq!$F$5) -> 25.31609122
A168: ANAMET-M | B168: 7120209-6 | C168: M20 x 1,5 | D168: Stainless steel 304 fittings SLI, Straight fixed with male thread, IP 40 | E168: 1 | F168: 25.42757492 | G168: =F168*(1-Elteq!$F$5) -> 25.42757492
A169: ANAMET-M | B169: 7120259-6 | C169: M25 x 1,5 | D169: Stainless steel 304 fittings SLI, Straight fixed with male thread, IP 40 | E169: 1 | F169: 30.33285792 | G169: =F169*(1-Elteq!$F$5) -> 30.33285792
A170: ANAMET-M | B170: 7120329-6 | C170: M32 x 1,5 | D170: Stainless steel 304 fittings SLI, Straight fixed with male thread, IP 40 | E170: 1 | F170: 38.852071 | G170: =F170*(1-Elteq!$F$5) -> 38.852071
A171: ANAMET-M | B171: 7120409-6 | C171: M40 x 1,5 | D171: Stainless steel 304 fittings SLI, Straight fixed with male thread, IP 40 | E171: 1 | F171: 57.50701087 | G171: =F171*(1-Elteq!$F$5) -> 57.50701087
A172: ANAMET-M | B172: 7129169-6 | C172: M16 x 1,5 | D172: Stainless steel 304 fittings SLI, 90° elbow fixed with male thread, IP 40 | E172: 1 | F172: 37.23555728 | G172: =F172*(1-Elteq!$F$5) -> 37.23555728
A173: ANAMET-M | B173: 7129179-6 | C173: M20 x 1,5 | D173: Stainless steel 304 fittings SLI, 90° elbow fixed with male thread, IP 40 | E173: 1 | F173: 38.35039433 | G173: =F173*(1-Elteq!$F$5) -> 38.35039433
A174: ANAMET-M | B174: 7129209-6 | C174: M20 x 1,5 | D174: Stainless steel 304 fittings SLI, 90° elbow fixed with male thread, IP 40 | E174: 1 | F174: 42.25232398 | G174: =F174*(1-Elteq!$F$5) -> 42.25232398
A175: ANAMET-M | B175: 7129259-6 | C175: M25 x 1,5 | D175: Stainless steel 304 fittings SLI, 90° elbow fixed with male thread, IP 40 | E175: 1 | F175: 54.34830592 | G175: =F175*(1-Elteq!$F$5) -> 54.34830592
A176: ANAMET-M | B176: 7129329-6 | C176: M32 x 1,5 | D176: Stainless steel 304 fittings SLI, 90° elbow fixed with male thread, IP 40 | E176: 1 | F176: 82.27497388 | G176: =F176*(1-Elteq!$F$5) -> 82.27497388
A177: ANAMET-M | B177: 7129409-6 | C177: M40 x 1,5 | D177: Stainless steel 304 fittings SLI, 90° elbow fixed with male thread, IP 40 | E177: 1 | F177: 106.2439703 | G177: =F177*(1-Elteq!$F$5) -> 106.2439703
A178: ANAMET-M | B178: 7140129-6 | C178: NPT 1/2" | D178: Stainless steel 304 fittings SLI, Straight fixed with male thread, IP 40 | E178: 1 | F178: 18.97081037 | G178: =F178*(1-Elteq!$F$5) -> 18.97081037
A179: ANAMET-M | B179: 7140169-6 | C179: NPT 1/2" | D179: Stainless steel 304 fittings SLI, Straight fixed with male thread, IP 40 | E179: 1 | F179: 25.42757492 | G179: =F179*(1-Elteq!$F$5) -> 25.42757492
A180: ANAMET-M | B180: 7140209-6 | C180: NPT 3/4" | D180: Stainless steel 304 fittings SLI, Straight fixed with male thread, IP 40 | E180: 1 | F180: 30.33285792 | G180: =F180*(1-Elteq!$F$5) -> 30.33285792
A181: ANAMET-M | B181: 7140269-6 | C181: NPT 1" | D181: Stainless steel 304 fittings SLI, Straight fixed with male thread, IP 40 | E181: 1 | F181: 38.852071 | G181: =F181*(1-Elteq!$F$5) -> 38.852071
A182: ANAMET-M | B182: 7140359-6 | C182: NPT 1.1/4" | D182: Stainless steel 304 fittings SLI, Straight fixed with male thread, IP 40 | E182: 1 | F182: 57.50701087 | G182: =F182*(1-Elteq!$F$5) -> 57.50701087
A183: ANAMET-M | B183: 7149129-6 | C183: NPT 1/2" | D183: Stainless steel 304 fittings SLI, 90° elbow fixed with male thread, IP 40 | E183: 1 | F183: 37.23555728 | G183: =F183*(1-Elteq!$F$5) -> 37.23555728
A184: ANAMET-M | B184: 7149169-6 | C184: NPT 1/2" | D184: Stainless steel 304 fittings SLI, 90° elbow fixed with male thread, IP 40 | E184: 1 | F184: 42.25232398 | G184: =F184*(1-Elteq!$F$5) -> 42.25232398
A185: ANAMET-M | B185: 7149209-6 | C185: NPT 3/4" | D185: Stainless steel 304 fittings SLI, 90° elbow fixed with male thread, IP 40 | E185: 1 | F185: 54.34830592 | G185: =F185*(1-Elteq!$F$5) -> 54.34830592
A186: ANAMET-M | B186: 7149269-6 | C186: NPT 1" | D186: Stainless steel 304 fittings SLI, 90° elbow fixed with male thread, IP 40 | E186: 1 | F186: 82.27497388 | G186: =F186*(1-Elteq!$F$5) -> 82.27497388
A187: ANAMET-M | B187: 7149359-6 | C187: NPT 1.1/4" | D187: Stainless steel 304 fittings SLI, 90° elbow fixed with male thread, IP 40 | E187: 1 | F187: 106.2439703 | G187: =F187*(1-Elteq!$F$5) -> 106.2439703
A188: ANAMET-M | B188: 2605070 | C188: PG 7 | D188: Multiflex fittings for SLI - CAP, Straight fixed with male thread, IP 40 | E188: 1 | F188: 5.174701948 | G188: =F188*(1-Elteq!$F$5) -> 5.174701948
A189: ANAMET-M | B189: 2605090 | C189: PG 9 | D189: Multiflex fittings for SLI - CAP, Straight fixed with male thread, IP 40 | E189: 1 | F189: 5.527733679 | G189: =F189*(1-Elteq!$F$5) -> 5.527733679
A190: ANAMET-M | B190: 2605120 | C190: M12 x 1,5 | D190: Multiflex fittings for SLI - CAP, Straight fixed with male thread, IP 40 | E190: 1 | F190: 5.527733679 | G190: =F190*(1-Elteq!$F$5) -> 5.527733679
A191: ANAMET-M | B191: 2605130 | C191: M16 x 1,5 | D191: Multiflex fittings for SLI - CAP, Straight fixed with male thread, IP 40 | E191: 1 | F191: 4.812379908 | G191: =F191*(1-Elteq!$F$5) -> 4.812379908
A192: ANAMET-M | B192: 2615070 | C192: PG 7 | D192: Multiflex fittings for SLI - CAP, Straight swivel with male thread, IP 40 | E192: 1 | F192: 5.94579757 | G192: =F192*(1-Elteq!$F$5) -> 5.94579757
A193: ANAMET-M | B193: 2615090 | C193: PG 9 | D193: Multiflex fittings for SLI - CAP, Straight swivel with male thread, IP 40 | E193: 1 | F193: 7.357924493 | G193: =F193*(1-Elteq!$F$5) -> 7.357924493
A194: ANAMET-M | B194: 2615120 | C194: M12 x 1,5 | D194: Multiflex fittings for SLI - CAP, Straight swivel with male thread, IP 40 | E194: 1 | F194: 7.859601163 | G194: =F194*(1-Elteq!$F$5) -> 7.859601163
A195: ANAMET-M | B195: 2615130 | C195: M16 x 1,5 | D195: Multiflex fittings for SLI - CAP, Straight swivel with male thread, IP 40 | E195: 1 | F195: 6.856247823 | G195: =F195*(1-Elteq!$F$5) -> 6.856247823
A196: ANAMET-M | B196: 8100072 | C196: PG 7 | D196: Multiflex fittings for SLI - CAP, Straight fixed with male thread, IP 40 | E196: 1 | F196: 5.239734109 | G196: =F196*(1-Elteq!$F$5) -> 5.239734109
A197: ANAMET-M | B197: 8100092 | C197: PG 9 | D197: Multiflex fittings for SLI - CAP, Straight fixed with male thread, IP 40 | E197: 1 | F197: 5.239734109 | G197: =F197*(1-Elteq!$F$5) -> 5.239734109
A198: =REPLACE(CELL("Filename",$A$1),1,FIND("]",CELL("filename",$A$1)),"") -> ANAMET-M | B198: 8120112 | C198: M12 x 1,5 | D198: Multiflex fittings for SLI - CAP, Straight fixed with male thread, IP 40 | E198: 1 | F198: 5.406959665 | G198: =F198*(1-Elteq!$F$5) -> 5.406959665
A199: ANAMET-M | B199: 8120122 | C199: M12 x 1,5 | D199: Multiflex fittings for SLI - CAP, Straight fixed with male thread, IP 40 | E199: 1 | F199: 5.239734109 | G199: =F199*(1-Elteq!$F$5) -> 5.239734109
A200: ANAMET-M | B200: 8120132 | C200: M16 x 1,5 | D200: Multiflex fittings for SLI - CAP, Straight fixed with male thread, IP 40 | E200: 1 | F200: 5.239734109 | G200: =F200*(1-Elteq!$F$5) -> 5.239734109
A201: ANAMET-M | B201: 8120142 | C201: M20 x 1,5 | D201: Multiflex fittings for SLI - CAP, Straight fixed with male thread, IP 40 | E201: 1 | F201: 5.406959665 | G201: =F201*(1-Elteq!$F$5) -> 5.406959665
A202: ANAMET-M | B202: 8120152 | C202: M16 x 1,5 | D202: Multiflex fittings for SLI - CAP, Straight fixed with male thread, IP 40 | E202: 1 | F202: 4.979605465 | G202: =F202*(1-Elteq!$F$5) -> 4.979605465
A203: ANAMET-M | B203: 8172066 | C203: - | D203: Multiflex fittings for SLI - CAP, Connection set for SLI-CAP | E203: 1 | F203: 0.8918696355 | G203: =F203*(1-Elteq!$F$5) -> 0.8918696355
... 2573 more rows

Sheet ANAMET-S
A4: sheetname | B4: Objednávací kód | C4: Rozmer | D4: Popis | E4: Počet ks alebo m (štandardné balenie) | F4: Cena za ks alebo m (štandardné balenie) | G4: Cena po zľave za ks alebo m (štandardné balenie)
A5: =REPLACE(CELL("Filename",$A$1),1,FIND("]",CELL("filename",$A$1)),"") -> ANAMET-S | B5: 2560120 | C5: M12 x 1,5 | D5: Multiflex fittings for FCEN, Straight fixed with male thread, IP 40 | E5: 10 | F5: 1.988126063 | G5: =F5*(1-Elteq!$F$6) -> 1.988126063
A6: =REPLACE(CELL("Filename",$A$1),1,FIND("]",CELL("filename",$A$1)),"") -> ANAMET-S | B6: 2560150 | C6: M16 x 1,5 | D6: Multiflex fittings for FCEN, Straight fixed with male thread, IP 40 | E6: 10 | F6: 1.988126063 | G6: =F6*(1-Elteq!$F$6) -> 1.988126063
A7: ANAMET-S | B7: 2560160 | C7: M16 x 1,5 | D7: Multiflex fittings for FCEN, Straight fixed with male thread, IP 40 | E7: 10 | F7: 2.276125632 | G7: =F7*(1-Elteq!$F$6) -> 2.276125632
A8: ANAMET-S | B8: 2560170 | C8: M20 x 1,5 | D8: Multiflex fittings for FCEN, Straight fixed with male thread, IP 40 | E8: 10 | F8: 2.480512424 | G8: =F8*(1-Elteq!$F$6) -> 2.480512424
A9: ANAMET-S | B9: 2560200 | C9: M20 x 1,5 | D9: Multiflex fittings for FCEN, Straight fixed with male thread, IP 40 | E9: 10 | F9: 2.963608476 | G9: =F9*(1-Elteq!$F$6) -> 2.963608476
A10: ANAMET-S | B10: 2560250 | C10: M25 x 1,5 | D10: Multiflex fittings for FCEN, Straight fixed with male thread, IP 40 | E10: 5 | F10: 4.310703238 | G10: =F10*(1-Elteq!$F$6) -> 4.310703238
A11: ANAMET-S | B11: 2560320 | C11: M32 x 1,5 | D11: Multiflex fittings for FCEN, Straight fixed with male thread, IP 40 | E11: 5 | F11: 7.506569432 | G11: =F11*(1-Elteq!$F$6) -> 7.506569432
A12: ANAMET-S | B12: 2560400 | C12: M40 x 1,5 | D12: Multiflex fittings for FCEN, Straight fixed with male thread, IP 40 | E12: 2 | F12: 12.61623922 | G12: =F12*(1-Elteq!$F$6) -> 12.61623922
A13: ANAMET-S | B13: 2560500 | C13: M50 x 1,5 | D13: Multiflex fittings for FCEN, Straight fixed with male thread, IP 40 | E13: 2 | F13: 22.06448317 | G13: =F13*(1-Elteq!$F$6) -> 22.06448317
A14: ANAMET-S | B14: 2560600 | C14: M63 x 1,5 | D14: Multiflex fittings for FCEN, Straight fixed with male thread, IP 40 | E14: 2 | F14: 31.56846897 | G14: =F14*(1-Elteq!$F$6) -> 31.56846897
A15: ANAMET-S | B15: 2561120 | C15: M12 x 1,5 | D15: Multiflex fittings for FCEN, Straight fixed with male thread, IP 40 | E15: 10 | F15: 2.554834893 | G15: =F15*(1-Elteq!$F$6) -> 2.554834893
A16: ANAMET-S | B16: 2561150 | C16: M16 x 1,5 | D16: Multiflex fittings for FCEN, Straight swivel with male thread, IP 40 | E16: 10 | F16: 2.675608907 | G16: =F16*(1-Elteq!$F$6) -> 2.675608907
A17: ANAMET-S | B17: 2561160 | C17: M16 x 1,5 | D17: Multiflex fittings for FCEN, Straight swivel with male thread, IP 40 | E17: 10 | F17: 2.684899215 | G17: =F17*(1-Elteq!$F$6) -> 2.684899215
A18: ANAMET-S | B18: 2561170 | C18: M20 x 1,5 | D18: Multiflex fittings for FCEN, Straight swivel with male thread, IP 40 | E18: 10 | F18: 3.056511563 | G18: =F18*(1-Elteq!$F$6) -> 3.056511563
A19: ANAMET-S | B19: 2561200 | C19: M20 x 1,5 | D19: Multiflex fittings for FCEN, Straight swivel with male thread, IP 40 | E19: 10 | F19: 3.678962247 | G19: =F19*(1-Elteq!$F$6) -> 3.678962247
A20: ANAMET-S | B20: 2561250 | C20: M25 x 1,5 | D20: Multiflex fittings for FCEN, Straight swivel with male thread, IP 40 | E20: 5 | F20: 5.51844337 | G20: =F20*(1-Elteq!$F$6) -> 5.51844337
A21: ANAMET-S | B21: 2561320 | C21: M32 x 1,5 | D21: Multiflex fittings for FCEN, Straight swivel with male thread, IP 40 | E21: 5 | F21: 9.764114447 | G21: =F21*(1-Elteq!$F$6) -> 9.764114447
A22: ANAMET-S | B22: 2561400 | C22: M40 x 1,5 | D22: Multiflex fittings for FCEN, Straight swivel with male thread, IP 40 | E22: 2 | F22: 16.40668517 | G22: =F22*(1-Elteq!$F$6) -> 16.40668517
A23: ANAMET-S | B23: 2561500 | C23: M50 x 1,5 | D23: Multiflex fittings for FCEN, Straight swivel with male thread, IP 40 | E23: 2 | F23: 37.30987975 | G23: =F23*(1-Elteq!$F$6) -> 37.30987975
A24: ANAMET-S | B24: 2561600 | C24: M63 x 1,5 | D24: Multiflex fittings for FCEN, Straight swivel with male thread, IP 40 | E24: 2 | F24: 41.04458385 | G24: =F24*(1-Elteq!$F$6) -> 41.04458385
A25: ANAMET-S | B25: 3700122 | C25: 10 mm | D25: FCEN conduit without cover, Galvanised steel, IP 40 | E25: 25 | F25: 2.257545015 | G25: =F25*(1-Elteq!$F$6) -> 2.257545015
A26: ANAMET-S | B26: 3700125 | C26: 10 mm | D26: FCEN conduit without cover, Galvanised steel, IP 40 | E26: 50 | F26: 2.155351619 | G26: =F26*(1-Elteq!$F$6) -> 2.155351619
A27: ANAMET-S | B27: 3700161 | C27: 13 mm | D27: FCEN conduit without cover, Galvanised steel, IP 40 | E27: 10 | F27: 2.917156933 | G27: =F27*(1-Elteq!$F$6) -> 2.917156933
A28: ANAMET-S | B28: 3700162 | C28: 13 mm | D28: FCEN conduit without cover, Galvanised steel, IP 40 | E28: 25 | F28: 2.712770141 | G28: =F28*(1-Elteq!$F$6) -> 2.712770141
A29: ANAMET-S | B29: 3700165 | C29: 13 mm | D29: FCEN conduit without cover, Galvanised steel, IP 40 | E29: 50 | F29: 2.573415511 | G29: =F29*(1-Elteq!$F$6) -> 2.573415511
A30: ANAMET-S | B30: 3700201 | C30: 16,9 mm | D30: FCEN conduit without cover, Galvanised steel, IP 40 | E30: 10 | F30: 3.51173669 | G30: =F30*(1-Elteq!$F$6) -> 3.51173669
A31: ANAMET-S | B31: 3700202 | C31: 16,9 mm | D31: FCEN conduit without cover, Galvanised steel, IP 40 | E31: 25 | F31: 3.270188664 | G31: =F31*(1-Elteq!$F$6) -> 3.270188664
A32: ANAMET-S | B32: 3700205 | C32: 16,9 mm | D32: FCEN conduit without cover, Galvanised steel, IP 40 | E32: 50 | F32: 3.130834033 | G32: =F32*(1-Elteq!$F$6) -> 3.130834033
A33: ANAMET-S | B33: 3700251 | C33: 21,2 mm | D33: FCEN conduit without cover, Galvanised steel, IP 40 | E33: 10 | F33: 5.091089169 | G33: =F33*(1-Elteq!$F$6) -> 5.091089169
A34: ANAMET-S | B34: 3700252 | C34: 21,2 mm | D34: FCEN conduit without cover, Galvanised steel, IP 40 | E34: 25 | F34: 4.496509412 | G34: =F34*(1-Elteq!$F$6) -> 4.496509412
A35: ANAMET-S | B35: 3700255 | C35: 21,2 mm | D35: FCEN conduit without cover, Galvanised steel, IP 40 | E35: 50 | F35: 4.097026138 | G35: =F35*(1-Elteq!$F$6) -> 4.097026138
A36: ANAMET-S | B36: 3700321 | C36: 28 mm | D36: FCEN conduit without cover, Galvanised steel, IP 40 | E36: 10 | F36: 6.874828441 | G36: =F36*(1-Elteq!$F$6) -> 6.874828441
A37: ANAMET-S | B37: 3700322 | C37: 28 mm | D37: FCEN conduit without cover, Galvanised steel, IP 40 | E37: 25 | F37: 5.620636766 | G37: =F37*(1-Elteq!$F$6) -> 5.620636766
A38: ANAMET-S | B38: 3700401 | C38: 37,7 mm | D38: FCEN conduit without cover, Galvanised steel, IP 40 | E38: 10 | F38: 10.05211402 | G38: =F38*(1-Elteq!$F$6) -> 10.05211402
A39: ANAMET-S | B39: 3700402 | C39: 37,7 mm | D39: FCEN conduit without cover, Galvanised steel, IP 40 | E39: 25 | F39: 9.401792408 | G39: =F39*(1-Elteq!$F$6) -> 9.401792408
A40: ANAMET-S | B40: 3700501 | C40: 48,4 mm | D40: FCEN conduit without cover, Galvanised steel, IP 40 | E40: 10 | F40: 14.56720405 | G40: =F40*(1-Elteq!$F$6) -> 14.56720405
A41: ANAMET-S | B41: 3700502 | C41: 48,4 mm | D41: FCEN conduit without cover, Galvanised steel, IP 40 | E41: 25 | F41: 13.64746349 | G41: =F41*(1-Elteq!$F$6) -> 13.64746349
A42: ANAMET-S | B42: 2641120 | C42: - | D42: Multiflex fittings for FCEN, End cap, IP 40 | E42: 10 | F42: 1.272772292 | G42: =F42*(1-Elteq!$F$6) -> 1.272772292
A43: ANAMET-S | B43: 2641160 | C43: - | D43: Multiflex fittings for FCEN, End cap, IP 40 | E43: 10 | F43: 1.588642788 | G43: =F43*(1-Elteq!$F$6) -> 1.588642788
A44: ANAMET-S | B44: 2641200 | C44: - | D44: Multiflex fittings for FCEN, End cap, IP 40 | E44: 10 | F44: 1.969545445 | G44: =F44*(1-Elteq!$F$6) -> 1.969545445
A45: ANAMET-S | B45: 2641250 | C45: - | D45: Multiflex fittings for FCEN, End cap, IP 40 | E45: 5 | F45: 2.740641068 | G45: =F45*(1-Elteq!$F$6) -> 2.740641068
A46: ANAMET-S | B46: 2641320 | C46: - | D46: Multiflex fittings for FCEN, End cap, IP 40 | E46: 5 | F46: 4.078445521 | G46: =F46*(1-Elteq!$F$6) -> 4.078445521
A47: ANAMET-S | B47: 2641400 | C47: - | D47: Multiflex fittings for FCEN, End cap, IP 40 | E47: 2 | F47: 7.831730237 | G47: =F47*(1-Elteq!$F$6) -> 7.831730237
A48: ANAMET-S | B48: 2641500 | C48: - | D48: Multiflex fittings for FCEN, End cap, IP 40 | E48: 2 | F48: 12.09598193 | G48: =F48*(1-Elteq!$F$6) -> 12.09598193
A49: ANAMET-S | B49: 7120143 | C49: M20 x 1,5 | D49: Multiflex fittings for FCEN, Straight fixed with male thread, IP 40 | E49: 10 | F49: 4.719476821 | G49: =F49*(1-Elteq!$F$6) -> 4.719476821
A50: ANAMET-S | B50: 7120153 | C50: M16 x 1,5 | D50: Multiflex fittings for FCEN, Straight fixed with male thread, IP 40 | E50: 10 | F50: 4.468638486 | G50: =F50*(1-Elteq!$F$6) -> 4.468638486
A51: ANAMET-S | B51: 7120163 | C51: M16 x 1,5 | D51: Multiflex fittings for FCEN, Straight fixed with male thread, IP 40 | E51: 10 | F51: 3.632510703 | G51: =F51*(1-Elteq!$F$6) -> 3.632510703
A52: ANAMET-S | B52: 7120173 | C52: M20 x 1,5 | D52: Multiflex fittings for FCEN, Straight fixed with male thread, IP 40 | E52: 10 | F52: 3.883349038 | G52: =F52*(1-Elteq!$F$6) -> 3.883349038
A53: ANAMET-S | B53: 7120203 | C53: M20 x 1,5 | D53: Multiflex fittings for FCEN, Straight fixed with male thread, IP 40 | E53: 10 | F53: 4.15276799 | G53: =F53*(1-Elteq!$F$6) -> 4.15276799
A54: ANAMET-S | B54: 7120253 | C54: M25 x 1,5 | D54: Multiflex fittings for FCEN, Straight fixed with male thread, IP 40 | E54: 5 | F54: 6.15947467 | G54: =F54*(1-Elteq!$F$6) -> 6.15947467
A55: ANAMET-S | B55: 7120323 | C55: M32 x 1,5 | D55: Multiflex fittings for FCEN, Straight fixed with male thread, IP 40 | E55: 5 | F55: 10.28437173 | G55: =F55*(1-Elteq!$F$6) -> 10.28437173
A56: ANAMET-S | B56: 8127153 | C56: M16 x 1,5 | D56: Multiflex fittings for FCEN, Straight cablehose male thread, IP 68 | E56: 10 | F56: 10.76746779 | G56: =F56*(1-Elteq!$F$6) -> 10.76746779
A57: ANAMET-S | B57: 8127163 | C57: M16 x 1,5 | D57: Multiflex fittings for FCEN, Straight cablehose male thread, IP 68 | E57: 10 | F57: 12.82062601 | G57: =F57*(1-Elteq!$F$6) -> 12.82062601
A58: ANAMET-S | B58: 8127173 | C58: M20 x 1,5 | D58: Multiflex fittings for FCEN, Straight cablehose male thread, IP 68 | E58: 10 | F58: 10.86037087 | G58: =F58*(1-Elteq!$F$6) -> 10.86037087
A59: ANAMET-S | B59: 8127203 | C59: M20 x 1,5 | D59: Multiflex fittings for FCEN, Straight cablehose male thread, IP 68 | E59: 10 | F59: 14.66010713 | G59: =F59*(1-Elteq!$F$6) -> 14.66010713
A60: ANAMET-S | B60: 8127253 | C60: M25 x 1,5 | D60: Multiflex fittings for FCEN, Straight cablehose male thread, IP 68 | E60: 5 | F60: 20.46655007 | G60: =F60*(1-Elteq!$F$6) -> 20.46655007
A61: ANAMET-S | B61: 8127323 | C61: M32 x 1,5 | D61: Multiflex fittings for FCEN, Straight cablehose male thread, IP 68 | E61: 5 | F61: 51.5612133 | G61: =F61*(1-Elteq!$F$6) -> 51.5612133
A62: ANAMET-S | B62: 8130153 | C62: M16 x 1,5 | D62: Multiflex fittings for FCEN, Straight swivel with male thread, IP 40 | E62: 10 | F62: 7.924633324 | G62: =F62*(1-Elteq!$F$6) -> 7.924633324
A63: ANAMET-S | B63: 8130163 | C63: M16 x 1,5 | D63: Multiflex fittings for FCEN, Straight swivel with male thread, IP 40 | E63: 10 | F63: 7.395085728 | G63: =F63*(1-Elteq!$F$6) -> 7.395085728
A64: ANAMET-S | B64: 8130203 | C64: M20 x 1,5 | D64: Multiflex fittings for FCEN, Straight swivel with male thread, IP 40 | E64: 10 | F64: 8.379858451 | G64: =F64*(1-Elteq!$F$6) -> 8.379858451
A65: ANAMET-S | B65: 8130253 | C65: M25 x 1,5 | D65: Multiflex fittings for FCEN, Straight swivel with male thread, IP 40 | E65: 5 | F65: 10.97185458 | G65: =F65*(1-Elteq!$F$6) -> 10.97185458
A66: ANAMET-S | B66: 8130323 | C66: M32 x 1,5 | D66: Multiflex fittings for FCEN, Straight swivel with male thread, IP 40 | E66: 5 | F66: 18.64564957 | G66: =F66*(1-Elteq!$F$6) -> 18.64564957
A67: ANAMET-S | B67: 8171120 | C67: - | D67: Multiflex fittings for FCEN, Connection set for FCEN | E67: 10 | F67: 0.7432246963 | G67: =F67*(1-Elteq!$F$6) -> 0.7432246963
A68: ANAMET-S | B68: 8171160 | C68: - | D68: Multiflex fittings for FCEN, Connection set for FCEN | E68: 10 | F68: 0.8361277833 | G68: =F68*(1-Elteq!$F$6) -> 0.8361277833
A69: ANAMET-S | B69: 8171200 | C69: - | D69: Multiflex fittings for FCEN, Connection set for FCEN | E69: 10 | F69: 0.9290308703 | G69: =F69*(1-Elteq!$F$6) -> 0.9290308703
A70: =REPLACE(CELL("Filename",$A$1),1,FIND("]",CELL("filename",$A$1)),"") -> ANAMET-S | B70: 8171250 | C70: - | D70: Multiflex fittings for FCEN, Connection set for FCEN | E70: 5 | F70: 1.161288588 | G70: =F70*(1-Elteq!$F$6) -> 1.161288588
A71: ANAMET-S | B71: 8171320 | C71: - | D71: Multiflex fittings for FCEN, Connection set for FCEN | E71: 5 | F71: 2.322577176 | G71: =F71*(1-Elteq!$F$6) -> 2.322577176
A72: ANAMET-S | B72: 1070102 | C72: 5/16" | D72: SL conduit without cover, Galvanised steel, IP 40 | E72: 30 | F72: 2.331867485 | G72: =F72*(1-Elteq!$F$6) -> 2.331867485
A73: ANAMET-S | B73: 1070122 | C73: 3/8" | D73: SL conduit without cover, Galvanised steel, IP 40 | E73: 30 | F73: 2.79638292 | G73: =F73*(1-Elteq!$F$6) -> 2.79638292
A74: ANAMET-S | B74: 1070162 | C74: 1/2" | D74: SL conduit without cover, Galvanised steel, IP 40 | E74: 30 | F74: 3.167995268 | G74: =F74*(1-Elteq!$F$6) -> 3.167995268
A75: ANAMET-S | B75: 1070202 | C75: 3/4" | D75: SL conduit without cover, Galvanised steel, IP 40 | E75: 30 | F75: 4.357154782 | G75: =F75*(1-Elteq!$F$6) -> 4.357154782
A76: ANAMET-S | B76: 1070262 | C76: 1" | D76: SL conduit without cover, Galvanised steel, IP 40 | E76: 30 | F76: 6.670441649 | G76: =F76*(1-Elteq!$F$6) -> 6.670441649
A77: ANAMET-S | B77: 1070352 | C77: 1.1/4" | D77: SL conduit without cover, Galvanised steel, IP 40 | E77: 30 | F77: 9.95921093 | G77: =F77*(1-Elteq!$F$6) -> 9.95921093
A78: ANAMET-S | B78: 6000102 | C78: 5/16" | D78: SLI conduit without cover, Stainless steel AISI-304, IP 40 | E78: 30 | F78: 7.004892762 | G78: =F78*(1-Elteq!$F$6) -> 7.004892762
A79: ANAMET-S | B79: 6000122 | C79: 3/8" | D79: SLI conduit without cover, Stainless steel AISI-304, IP 40 | E79: 30 | F79: 8.073278263 | G79: =F79*(1-Elteq!$F$6) -> 8.073278263
A80: ANAMET-S | B80: 6000162 | C80: 1/2" | D80: SLI conduit without cover, Stainless steel AISI-304, IP 40 | E80: 30 | F80: 8.435600303 | G80: =F80*(1-Elteq!$F$6) -> 8.435600303
A81: ANAMET-S | B81: 6000202 | C81: 3/4" | D81: SLI conduit without cover, Stainless steel AISI-304, IP 40 | E81: 30 | F81: 10.7767581 | G81: =F81*(1-Elteq!$F$6) -> 10.7767581
A82: ANAMET-S | B82: 6000262 | C82: 1" | D82: SLI conduit without cover, Stainless steel AISI-304, IP 40 | E82: 30 | F82: 15.68204109 | G82: =F82*(1-Elteq!$F$6) -> 15.68204109
A83: ANAMET-S | B83: 6000352 | C83: 1 1/4" | D83: SLI conduit without cover, Stainless steel AISI-304, IP 40 | E83: 30 | F83: 21.07042014 | G83: =F83*(1-Elteq!$F$6) -> 21.07042014
A84: ANAMET-S | B84: 6006102 | C84: 5/16" | D84: SLI-316 conduit without cover, Stainless steel AISI-316, IP 40 | E84: 30 | F84: 9.141663764 | G84: =F84*(1-Elteq!$F$6) -> 9.141663764
A85: ANAMET-S | B85: 6006122 | C85: 3/8" | D85: SLI-316 conduit without cover, Stainless steel AISI-316, IP 40 | E85: 30 | F85: 11.19482199 | G85: =F85*(1-Elteq!$F$6) -> 11.19482199
A86: ANAMET-S | B86: 6006162 | C86: 1/2" | D86: SLI-316 conduit without cover, Stainless steel AISI-316, IP 40 | E86: 30 | F86: 12.58836829 | G86: =F86*(1-Elteq!$F$6) -> 12.58836829
A87: ANAMET-S | B87: 6006202 | C87: 3/4" | D87: SLI-316 conduit without cover, Stainless steel AISI-316, IP 40 | E87: 30 | F87: 16.96410369 | G87: =F87*(1-Elteq!$F$6) -> 16.96410369
A88: ANAMET-S | B88: 6006262 | C88: 1" | D88: SLI-316 conduit without cover, Stainless steel AISI-316, IP 40 | E88: 30 | F88: 23.32796515 | G88: =F88*(1-Elteq!$F$6) -> 23.32796515
A89: ANAMET-S | B89: 6006352 | C89: 1 1/4" | D89: SLI-316 conduit without cover, Stainless steel AISI-316, IP 40 | E89: 30 | F89: 32.17233904 | G89: =F89*(1-Elteq!$F$6) -> 32.17233904
A90: ANAMET-S | B90: 7100116 | C90: PG 11 | D90: Multiflex fittings for SL / SLI, Straight fixed with male thread, IP 40 | E90: 10 | F90: 3.678962247 | G90: =F90*(1-Elteq!$F$6) -> 3.678962247
A91: ANAMET-S | B91: 7100136 | C91: PG 13,5 | D91: Multiflex fittings for SL / SLI, Straight fixed with male thread, IP 40 | E91: 10 | F91: 3.688252555 | G91: =F91*(1-Elteq!$F$6) -> 3.688252555
A92: ANAMET-S | B92: 7100166 | C92: PG 16 | D92: Multiflex fittings for SL / SLI, Straight fixed with male thread, IP 40 | E92: 10 | F92: 4.292122621 | G92: =F92*(1-Elteq!$F$6) -> 4.292122621
A93: ANAMET-S | B93: 7100216 | C93: PG 21 | D93: Multiflex fittings for SL / SLI, Straight fixed with male thread, IP 40 | E93: 5 | F93: 6.261668066 | G93: =F93*(1-Elteq!$F$6) -> 6.261668066
A94: ANAMET-S | B94: 7100296 | C94: PG 29 | D94: Multiflex fittings for SL / SLI, Straight fixed with male thread, IP 40 | E94: 5 | F94: 10.62811316 | G94: =F94*(1-Elteq!$F$6) -> 10.62811316
A95: ANAMET-S | B95: 7100366 | C95: PG 36 | D95: Multiflex fittings for SL / SLI, Straight fixed with male thread, IP 40 | E95: 2 | F95: 16.49029795 | G95: =F95*(1-Elteq!$F$6) -> 16.49029795
A96: ANAMET-S | B96: 7120146 | C96: M20 x 1,5 | D96: Multiflex fittings for SL / SLI, Straight fixed with male thread, IP 40 | E96: 10 | F96: 3.976252125 | G96: =F96*(1-Elteq!$F$6) -> 3.976252125
A97: ANAMET-S | B97: 7120156 | C97: M16 x 1,5 | D97: Multiflex fittings for SL / SLI, Straight fixed with male thread, IP 40 | E97: 10 | F97: 3.72541379 | G97: =F97*(1-Elteq!$F$6) -> 3.72541379
A98: ANAMET-S | B98: 7120166 | C98: M16 x 1,5 | D98: Multiflex fittings for SL / SLI, Straight fixed with male thread, IP 40 | E98: 10 | F98: 3.632510703 | G98: =F98*(1-Elteq!$F$6) -> 3.632510703
A99: ANAMET-S | B99: 7120176 | C99: M20 x 1,5 | D99: Multiflex fittings for SL / SLI, Straight fixed with male thread, IP 40 | E99: 10 | F99: 3.883349038 | G99: =F99*(1-Elteq!$F$6) -> 3.883349038
A100: ANAMET-S | B100: 7120206 | C100: M20 x 1,5 | D100: Multiflex fittings for SL / SLI, Straight fixed with male thread, IP 40 | E100: 10 | F100: 4.15276799 | G100: =F100*(1-Elteq!$F$6) -> 4.15276799
A101: ANAMET-S | B101: 7120256 | C101: M25 x 1,5 | D101: Multiflex fittings for SL / SLI, Straight fixed with male thread, IP 40 | E101: 5 | F101: 6.15947467 | G101: =F101*(1-Elteq!$F$6) -> 6.15947467
A102: ANAMET-S | B102: 7120326 | C102: M32 x 1,5 | D102: Multiflex fittings for SL / SLI, Straight fixed with male thread, IP 40 | E102: 5 | F102: 10.28437173 | G102: =F102*(1-Elteq!$F$6) -> 10.28437173
A103: ANAMET-S | B103: 7120406 | C103: M40 x 1,5 | D103: Multiflex fittings for SL / SLI, Straight fixed with male thread, IP 40 | E103: 2 | F103: 16.36952394 | G103: =F103*(1-Elteq!$F$6) -> 16.36952394
A104: ANAMET-S | B104: 7129146 | C104: M20 x 1,5 | D104: Multiflex fittings for SL / SLI, 90° elbow fixed with male thread, IP 40 | E104: 10 | F104: 7.580891902 | G104: =F104*(1-Elteq!$F$6) -> 7.580891902
A105: ANAMET-S | B105: 7129156 | C105: M16 x 1,5 | D105: Multiflex fittings for SL / SLI, 90° elbow fixed with male thread, IP 40 | E105: 10 | F105: 6.029410349 | G105: =F105*(1-Elteq!$F$6) -> 6.029410349
A106: ANAMET-S | B106: 7129166 | C106: M16 x 1,5 | D106: Multiflex fittings for SL / SLI, 90° elbow fixed with male thread, IP 40 | E106: 10 | F106: 5.862184792 | G106: =F106*(1-Elteq!$F$6) -> 5.862184792
A107: ANAMET-S | B107: 7129176 | C107: M20 x 1,5 | D107: Multiflex fittings for SL / SLI, 90° elbow fixed with male thread, IP 40 | E107: 10 | F107: 6.744764119 | G107: =F107*(1-Elteq!$F$6) -> 6.744764119
A108: ANAMET-S | B108: 7129206 | C108: M20 x 1,5 | D108: Multiflex fittings for SL / SLI, 90° elbow fixed with male thread, IP 40 | E108: 10 | F108: 6.921279984 | G108: =F108*(1-Elteq!$F$6) -> 6.921279984
A109: ANAMET-S | B109: 7129256 | C109: M25 x 1,5 | D109: Multiflex fittings for SL / SLI, 90° elbow fixed with male thread, IP 40 | E109: 5 | F109: 10.63740347 | G109: =F109*(1-Elteq!$F$6) -> 10.63740347
A110: ANAMET-S | B110: 7129326 | C110: M32 x 1,5 | D110: Multiflex fittings for SL / SLI, 90° elbow fixed with male thread, IP 40 | E110: 5 | F110: 19.57468044 | G110: =F110*(1-Elteq!$F$6) -> 19.57468044
A111: ANAMET-S | B111: 7129406 | C111: M40 x 1,5 | D111: Multiflex fittings for SL / SLI, 90° elbow fixed with male thread, IP 40 | E111: 2 | F111: 31.21543724 | G111: =F111*(1-Elteq!$F$6) -> 31.21543724
A112: ANAMET-S | B112: 8130156 | C112: M16 x 1,5 | D112: Multiflex fittings for SL / SLI, Straight swivel with male thread, IP 40 | E112: 10 | F112: 7.924633324 | G112: =F112*(1-Elteq!$F$6) -> 7.924633324
A113: ANAMET-S | B113: 8130166 | C113: M16 x 1,5 | D113: Multiflex fittings for SL / SLI, Straight swivel with male thread, IP 40 | E113: 10 | F113: 7.395085728 | G113: =F113*(1-Elteq!$F$6) -> 7.395085728
A114: ANAMET-S | B114: 8130206 | C114: M20 x 1,5 | D114: Multiflex fittings for SL / SLI, Straight swivel with male thread, IP 40 | E114: 10 | F114: 8.379858451 | G114: =F114*(1-Elteq!$F$6) -> 8.379858451
A115: ANAMET-S | B115: 8130256 | C115: M25 x 1,5 | D115: Multiflex fittings for SL / SLI, Straight swivel with male thread, IP 40 | E115: 5 | F115: 14.68797806 | G115: =F115*(1-Elteq!$F$6) -> 14.68797806
A116: ANAMET-S | B116: 8130326 | C116: M32 x 1,5 | D116: Multiflex fittings for SL / SLI, Straight swivel with male thread, IP 40 | E116: 5 | F116: 18.64564957 | G116: =F116*(1-Elteq!$F$6) -> 18.64564957
A117: ANAMET-S | B117: 8130406 | C117: M40 x 1,5 | D117: Multiflex fittings for SL / SLI, Straight swivel with male thread, IP 40 | E117: 2 | F117: 22.38035367 | G117: =F117*(1-Elteq!$F$6) -> 22.38035367
A118: ANAMET-S | B118: 8139156 | C118: M16 x 1,5 | D118: Multiflex fittings for SL / SLI, 90° elbow swivel with male thread, IP 40 | E118: 10 | F118: 13.80539873 | G118: =F118*(1-Elteq!$F$6) -> 13.80539873
A119: ANAMET-S | B119: 8139166 | C119: M16 x 1,5 | D119: Multiflex fittings for SL / SLI, 90° elbow swivel with male thread, IP 40 | E119: 10 | F119: 12.35611058 | G119: =F119*(1-Elteq!$F$6) -> 12.35611058
A120: ANAMET-S | B120: 8139206 | C120: M20 x 1,5 | D120: Multiflex fittings for SL / SLI, 90° elbow swivel with male thread, IP 40 | E120: 10 | F120: 15.84926665 | G120: =F120*(1-Elteq!$F$6) -> 15.84926665
A121: ANAMET-S | B121: 8139256 | C121: M20 x 1,5 | D121: Multiflex fittings for SL / SLI, 90° elbow swivel with male thread, IP 40 | E121: 5 | F121: 25.12099473 | G121: =F121*(1-Elteq!$F$6) -> 25.12099473
A122: ANAMET-S | B122: 8139326 | C122: M25 x 1,5 | D122: Multiflex fittings for SL / SLI, 90° elbow swivel with male thread, IP 40 | E122: 5 | F122: 40.89593891 | G122: =F122*(1-Elteq!$F$6) -> 40.89593891
A123: ANAMET-S | B123: 8172106 | C123: M32 x 1,5 | D123: Multiflex fittings for SL / SLI, Connection ring SL / SLI | E123: 10 | F123: 0.7432246963 | G123: =F123*(1-Elteq!$F$6) -> 0.7432246963
A124: ANAMET-S | B124: 8172136 | C124: - | D124: Multiflex fittings for SL / SLI, Connection ring SL / SLI | E124: 10 | F124: 0.8361277833 | G124: =F124*(1-Elteq!$F$6) -> 0.8361277833
A125: ANAMET-S | B125: 8172166 | C125: - | D125: Multiflex fittings for SL / SLI, Connection ring SL / SLI | E125: 10 | F125: 0.9290308703 | G125: =F125*(1-Elteq!$F$6) -> 0.9290308703
A126: ANAMET-S | B126: 8172206 | C126: - | D126: Multiflex fittings for SL / SLI, Connection ring SL / SLI | E126: 5 | F126: 1.161288588 | G126: =F126*(1-Elteq!$F$6) -> 1.161288588
A127: ANAMET-S | B127: 8172266 | C127: - | D127: Multiflex fittings for SL / SLI, Connection ring SL / SLI | E127: 5 | F127: 2.322577176 | G127: =F127*(1-Elteq!$F$6) -> 2.322577176
A128: ANAMET-S | B128: 8172356 | C128: - | D128: Multiflex fittings for SL / SLI, Connection ring SL / SLI | E128: 2 | F128: 3.530317307 | G128: =F128*(1-Elteq!$F$6) -> 3.530317307
A129: ANAMET-S | B129: 7109116 | C129: PG 11 | D129: Multiflex fittings for SL / SLI, 90° elbow fixed with male thread, IP 40 | E129: 10 | F129: 6.066571583 | G129: =F129*(1-Elteq!$F$6) -> 6.066571583
A130: ANAMET-S | B130: 7109136 | C130: PG 13,5 | D130: Multiflex fittings for SL / SLI, 90° elbow fixed with male thread, IP 40 | E130: 10 | F130: 6.23379714 | G130: =F130*(1-Elteq!$F$6) -> 6.23379714
A131: ANAMET-S | B131: 7109166 | C131: PG 16 | D131: Multiflex fittings for SL / SLI, 90° elbow fixed with male thread, IP 40 | E131: 10 | F131: 7.320763258 | G131: =F131*(1-Elteq!$F$6) -> 7.320763258
A132: ANAMET-S | B132: 7109216 | C132: PG 21 | D132: Multiflex fittings for SL / SLI, 90° elbow fixed with male thread, IP 40 | E132: 5 | F132: 10.52591976 | G132: =F132*(1-Elteq!$F$6) -> 10.52591976
A133: ANAMET-S | B133: 7109296 | C133: PG 29 | D133: Multiflex fittings for SL / SLI, 90° elbow fixed with male thread, IP 40 | E133: 5 | F133: 19.81622846 | G133: =F133*(1-Elteq!$F$6) -> 19.81622846
A134: =REPLACE(CELL("Filename",$A$1),1,FIND("]",CELL("filename",$A$1)),"") -> ANAMET-S | B134: 7109366 | C134: PG 36 | D134: Multiflex fittings for SL / SLI, 90° elbow fixed with male thread, IP 40 | E134: 2 | F134: 31.21543724 | G134: =F134*(1-Elteq!$F$6) -> 31.21543724
A135: ANAMET-S | B135: 7140126 | C135: NPT 1/2" | D135: Multiflex fittings for SL / SLI, Straight fixed with male thread, IP 40 | E135: 10 | F135: 3.781155642 | G135: =F135*(1-Elteq!$F$6) -> 3.781155642
A136: ANAMET-S | B136: 7140166 | C136: NPT 1/2" | D136: Multiflex fittings for SL / SLI, Straight fixed with male thread, IP 40 | E136: 10 | F136: 4.30141293 | G136: =F136*(1-Elteq!$F$6) -> 4.30141293
A137: ANAMET-S | B137: 7140206 | C137: NPT 3/4" | D137: Multiflex fittings for SL / SLI, Straight fixed with male thread, IP 40 | E137: 5 | F137: 5.890055718 | G137: =F137*(1-Elteq!$F$6) -> 5.890055718
A138: ANAMET-S | B138: 7140266 | C138: NPT 1" | D138: Multiflex fittings for SL / SLI, Straight fixed with male thread, IP 40 | E138: 5 | F138: 10.63740347 | G138: =F138*(1-Elteq!$F$6) -> 10.63740347
A139: ANAMET-S | B139: 7140356 | C139: NPT 1.1/4" | D139: Multiflex fittings for SL / SLI, Straight fixed with male thread, IP 40 | E139: 2 | F139: 17.05700678 | G139: =F139*(1-Elteq!$F$6) -> 17.05700678
A140: ANAMET-S | B140: 7149126 | C140: NPT 1/2" | D140: Multiflex fittings for SL / SLI, 90° elbow fixed with male thread, IP 40 | E140: 10 | F140: 6.30811961 | G140: =F140*(1-Elteq!$F$6) -> 6.30811961
A141: ANAMET-S | B141: 7149166 | C141: NPT 1/2" | D141: Multiflex fittings for SL / SLI, 90° elbow fixed with male thread, IP 40 | E141: 10 | F141: 7.441537271 | G141: =F141*(1-Elteq!$F$6) -> 7.441537271
A142: ANAMET-S | B142: 7149206 | C142: NPT 3/4" | D142: Multiflex fittings for SL / SLI, 90° elbow fixed with male thread, IP 40 | E142: 5 | F142: 10.47017791 | G142: =F142*(1-Elteq!$F$6) -> 10.47017791
A143: ANAMET-S | B143: 7149266 | C143: NPT 1" | D143: Multiflex fittings for SL / SLI, 90° elbow fixed with male thread, IP 40 | E143: 5 | F143: 19.57468044 | G143: =F143*(1-Elteq!$F$6) -> 19.57468044
A144: ANAMET-S | B144: 7149356 | C144: NPT 1.1/4" | D144: Multiflex fittings for SL / SLI, 90° elbow fixed with male thread, IP 40 | E144: 2 | F144: 31.21543724 | G144: =F144*(1-Elteq!$F$6) -> 31.21543724
A145: ANAMET-S | B145: 7840106 | C145: - | D145: Multiflex fittings for SL / SLI, Conduit connector, IP 40 | E145: 10 | F145: 6.921279984 | G145: =F145*(1-Elteq!$F$6) -> 6.921279984
A146: ANAMET-S | B146: 7840126 | C146: - | D146: Multiflex fittings for SL / SLI, Conduit connector, IP 40 | E146: 10 | F146: 5.992249114 | G146: =F146*(1-Elteq!$F$6) -> 5.992249114
A147: ANAMET-S | B147: 7840166 | C147: - | D147: Multiflex fittings for SL / SLI, Conduit connector, IP 40 | E147: 10 | F147: 7.199989245 | G147: =F147*(1-Elteq!$F$6) -> 7.199989245
A148: ANAMET-S | B148: 7840206 | C148: - | D148: Multiflex fittings for SL / SLI, Conduit connector, IP 40 | E148: 5 | F148: 10.59095192 | G148: =F148*(1-Elteq!$F$6) -> 10.59095192
A149: ANAMET-S | B149: 7840266 | C149: - | D149: Multiflex fittings for SL / SLI, Conduit connector, IP 40 | E149: 5 | F149: 19.24022932 | G149: =F149*(1-Elteq!$F$6) -> 19.24022932
A150: ANAMET-S | B150: 7840356 | C150: - | D150: Multiflex fittings for SL / SLI, Conduit connector, IP 40 | E150: 2 | F150: 26.22654147 | G150: =F150*(1-Elteq!$F$6) -> 26.22654147
A151: ANAMET-S | B151: 8100096 | C151: PG 9 | D151: Multiflex fittings for SL / SLI, Straight fixed with male thread, IP 40 | E151: 10 | F151: 5.109669787 | G151: =F151*(1-Elteq!$F$6) -> 5.109669787
A152: ANAMET-S | B152: 8100106 | C152: PG 9 | D152: Multiflex fittings for SL / SLI, Straight fixed with male thread, IP 40 | E152: 10 | F152: 6.958441219 | G152: =F152*(1-Elteq!$F$6) -> 6.958441219
A153: ANAMET-S | B153: 8100116 | C153: PG 11 | D153: Multiflex fittings for SL / SLI, Straight fixed with male thread, IP 40 | E153: 10 | F153: 7.079215232 | G153: =F153*(1-Elteq!$F$6) -> 7.079215232
A154: ANAMET-S | B154: 8100126 | C154: PG 11 | D154: Multiflex fittings for SL / SLI, Straight fixed with male thread, IP 40 | E154: 10 | F154: 5.973668496 | G154: =F154*(1-Elteq!$F$6) -> 5.973668496
A155: ANAMET-S | B155: 8100136 | C155: PG 13,5 | D155: Multiflex fittings for SL / SLI, Straight fixed with male thread, IP 40 | E155: 10 | F155: 7.079215232 | G155: =F155*(1-Elteq!$F$6) -> 7.079215232
A156: ANAMET-S | B156: 8100166 | C156: PG 16 | D156: Multiflex fittings for SL / SLI, Straight fixed with male thread, IP 40 | E156: 10 | F156: 7.757407767 | G156: =F156*(1-Elteq!$F$6) -> 7.757407767
A157: ANAMET-S | B157: 8100216 | C157: PG 21 | D157: Multiflex fittings for SL / SLI, Straight fixed with male thread, IP 40 | E157: 5 | F157: 10.16359772 | G157: =F157*(1-Elteq!$F$6) -> 10.16359772
A158: ANAMET-S | B158: 8100296 | C158: PG 29 | D158: Multiflex fittings for SL / SLI, Straight fixed with male thread, IP 40 | E158: 5 | F158: 17.06629709 | G158: =F158*(1-Elteq!$F$6) -> 17.06629709
A159: ANAMET-S | B159: 8100366 | C159: PG 36 | D159: Multiflex fittings for SL / SLI, Straight fixed with male thread, IP 40 | E159: 2 | F159: 21.37700033 | G159: =F159*(1-Elteq!$F$6) -> 21.37700033
A160: ANAMET-S | B160: 8103116 | C160: PG 11 | D160: Multiflex fittings for SL / SLI, Straight fixed with female thread, IP 40 | E160: 10 | F160: 7.683085298 | G160: =F160*(1-Elteq!$F$6) -> 7.683085298
A161: ANAMET-S | B161: 8103126 | C161: PG 11 | D161: Multiflex fittings for SL / SLI, Straight fixed with female thread, IP 40 | E161: 10 | F161: 6.73547381 | G161: =F161*(1-Elteq!$F$6) -> 6.73547381
A162: ANAMET-S | B162: 8103136 | C162: PG 13,5 | D162: Multiflex fittings for SL / SLI, Straight fixed with female thread, IP 40 | E162: 10 | F162: 7.683085298 | G162: =F162*(1-Elteq!$F$6) -> 7.683085298
A163: ANAMET-S | B163: 8103146 | C163: PG 13,5 | D163: Multiflex fittings for SL / SLI, Straight fixed with female thread, IP 40 | E163: 10 | F163: 6.73547381 | G163: =F163*(1-Elteq!$F$6) -> 6.73547381
A164: ANAMET-S | B164: 8103166 | C164: PG 16 | D164: Multiflex fittings for SL / SLI, Straight fixed with female thread, IP 40 | E164: 10 | F164: 8.110439498 | G164: =F164*(1-Elteq!$F$6) -> 8.110439498
A165: ANAMET-S | B165: 8103216 | C165: PG 21 | D165: Multiflex fittings for SL / SLI, Straight fixed with female thread, IP 40 | E165: 5 | F165: 11.4177894 | G165: =F165*(1-Elteq!$F$6) -> 11.4177894
A166: ANAMET-S | B166: 8103296 | C166: PG 29 | D166: Multiflex fittings for SL / SLI, Straight fixed with female thread, IP 40 | E166: 5 | F166: 16.70397505 | G166: =F166*(1-Elteq!$F$6) -> 16.70397505
A167: ANAMET-S | B167: 8103366 | C167: PG 36 | D167: Multiflex fittings for SL / SLI, Straight fixed with female thread, IP 40 | E167: 2 | F167: 27.36924944 | G167: =F167*(1-Elteq!$F$6) -> 27.36924944
A168: ANAMET-S | B168: 8107096 | C168: PG 9 | D168: Multiflex fittings for SL / SLI, Straight cablehose male thread, IP 68 | E168: 10 | F168: 12.06811101 | G168: =F168*(1-Elteq!$F$6) -> 12.06811101
A169: ANAMET-S | B169: 8107116 | C169: PG 11 | D169: Multiflex fittings for SL / SLI, Straight cablehose male thread, IP 68 | E169: 10 | F169: 12.90423879 | G169: =F169*(1-Elteq!$F$6) -> 12.90423879
A170: ANAMET-S | B170: 8107126 | C170: PG 9 | D170: Multiflex fittings for SL / SLI, Straight cablehose male thread, IP 68 | E170: 10 | F170: 12.90423879 | G170: =F170*(1-Elteq!$F$6) -> 12.90423879
A171: ANAMET-S | B171: 8107146 | C171: PG 11 | D171: Multiflex fittings for SL / SLI, Straight cablehose male thread, IP 68 | E171: 10 | F171: 11.9566273 | G171: =F171*(1-Elteq!$F$6) -> 11.9566273
A172: ANAMET-S | B172: 8107156 | C172: PG 13,5 | D172: Multiflex fittings for SL / SLI, Straight cablehose male thread, IP 68 | E172: 10 | F172: 14.46501065 | G172: =F172*(1-Elteq!$F$6) -> 14.46501065
A173: ANAMET-S | B173: 8107166 | C173: PG 16 | D173: Multiflex fittings for SL / SLI, Straight cablehose male thread, IP 68 | E173: 10 | F173: 17.51223191 | G173: =F173*(1-Elteq!$F$6) -> 17.51223191
A174: ANAMET-S | B174: 8107216 | C174: PG 21 | D174: Multiflex fittings for SL / SLI, Straight cablehose male thread, IP 68 | E174: 5 | F174: 26.83970184 | G174: =F174*(1-Elteq!$F$6) -> 26.83970184
A175: ANAMET-S | B175: 8107296 | C175: PG 29 | D175: Multiflex fittings for SL / SLI, Straight cablehose male thread, IP 68 | E175: 5 | F175: 40.36639132 | G175: =F175*(1-Elteq!$F$6) -> 40.36639132
A176: ANAMET-S | B176: 8120146 | C176: M20 x 1,5 | D176: Multiflex fittings for SL / SLI, Straight fixed with male thread, IP 40 | E176: 10 | F176: 6.438183931 | G176: =F176*(1-Elteq!$F$6) -> 6.438183931
A177: ANAMET-S | B177: 8120156 | C177: M16 x 1,5 | D177: Multiflex fittings for SL / SLI, Straight fixed with male thread, IP 40 | E177: 10 | F177: 4.895992687 | G177: =F177*(1-Elteq!$F$6) -> 4.895992687
A178: ANAMET-S | B178: 8120166 | C178: M16 x 1,5 | D178: Multiflex fittings for SL / SLI, Straight fixed with male thread, IP 40 | E178: 10 | F178: 6.698312575 | G178: =F178*(1-Elteq!$F$6) -> 6.698312575
A179: ANAMET-S | B179: 8120176 | C179: M20 x 1,5 | D179: Multiflex fittings for SL / SLI, Straight fixed with male thread, IP 40 | E179: 10 | F179: 6.986312145 | G179: =F179*(1-Elteq!$F$6) -> 6.986312145
A180: ANAMET-S | B180: 8120206 | C180: M20 x 1,5 | D180: Multiflex fittings for SL / SLI, Straight fixed with male thread, IP 40 | E180: 10 | F180: 6.986312145 | G180: =F180*(1-Elteq!$F$6) -> 6.986312145
A181: ANAMET-S | B181: 8120256 | C181: M25 x 1,5 | D181: Multiflex fittings for SL / SLI, Straight fixed with male thread, IP 40 | E181: 5 | F181: 9.773404756 | G181: =F181*(1-Elteq!$F$6) -> 9.773404756
A182: ANAMET-S | B182: 8120326 | C182: M32 x 1,5 | D182: Multiflex fittings for SL / SLI, Straight fixed with male thread, IP 40 | E182: 5 | F182: 15.94216974 | G182: =F182*(1-Elteq!$F$6) -> 15.94216974
A183: ANAMET-S | B183: 8120406 | C183: M40 x 1,5 | D183: Multiflex fittings for SL / SLI, Straight fixed with male thread, IP 40 | E183: 2 | F183: 21.37700033 | G183: =F183*(1-Elteq!$F$6) -> 21.37700033
A184: ANAMET-S | B184: 8123156 | C184: M16 x 1,5 | D184: Multiflex fittings for SL / SLI, Straight fixed with female thread, IP 40 | E184: 10 | F184: 6.512506401 | G184: =F184*(1-Elteq!$F$6) -> 6.512506401
A185: ANAMET-S | B185: 8123166 | C185: M16 x 1,5 | D185: Multiflex fittings for SL / SLI, Straight fixed with female thread, IP 40 | E185: 10 | F185: 7.460117889 | G185: =F185*(1-Elteq!$F$6) -> 7.460117889
A186: ANAMET-S | B186: 8123206 | C186: M20 x 1,5 | D186: Multiflex fittings for SL / SLI, Straight fixed with female thread, IP 40 | E186: 10 | F186: 7.803859311 | G186: =F186*(1-Elteq!$F$6) -> 7.803859311
A187: ANAMET-S | B187: 8123256 | C187: M25 x 1,5 | D187: Multiflex fittings for SL / SLI, Straight fixed with female thread, IP 40 | E187: 5 | F187: 10.98114489 | G187: =F187*(1-Elteq!$F$6) -> 10.98114489
A188: ANAMET-S | B188: 8123326 | C188: M32 x 1,5 | D188: Multiflex fittings for SL / SLI, Straight fixed with female thread, IP 40 | E188: 5 | F188: 16.06294375 | G188: =F188*(1-Elteq!$F$6) -> 16.06294375
A189: ANAMET-S | B189: 8123406 | C189: M40 x 1,5 | D189: Multiflex fittings for SL / SLI, Straight fixed with female thread, IP 40 | E189: 2 | F189: 27.36924944 | G189: =F189*(1-Elteq!$F$6) -> 27.36924944
A190: ANAMET-S | B190: 8127156 | C190: M16 x 1,5 | D190: Multiflex fittings for SL / SLI, Straight cablehose male thread, IP 68 | E190: 10 | F190: 10.76746779 | G190: =F190*(1-Elteq!$F$6) -> 10.76746779
A191: ANAMET-S | B191: 8127166 | C191: M16 x 1,5 | D191: Multiflex fittings for SL / SLI, Straight cablehose male thread, IP 68 | E191: 10 | F191: 12.90423879 | G191: =F191*(1-Elteq!$F$6) -> 12.90423879
A192: ANAMET-S | B192: 8127176 | C192: M20 x 1,5 | D192: Multiflex fittings for SL / SLI, Straight cablehose male thread, IP 68 | E192: 10 | F192: 12.90423879 | G192: =F192*(1-Elteq!$F$6) -> 12.90423879
A193: ANAMET-S | B193: 8127206 | C193: M20 x 1,5 | D193: Multiflex fittings for SL / SLI, Straight cablehose male thread, IP 68 | E193: 10 | F193: 14.46501065 | G193: =F193*(1-Elteq!$F$6) -> 14.46501065
A194: ANAMET-S | B194: 8127256 | C194: M25 x 1,5 | D194: Multiflex fittings for SL / SLI, Straight cablehose male thread, IP 68 | E194: 5 | F194: 23.02138497 | G194: =F194*(1-Elteq!$F$6) -> 23.02138497
A195: ANAMET-S | B195: 8127326 | C195: M32 x 1,5 | D195: Multiflex fittings for SL / SLI, Straight cablehose male thread, IP 68 | E195: 5 | F195: 54.90572444 | G195: =F195*(1-Elteq!$F$6) -> 54.90572444
A196: ANAMET-S | B196: 8127406 | C196: M40 x 1,5 | D196: Multiflex fittings for SL / SLI, Straight cablehose male thread, IP 68 | E196: 2 | F196: 68.46028484 | G196: =F196*(1-Elteq!$F$6) -> 68.46028484
A197: ANAMET-S | B197: 8172106 | C197: M32 x 1,5 | D197: Multiflex fittings for SL / SLI, Connection ring SL / SLI | E197: 10 | F197: 0.7432246963 | G197: =F197*(1-Elteq!$F$6) -> 0.7432246963
A198: =REPLACE(CELL("Filename",$A$1),1,FIND("]",CELL("filename",$A$1)),"") -> ANAMET-S | B198: 8172356 | C198: - | D198: Multiflex fittings for SL / SLI, Connection ring SL / SLI | E198: 2 | F198: 3.530317307 | G198: =F198*(1-Elteq!$F$6) -> 3.530317307
A199: ANAMET-S | B199: 8173126 | C199: - | D199: Multiflex fittings for SL / SLI, Connection set for SL / SLI | E199: 10 | F199: 2.879995698 | G199: =F199*(1-Elteq!$F$6) -> 2.879995698
A200: ANAMET-S | B200: 8173166 | C200: - | D200: Multiflex fittings for SL / SLI, Connection set for SL / SLI | E200: 10 | F200: 2.879995698 | G200: =F200*(1-Elteq!$F$6) -> 2.879995698
A201: ANAMET-S | B201: 8173206 | C201: - | D201: Multiflex fittings for SL / SLI, Connection set for SL / SLI | E201: 5 | F201: 3.716123481 | G201: =F201*(1-Elteq!$F$6) -> 3.716123481
A202: ANAMET-S | B202: 8173266 | C202: - | D202: Multiflex fittings for SL / SLI, Connection set for SL / SLI | E202: 5 | F202: 5.667088309 | G202: =F202*(1-Elteq!$F$6) -> 5.667088309
A203: ANAMET-S | B203: 8172106 | C203: M32 x 1,5 | D203: Multiflex fittings for SL / SLI, Connection ring SL / SLI | E203: 10 | F203: 0.7432246963 | G203: =F203*(1-Elteq!$F$6) -> 0.7432246963
... 3900 more rows

Sheet BIMED
A4: sheetname | B4: Názov tovaru | C4: Typ a veľkosť závitu | D4: Popis | E4: Balenie | F4: Cena za ks | G4: Cena za kus po zľave | H4: EAN
A5: =REPLACE(CELL("Filename",$A$1),1,FIND("]",CELL("filename",$A$1)),"") -> BIMED | B5: BS-01 | C5: Pg 7 | D5: Vývodka šedá Pg7 | E5: 100 | F5: 0.1517 | G5: =F5*(1-Elteq!$F$7) -> 0.1517 | H5: 869760630586
A6: =REPLACE(CELL("Filename",$A$1),1,FIND("]",CELL("filename",$A$1)),"") -> BIMED | B6: BS-02 | C6: Pg 9 | D6: Vývodka šedá Pg9 | E6: 50 | F6: 0.162 | G6: =F6*(1-Elteq!$F$7) -> 0.162 | H6: 869760630594
A7: BIMED | B7: BS-03 | C7: Pg 11 | D7: Vývodka šedá Pg11 | E7: 50 | F7: 0.1674 | G7: =F7*(1-Elteq!$F$7) -> 0.1674 | H7: 869760630603
A8: BIMED | B8: BS-04 | C8: Pg 13.5 | D8: Vývodka šedá Pg13,5 | E8: 50 | F8: 0.1964 | G8: =F8*(1-Elteq!$F$7) -> 0.1964 | H8: 869760630612
A9: BIMED | B9: BS-05 | C9: Pg 16 | D9: Vývodka šedá Pg16 | E9: 50 | F9: 0.2426 | G9: =F9*(1-Elteq!$F$7) -> 0.2426 | H9: 869760630621
A10: BIMED | B10: BS-06 | C10: Pg 21 | D10: Vývodka šedá Pg21 | E10: 25 | F10: 0.3713 | G10: =F10*(1-Elteq!$F$7) -> 0.3713 | H10: 869760630630
A11: BIMED | B11: BS-07 | C11: Pg 29 | D11: Vývodka šedá Pg29 | E11: 20 | F11: 0.8024 | G11: =F11*(1-Elteq!$F$7) -> 0.8024 | H11: 869760630638
A12: BIMED | B12: BS-08 | C12: Pg 36 | D12: Vývodka šedá Pg36 | E12: 10 | F12: 1.5626 | G12: =F12*(1-Elteq!$F$7) -> 1.5626 | H12: 869760630647
A13: BIMED | B13: BS-09 | C13: Pg 42 | D13: Vývodka šedá Pg42 | E13: 1 (10) | F13: 2.4689 | G13: =F13*(1-Elteq!$F$7) -> 2.4689 | H13: 869760630655
A14: BIMED | B14: BS-10 | C14: Pg 48 | D14: Vývodka šedá Pg48 | E14: 1 (10) | F14: 2.4108 | G14: =F14*(1-Elteq!$F$7) -> 2.4108 | H14: 869760630662
A15: BIMED | B15: BS-11 | C15: Pg 7 | D15: Vývodka svetlo šedá Pg7 | E15: 100 | F15: 0.1517 | G15: =F15*(1-Elteq!$F$7) -> 0.1517 | H15: 869760630670
A16: BIMED | B16: BS-12 | C16: Pg 9 | D16: Vývodka svetlo šedá Pg9 | E16: 50 | F16: 0.162 | G16: =F16*(1-Elteq!$F$7) -> 0.162 | H16: 869760630683
A17: BIMED | B17: BS-13 | C17: Pg 11 | D17: Vývodka svetlo šedá Pg11 | E17: 50 | F17: 0.1674 | G17: =F17*(1-Elteq!$F$7) -> 0.1674 | H17: 869760630696
A18: BIMED | B18: BS-14 | C18: Pg 13.5 | D18: Vývodka svetlo šedá Pg13,5 | E18: 50 | F18: 0.1964 | G18: =F18*(1-Elteq!$F$7) -> 0.1964 | H18: 869760630708
A19: BIMED | B19: BS-15 | C19: Pg 16 | D19: Vývodka svetlo šedá Pg16 | E19: 50 | F19: 0.2426 | G19: =F19*(1-Elteq!$F$7) -> 0.2426 | H19: 869760630722
A20: BIMED | B20: BS-16 | C20: Pg 21 | D20: Vývodka svetlo šedá Pg21 | E20: 25 | F20: 0.3713 | G20: =F20*(1-Elteq!$F$7) -> 0.3713 | H20: 869760630735
A21: BIMED | B21: BS-17 | C21: Pg 29 | D21: Vývodka svetlo šedá Pg29 | E21: 20 | F21: 0.8024 | G21: =F21*(1-Elteq!$F$7) -> 0.8024 | H21: 869760630747
A22: BIMED | B22: BS-18 | C22: Pg 36 | D22: Vývodka svetlo šedá Pg36 | E22: 10 | F22: 1.5626 | G22: =F22*(1-Elteq!$F$7) -> 1.5626 | H22: 869760630758
A23: BIMED | B23: BS-19 | C23: Pg 42 | D23: Vývodka svetlo šedá Pg42 | E23: 1 (10) | F23: 2.4689 | G23: =F23*(1-Elteq!$F$7) -> 2.4689 | H23: 869760630770
A24: BIMED | B24: BS-20 | C24: Pg 48 | D24: Vývodka svetlo šedá Pg48 | E24: 1 (10) | F24: 2.4108 | G24: =F24*(1-Elteq!$F$7) -> 2.4108 | H24: 869760630781
A25: BIMED | B25: BS-21 | C25: Pg 7 | D25: Vývodka čierna Pg7 | E25: 100 | F25: 0.1517 | G25: =F25*(1-Elteq!$F$7) -> 0.1517 | H25: 869760630790
A26: BIMED | B26: BS-22 | C26: Pg 9 | D26: Vývodka čierna Pg9 | E26: 50 | F26: 0.162 | G26: =F26*(1-Elteq!$F$7) -> 0.162 | H26: 869760630799
A27: BIMED | B27: BS-23 | C27: Pg 11 | D27: Vývodka čierna Pg11 | E27: 50 | F27: 0.1674 | G27: =F27*(1-Elteq!$F$7) -> 0.1674 | H27: 869760630808
A28: BIMED | B28: BS-24 | C28: Pg 13.5 | D28: Vývodka čiernaPg13,5 | E28: 50 | F28: 0.1964 | G28: =F28*(1-Elteq!$F$7) -> 0.1964 | H28: 869760630816
A29: BIMED | B29: BS-25 | C29: Pg 16 | D29: Vývodka čierna Pg16 | E29: 50 | F29: 0.2426 | G29: =F29*(1-Elteq!$F$7) -> 0.2426 | H29: 869760630827
A30: BIMED | B30: BS-26 | C30: Pg 21 | D30: Vývodka čierna Pg21 | E30: 25 | F30: 0.3713 | G30: =F30*(1-Elteq!$F$7) -> 0.3713 | H30: 869760630835
A31: BIMED | B31: BS-27 | C31: Pg 29 | D31: Vývodka čierna Pg29 | E31: 20 | F31: 0.8024 | G31: =F31*(1-Elteq!$F$7) -> 0.8024 | H31: 869760630843
A32: BIMED | B32: BS-28 | C32: Pg 36 | D32: Vývodka čierna Pg36 | E32: 10 | F32: 1.5626 | G32: =F32*(1-Elteq!$F$7) -> 1.5626 | H32: 869760630850
A33: BIMED | B33: BS-29 | C33: Pg 42 | D33: Vývodka čierna Pg42 | E33: 1 (10) | F33: 2.4689 | G33: =F33*(1-Elteq!$F$7) -> 2.4689 | H33: 869760630856
A34: BIMED | B34: BS-30 | C34: Pg 48 | D34: Vývodka čierna Pg48 | E34: 1 (10) | F34: 2.4108 | G34: =F34*(1-Elteq!$F$7) -> 2.4108 | H34: 869760630860
A35: BIMED | B35: BD-11 | C35: PG 7 | D35: Vývodka Pq 7 svetlošedá | E35: 100 | F35: 0.1074 | G35: =F35*(1-Elteq!$F$7) -> 0.1074 | H35: 869760631223
A36: BIMED | B36: BD-12 | C36: PG 9 | D36: Vývodka Pq 9 svetlošedá | E36: 50 | F36: 0.1151 | G36: =F36*(1-Elteq!$F$7) -> 0.1151 | H36: 869760631224
A37: BIMED | B37: BD-13 | C37: Pg 11 | D37: Vývodka Pq 11 svetlošedá | E37: 50 | F37: 0.1232 | G37: =F37*(1-Elteq!$F$7) -> 0.1232 | H37: 869760631226
A38: BIMED | B38: BD-14 | C38: PG 13,5 | D38: Vývodka Pq 13,5 svetlošedá | E38: 50 | F38: 0.1457 | G38: =F38*(1-Elteq!$F$7) -> 0.1457 | H38: 869760631228
A39: BIMED | B39: BD-15 | C39: PG 16 | D39: Vývodka Pq 16 svetlošedá | E39: 50 | F39: 0.1569 | G39: =F39*(1-Elteq!$F$7) -> 0.1569 | H39: 869760631229
A40: BIMED | B40: BD-16 | C40: PG 21 | D40: Vývodka Pq 21 svetlošedá | E40: 25 | F40: 0.2242 | G40: =F40*(1-Elteq!$F$7) -> 0.2242 | H40: 869760631231
A41: BIMED | B41: BD-17 | C41: PG 29 | D41: Vývodka Pq 29 svetlošedá | E41: 20 | F41: 0.3643 | G41: =F41*(1-Elteq!$F$7) -> 0.3643 | H41: 869760631232
A42: BIMED | B42: BD-18 | C42: PG 36 | D42: Vývodka Pq 36 svetlošedá | E42: 10 | F42: 0.7283 | G42: =F42*(1-Elteq!$F$7) -> 0.7283 | H42: 869760631234
A43: BIMED | B43: BL-01 | C43: Pg 7 | D43: Matica Pq 7 šedá | E43: 100 | F43: 0.0316 | G43: =F43*(1-Elteq!$F$7) -> 0.0316 | H43: 869760631280
A44: BIMED | B44: BL-02 | C44: Pg 9 | D44: Matica Pq 9 šedá | E44: 50 | F44: 0.0316 | G44: =F44*(1-Elteq!$F$7) -> 0.0316 | H44: 869760631282
A45: BIMED | B45: BL-03 | C45: Pg 11 | D45: Matica Pq 11 šedá | E45: 50 | F45: 0.0348 | G45: =F45*(1-Elteq!$F$7) -> 0.0348 | H45: 869760631284
A46: BIMED | B46: BL-04 | C46: Pg 13.5 | D46: Matica Pq 13,5 šedá | E46: 50 | F46: 0.0377 | G46: =F46*(1-Elteq!$F$7) -> 0.0377 | H46: 869760631285
A47: BIMED | B47: BL-05 | C47: Pg 16 | D47: Matica Pq 16 šedá | E47: 50 | F47: 0.0421 | G47: =F47*(1-Elteq!$F$7) -> 0.0421 | H47: 869760631286
A48: BIMED | B48: BL-06 | C48: Pg 21 | D48: Matica Pq 21 šedá | E48: 25 | F48: 0.0587 | G48: =F48*(1-Elteq!$F$7) -> 0.0587 | H48: 869760631288
A49: BIMED | B49: BL-07 | C49: Pg 29 | D49: Matica Pq 29 šedá | E49: 20 | F49: 0.1021 | G49: =F49*(1-Elteq!$F$7) -> 0.1021 | H49: 869760631289
A50: BIMED | B50: BL-08 | C50: Pg 36 | D50: Matica Pq 36 šedá | E50: 10 | F50: 0.1705 | G50: =F50*(1-Elteq!$F$7) -> 0.1705 | H50: 869760631290
A51: BIMED | B51: BL-09 | C51: Pg 42 | D51: Matica Pq 42 šedá | E51: 1 (10) | F51: 0.3364 | G51: =F51*(1-Elteq!$F$7) -> 0.3364 | H51: 869760631293
A52: BIMED | B52: BL-10 | C52: Pg 48 | D52: Matica Pq 48 šedá | E52: 1 (10) | F52: 0.5041 | G52: =F52*(1-Elteq!$F$7) -> 0.5041 | H52: 869760631294
A53: BIMED | B53: BL-11 | C53: Pg 7 | D53: Matica Pq 7 svetlo šedá | E53: 100 | F53: 0.0316 | G53: =F53*(1-Elteq!$F$7) -> 0.0316 | H53: 869760631295
A54: BIMED | B54: BL-12 | C54: Pg 9 | D54: Matica Pq 9 svetlo šedá | E54: 50 | F54: 0.0316 | G54: =F54*(1-Elteq!$F$7) -> 0.0316 | H54: 869760631296
A55: BIMED | B55: BL-13 | C55: Pg 11 | D55: Matica Pq 11 svetlo šedá | E55: 50 | F55: 0.0348 | G55: =F55*(1-Elteq!$F$7) -> 0.0348 | H55: 869760631297
A56: BIMED | B56: BL-14 | C56: Pg 13.5 | D56: Matica Pq 13,5 svetlo šedá | E56: 50 | F56: 0.0377 | G56: =F56*(1-Elteq!$F$7) -> 0.0377 | H56: 869760631298
A57: BIMED | B57: BL-15 | C57: Pg 16 | D57: Matica Pq 16 svetlo šedá | E57: 50 | F57: 0.0421 | G57: =F57*(1-Elteq!$F$7) -> 0.0421 | H57: 869760631299
A58: BIMED | B58: BL-16 | C58: Pg 21 | D58: Matica Pq 21 svetlo šedá | E58: 25 | F58: 0.0587 | G58: =F58*(1-Elteq!$F$7) -> 0.0587 | H58: 869760631300
A59: BIMED | B59: BL-17 | C59: Pg 29 | D59: Matica Pq 29 svetlo šedá | E59: 20 | F59: 0.1021 | G59: =F59*(1-Elteq!$F$7) -> 0.1021 | H59: 869760631301
A60: BIMED | B60: BL-18 | C60: Pg 36 | D60: Matica Pq 36 svetlo šedá | E60: 10 | F60: 0.1705 | G60: =F60*(1-Elteq!$F$7) -> 0.1705 | H60: 869760631302
A61: BIMED | B61: BL-19 | C61: Pg 42 | D61: Matica Pq 42 svetlo šedá | E61: 1 (10) | F61: 0.3364 | G61: =F61*(1-Elteq!$F$7) -> 0.3364 | H61: 869760631303
A62: BIMED | B62: BL-20 | C62: Pg 48 | D62: Matica Pq 48 svetlo šedá | E62: 1 (10) | F62: 0.5041 | G62: =F62*(1-Elteq!$F$7) -> 0.5041 | H62: 869760631304
A63: BIMED | B63: BL-21 | C63: Pg 7 | D63: Matica Pq 7 čierna | E63: 100 | F63: 0.0316 | G63: =F63*(1-Elteq!$F$7) -> 0.0316 | H63: 869760631305
A64: BIMED | B64: BL-22 | C64: Pg 9 | D64: Matica Pq 9 čierna | E64: 50 | F64: 0.0316 | G64: =F64*(1-Elteq!$F$7) -> 0.0316 | H64: 869760631306
A65: BIMED | B65: BL-23 | C65: Pg 11 | D65: Matica Pq 11 čierna | E65: 50 | F65: 0.0348 | G65: =F65*(1-Elteq!$F$7) -> 0.0348 | H65: 869760631307
A66: BIMED | B66: BL-24 | C66: Pg 13.5 | D66: Matica Pq 13,5 čierna | E66: 50 | F66: 0.0377 | G66: =F66*(1-Elteq!$F$7) -> 0.0377 | H66: 869760631308
A67: BIMED | B67: BL-25 | C67: Pg 16 | D67: Matica Pq 16 čierna | E67: 50 | F67: 0.0421 | G67: =F67*(1-Elteq!$F$7) -> 0.0421 | H67: 869760631309
A68: BIMED | B68: BL-26 | C68: Pg 21 | D68: Matica Pq 21 čierna | E68: 25 | F68: 0.0587 | G68: =F68*(1-Elteq!$F$7) -> 0.0587 | H68: 869760631310
A69: BIMED | B69: BL-27 | C69: Pg 29 | D69: Matica Pq 29 čierna | E69: 20 | F69: 0.1021 | G69: =F69*(1-Elteq!$F$7) -> 0.1021 | H69: 869760631311
A70: =REPLACE(CELL("Filename",$A$1),1,FIND("]",CELL("filename",$A$1)),"") -> BIMED | B70: BL-28 | C70: Pg 36 | D70: Matica Pq 36 čierna | E70: 10 | F70: 0.1705 | G70: =F70*(1-Elteq!$F$7) -> 0.1705 | H70: 869760631312
A71: BIMED | B71: BL-29 | C71: Pg 42 | D71: Matica Pq 42 čierna | E71: 1 (10) | F71: 0.3364 | G71: =F71*(1-Elteq!$F$7) -> 0.3364 | H71: 869760631313
A72: BIMED | B72: BL-30 | C72: Pg 48 | D72: Matica Pq 48 čierna | E72: 1 (10) | F72: 0.5041 | G72: =F72*(1-Elteq!$F$7) -> 0.5041 | H72: 869760631314
A73: BIMED | B73: BMBS-1S | C73: M12 | D73: Záslepka s metrickým závitom M12x1,5 svetlošedá | E73: 100 | F73: 0.0877 | G73: =F73*(1-Elteq!$F$7) -> 0.0877
A74: BIMED | B74: BMBS-11 | C74: M16 | D74: Záslepka s metrickým závitom M16x1,5 svetlošedá | E74: 50 | F74: 0.0931 | G74: =F74*(1-Elteq!$F$7) -> 0.0931 | H74: 869760632230
A75: BIMED | B75: BMBS-12 | C75: M20 | D75: Záslepka s metrickým závitom M20x1,5 svetlošedá | E75: 50 | F75: 0.1096 | G75: =F75*(1-Elteq!$F$7) -> 0.1096
A76: BIMED | B76: BMBS-13 | C76: M25 | D76: Záslepka s metrickým závitom M25x1,5 svetlošedá | E76: 25 | F76: 0.1205 | G76: =F76*(1-Elteq!$F$7) -> 0.1205
A77: BIMED | B77: BMBS-14 | C77: M32 | D77: Záslepka s metrickým závitom M32x1,5 svetlošedá | E77: 20 | F77: 0.2082 | G77: =F77*(1-Elteq!$F$7) -> 0.2082
A78: BIMED | B78: BMBS-15 | C78: M40 | D78: Záslepka s metrickým závitom M40x1,5 svetlošedá | E78: 10 | F78: 0.5479 | G78: =F78*(1-Elteq!$F$7) -> 0.5479
A79: BIMED | B79: BMBS-16 | C79: M50 | D79: Záslepka s metrickým závitom M50x1,5 svetlošedá | E79: 10 | F79: 0.9228818025 | G79: =F79*(1-Elteq!$F$7) -> 0.9228818025
A80: BIMED | B80: BMBS-2S | C80: M12 | D80: Záslepka s metrickým závitom M12x1,5 čierna | E80: 100 | F80: 0.0877 | G80: =F80*(1-Elteq!$F$7) -> 0.0877
A81: BIMED | B81: BMBS-21 | C81: M16 | D81: Záslepka s metrickým závitom M16x1,5 čierna | E81: 50 | F81: 0.0931 | G81: =F81*(1-Elteq!$F$7) -> 0.0931
A82: BIMED | B82: BMBS-22 | C82: M20 | D82: Záslepka s metrickým závitom M20x1,5 čierna | E82: 50 | F82: 0.1096 | G82: =F82*(1-Elteq!$F$7) -> 0.1096
A83: BIMED | B83: BMBS-23 | C83: M25 | D83: Záslepka s metrickým závitom M25x1,5 čierna | E83: 25 | F83: 0.1205 | G83: =F83*(1-Elteq!$F$7) -> 0.1205
A84: BIMED | B84: BMBS-24 | C84: M32 | D84: Záslepka s metrickým závitom M32x1,5 čierna | E84: 20 | F84: 0.2082 | G84: =F84*(1-Elteq!$F$7) -> 0.2082
A85: BIMED | B85: BMBS-25 | C85: M40 | D85: Záslepka s metrickým závitom M40x1,5 čierna | E85: 10 | F85: 0.5479 | G85: =F85*(1-Elteq!$F$7) -> 0.5479
A86: BIMED | B86: BMBS-26 | C86: M50 | D86: Záslepka s metrickým závitom M50x1,5 čierna | E86: 10 | F86: 0.9228818025 | G86: =F86*(1-Elteq!$F$7) -> 0.9228818025
A87: BIMED | B87: BBS-11 | C87: Pg 7 | D87: Záslepka Pq 7 svetlošedá | E87: 100 | F87: 0.0373 | G87: =F87*(1-Elteq!$F$7) -> 0.0373
A88: BIMED | B88: BBS-12 | C88: Pg 9 | D88: Záslepka Pq 9 svetlošedá | E88: 50 | F88: 0.0373 | G88: =F88*(1-Elteq!$F$7) -> 0.0373
A89: BIMED | B89: BBS-13 | C89: Pg 11 | D89: Záslepka Pq 11 svetlošedá | E89: 50 | F89: 0.0465 | G89: =F89*(1-Elteq!$F$7) -> 0.0465
A90: BIMED | B90: BBS-14 | C90: Pg 13.5 | D90: Záslepka Pq 13,5 svetlošedá | E90: 50 | F90: 0.0504 | G90: =F90*(1-Elteq!$F$7) -> 0.0504 | H90: 869760632235
A91: BIMED | B91: BBS-15 | C91: Pg 16 | D91: Záslepka Pq 16 svetlošedá | E91: 50 | F91: 0.0561 | G91: =F91*(1-Elteq!$F$7) -> 0.0561 | H91: 869760632321
A92: BIMED | B92: BBS-16 | C92: Pg 21 | D92: Záslepka Pq 21 svetlošedá | E92: 25 | F92: 0.0785 | G92: =F92*(1-Elteq!$F$7) -> 0.0785
A93: BIMED | B93: BBS-17 | C93: Pg 29 | D93: Záslepka Pq 29 svetlošedá | E93: 20 | F93: 0.1361 | G93: =F93*(1-Elteq!$F$7) -> 0.1361
A94: BIMED | B94: BBS-18 | C94: Pg 36 | D94: Záslepka Pq 36 svetlošedá | E94: 10 | F94: 0.2275 | G94: =F94*(1-Elteq!$F$7) -> 0.2275
A95: BIMED | B95: BBS-21 | C95: Pg 7 | D95: Záslepka Pq 7 čierna | E95: 100 | F95: 0.0373 | G95: =F95*(1-Elteq!$F$7) -> 0.0373
A96: BIMED | B96: BBS-22 | C96: Pg 9 | D96: Záslepka Pq 9 čierna | E96: 50 | F96: 0.0373 | G96: =F96*(1-Elteq!$F$7) -> 0.0373
A97: BIMED | B97: BBS-23 | C97: Pg 11 | D97: Záslepka Pq 11 čierna | E97: 50 | F97: 0.0465 | G97: =F97*(1-Elteq!$F$7) -> 0.0465
A98: BIMED | B98: BBS-24 | C98: Pg 13.5 | D98: Záslepka Pq 13,5 čierna | E98: 50 | F98: 0.0504 | G98: =F98*(1-Elteq!$F$7) -> 0.0504
A99: BIMED | B99: BBS-25 | C99: Pg 16 | D99: Záslepka Pq 16 čierna | E99: 50 | F99: 0.0561 | G99: =F99*(1-Elteq!$F$7) -> 0.0561
A100: BIMED | B100: BBS-26 | C100: Pg 21 | D100: Záslepka Pq 21 čierna | E100: 25 | F100: 0.0785 | G100: =F100*(1-Elteq!$F$7) -> 0.0785
A101: BIMED | B101: BBS-27 | C101: Pg 29 | D101: Záslepka Pq 29 čierna | E101: 20 | F101: 0.1361 | G101: =F101*(1-Elteq!$F$7) -> 0.1361
A102: BIMED | B102: BBS-28 | C102: Pg 36 | D102: Záslepka Pq 36 čierna | E102: 10 | F102: 0.2275 | G102: =F102*(1-Elteq!$F$7) -> 0.2275
A103: BIMED | B103: BPT-21/BPM-2S | C103: PG 7/M12 | D103: Zátka z polyamidu čierna | E103: 100 | F103: 0.0504 | G103: =F103*(1-Elteq!$F$7) -> 0.0504
A104: BIMED | B104: BPT-22/BPM-E21 | C104: PG 9/M16 | D104: Zátka z polyamidu čierna | E104: 50 | F104: 0.0559 | G104: =F104*(1-Elteq!$F$7) -> 0.0559
A105: BIMED | B105: BPT-23/BPM-21 | C105: PG 11/M16 | D105: Zátka z polyamidu čierna | E105: 50 | F105: 0.0625 | G105: =F105*(1-Elteq!$F$7) -> 0.0625
A106: BIMED | B106: BPT-24/BPM-22 | C106: PG 13,5/M20 | D106: Zátka z polyamidu čierna | E106: 50 | F106: 0.0679 | G106: =F106*(1-Elteq!$F$7) -> 0.0679
A107: BIMED | B107: BPT-25/BPM-22L | C107: PG 16/M20 | D107: Zátka z polyamidu čierna | E107: 50 | F107: 0.0789 | G107: =F107*(1-Elteq!$F$7) -> 0.0789
A108: BIMED | B108: BPT-26/BPM-E23 | C108: PG 21/M25 | D108: Zátka z polyamidu čierna | E108: 25 | F108: 0.08991505562 | G108: =F108*(1-Elteq!$F$7) -> 0.08991505562
A109: BIMED | B109: BPT-27/BPM-24 | C109: PG 29/M32 | D109: Zátka z polyamidu čierna | E109: 20 | F109: 0.1044174839 | G109: =F109*(1-Elteq!$F$7) -> 0.1044174839
A110: BIMED | B110: BPT-28/BPM-E25 | C110: PG 36/M40 | D110: Zátka z polyamidu čierna | E110: 10 | F110: 0.1189199123 | G110: =F110*(1-Elteq!$F$7) -> 0.1189199123
A111: BIMED | B111: BPT-29/BPM-26 | C111: PG 42/M50 | D111: Zátka z polyamidu čierna | E111: 10 | F111: 0.1318402575 | G111: =F111*(1-Elteq!$F$7) -> 0.1318402575
A112: BIMED | B112: BPT-30/BPM-27 | C112: PG 48/M63 | D112: Zátka z polyamidu čierna | E112: 10 | F112: 0.139750673 | G112: =F112*(1-Elteq!$F$7) -> 0.139750673
A113: BIMED | B113: BM-0S | C113: M12 | D113: Vývodka M12 šedá | E113: 100 | F113: 0.1646 | G113: =F113*(1-Elteq!$F$7) -> 0.1646 | H113: 869760630078
A114: BIMED | B114: BM-01 | C114: M16 | D114: Vývodka M16 šedá TL10 | E114: 50 | F114: 0.1841 | G114: =F114*(1-Elteq!$F$7) -> 0.1841 | H114: 869760630040
A115: BIMED | B115: BM-01L | C115: M16 | D115: Vývodka M16 šedá TL15 | E115: 50 | F115: 0.32 | G115: =F115*(1-Elteq!$F$7) -> 0.32 | H115: 869760630044
A116: BIMED | B116: BM-02 | C116: M20 | D116: Vývodka M20 šedá TL10 SW24 H29 | E116: 50 | F116: 0.2207 | G116: =F116*(1-Elteq!$F$7) -> 0.2207 | H116: 869760630045
A117: BIMED | B117: BM-02L | C117: M20 | D117: Vývodka M20 šedá TL15 SW24 H29 | E117: 50 | F117: 0.324 | G117: =F117*(1-Elteq!$F$7) -> 0.324 | H117: 869760630050
A118: BIMED | B118: BM-03 | C118: M20 | D118: Vývodka M20 šedá TL 10 SW27 H31 | E118: 50 | F118: 0.3375 | G118: =F118*(1-Elteq!$F$7) -> 0.3375 | H118: 869760630052
A119: BIMED | B119: BM-04 | C119: M20 | D119: Vývodka M20 šedá TL 15 SW27 H31 | E119: 50 | F119: 0.35 | G119: =F119*(1-Elteq!$F$7) -> 0.35 | H119: 869760630057
A120: BIMED | B120: BM-05 | C120: M25 | D120: Vývodka M25 šedá TL10 | E120: 25 | F120: 0.3962 | G120: =F120*(1-Elteq!$F$7) -> 0.3962 | H120: 869760630058
A121: BIMED | B121: BM-06 | C121: M25 | D121: Vývodka M25 šedá TL15 | E121: 25 | F121: 0.5304 | G121: =F121*(1-Elteq!$F$7) -> 0.5304 | H121: 869760630065
A122: BIMED | B122: BM-07 | C122: M32 | D122: Vývodka M32 šedá | E122: 20 | F122: 0.9808 | G122: =F122*(1-Elteq!$F$7) -> 0.9808 | H122: 869760630066
A123: BIMED | B123: BM-08 | C123: M40 | D123: Vývodka M40 šedá | E123: 10 | F123: 1.6251 | G123: =F123*(1-Elteq!$F$7) -> 1.6251 | H123: 869760630070
A124: BIMED | B124: BM-09 | C124: M50 | D124: Vývodka M50 šedá | E124: 1 (10) | F124: 2.5774 | G124: =F124*(1-Elteq!$F$7) -> 2.5774 | H124: 869760630074
A125: BIMED | B125: BM-10 | C125: M63 | D125: Vývodka M63 šedá | E125: 1 (10) | F125: 2.8009 | G125: =F125*(1-Elteq!$F$7) -> 2.8009 | H125: 869760630082
A126: BIMED | B126: BM-1S | C126: M12 | D126: Vývodka M12 svetlošedá | E126: 100 | F126: 0.1646 | G126: =F126*(1-Elteq!$F$7) -> 0.1646 | H126: 869760630127
A127: BIMED | B127: BM-11 | C127: M16 | D127: Vývodka M16 svetlošedá TL10 | E127: 50 | F127: 0.1841 | G127: =F127*(1-Elteq!$F$7) -> 0.1841 | H127: 869760630087
A128: BIMED | B128: BM-11L | C128: M16 | D128: Vývodka M16 svetlošedá TL15 | E128: 50 | F128: 0.32 | G128: =F128*(1-Elteq!$F$7) -> 0.32 | H128: 869760630093
A129: BIMED | B129: BM-12 | C129: M20 | D129: Vývodka M20 svetlošedá TL10 SW24 H29 | E129: 50 | F129: 0.2207 | G129: =F129*(1-Elteq!$F$7) -> 0.2207 | H129: 869760630094
A130: BIMED | B130: BM-12L | C130: M20 | D130: Vývodka M20 svetlošedá TL15 SW24 H29 | E130: 50 | F130: 0.324 | G130: =F130*(1-Elteq!$F$7) -> 0.324 | H130: 869760630102
A131: BIMED | B131: BM-13 | C131: M20 | D131: Vývodka M20 svetlošedá TL 10 SW27 H31 | E131: 50 | F131: 0.33175 | G131: =F131*(1-Elteq!$F$7) -> 0.33175 | H131: 869760630103
A132: BIMED | B132: BM-14 | C132: M20 | D132: Vývodka M20 svetlošedá TL 15 SW27 H31 | E132: 50 | F132: 0.35 | G132: =F132*(1-Elteq!$F$7) -> 0.35 | H132: 869760630107
A133: BIMED | B133: BM-15 | C133: M25 | D133: Vývodka M25 svetlošedá TL10 | E133: 25 | F133: 0.3962 | G133: =F133*(1-Elteq!$F$7) -> 0.3962 | H133: 869760630108
A134: =REPLACE(CELL("Filename",$A$1),1,FIND("]",CELL("filename",$A$1)),"") -> BIMED | B134: BM-16 | C134: M25 | D134: Vývodka M25 svetlošedá TL15 | E134: 25 | F134: 0.5304 | G134: =F134*(1-Elteq!$F$7) -> 0.5304 | H134: 869760630113
A135: BIMED | B135: BM-17 | C135: M32 | D135: Vývodka M32 svetlošedá | E135: 20 | F135: 0.9808 | G135: =F135*(1-Elteq!$F$7) -> 0.9808 | H135: 869760630114
A136: BIMED | B136: BM-18 | C136: M40 | D136: Vývodka M40 svetlošedá | E136: 10 | F136: 1.6251 | G136: =F136*(1-Elteq!$F$7) -> 1.6251 | H136: 869760630118
A137: BIMED | B137: BM-19 | C137: M50 | D137: Vývodka M50 svetlošedá | E137: 1 (10) | F137: 2.5774 | G137: =F137*(1-Elteq!$F$7) -> 2.5774 | H137: 869760630122
A138: BIMED | B138: BM-20 | C138: M63 | D138: Vývodka M63 svetlošedá | E138: 1 (10) | F138: 2.8009 | G138: =F138*(1-Elteq!$F$7) -> 2.8009 | H138: 869760630132
A139: BIMED | B139: BM-2S | C139: M12 | D139: Vývodka M12 čierna | E139: 100 | F139: 0.216 | G139: =F139*(1-Elteq!$F$7) -> 0.216 | H139: 869760630170
A140: BIMED | B140: BM-21 | C140: M16 | D140: Vývodka M16 čierna TL10 | E140: 50 | F140: 0.1841 | G140: =F140*(1-Elteq!$F$7) -> 0.1841 | H140: 869760630137
A141: BIMED | B141: BM-21L | C141: M16 | D141: Vývodka M16 čierna TL15 | E141: 50 | F141: 0.2648386936 | G141: =F141*(1-Elteq!$F$7) -> 0.2648386936 | H141: 869760630141
A142: BIMED | B142: BM-22 | C142: M20 | D142: Vývodka M20 čierna TL10 SW24 H29 | E142: 50 | F142: 0.2207 | G142: =F142*(1-Elteq!$F$7) -> 0.2207 | H142: 869760630142
A143: BIMED | B143: BM-22L | C143: M20 | D143: Vývodka M20 čierna TL15 SW24 H29 | E143: 50 | F143: 0.324 | G143: =F143*(1-Elteq!$F$7) -> 0.324 | H143: 869760630149
A144: BIMED | B144: BM-23 | C144: M20 | D144: Vývodka M20 čierna TL 10 SW27 H31 | E144: 50 | F144: 0.3375 | G144: =F144*(1-Elteq!$F$7) -> 0.3375 | H144: 869760630150
A145: BIMED | B145: BM-24 | C145: M20 | D145: Vývodka M20 čierna TL 15 SW27 H31 | E145: 50 | F145: 0.35 | G145: =F145*(1-Elteq!$F$7) -> 0.35 | H145: 869760630152
A146: BIMED | B146: BM-25 | C146: M25 | D146: Vývodka M25 čierna TL10 | E146: 25 | F146: 0.3962 | G146: =F146*(1-Elteq!$F$7) -> 0.3962 | H146: 869760630154
A147: BIMED | B147: BM-26 | C147: M25 | D147: Vývodka M25 čierna TL15 | E147: 25 | F147: 0.5304 | G147: =F147*(1-Elteq!$F$7) -> 0.5304 | H147: 869760630159
A148: BIMED | B148: BM-27 | C148: M32 | D148: Vývodka M32 čierna | E148: 20 | F148: 0.9808 | G148: =F148*(1-Elteq!$F$7) -> 0.9808 | H148: 869760630160
A149: BIMED | B149: BM-28 | C149: M40 | D149: Vývodka M40 čierna | E149: 10 | F149: 1.6251 | G149: =F149*(1-Elteq!$F$7) -> 1.6251 | H149: 869760630165
A150: BIMED | B150: BM-29 | C150: M50 | D150: Vývodka M50 čierna | E150: 1 (10) | F150: 2.5774 | G150: =F150*(1-Elteq!$F$7) -> 2.5774 | H150: 869760630166
A151: BIMED | B151: BM-30 | C151: M63 | D151: Vývodka M63 čierna | E151: 1 (10) | F151: 2.8009 | G151: =F151*(1-Elteq!$F$7) -> 2.8009 | H151: 869760630173
A152: BIMED | B152: BML-0S | C152: M12 | D152: Matica M12 šedá | E152: 100 | F152: 0.0449 | G152: =F152*(1-Elteq!$F$7) -> 0.0449 | H152: 869760631406
A153: BIMED | B153: BML-01 | C153: M16 | D153: Matica M16 šedá | E153: 50 | F153: 0.057 | G153: =F153*(1-Elteq!$F$7) -> 0.057 | H153: 869760631392
A154: BIMED | B154: BML-02 | C154: M20 | D154: Matica M20 šedá | E154: 50 | F154: 0.0625 | G154: =F154*(1-Elteq!$F$7) -> 0.0625 | H154: 869760631393
A155: BIMED | B155: BML-03 | C155: M25 | D155: Matica M25 šedá | E155: 25 | F155: 0.0975 | G155: =F155*(1-Elteq!$F$7) -> 0.0975 | H155: 869760631394
A156: BIMED | B156: BML-04 | C156: M32 | D156: Matica M32 šedá | E156: 20 | F156: 0.1173 | G156: =F156*(1-Elteq!$F$7) -> 0.1173 | H156: 869760631397
A157: BIMED | B157: BML-05 | C157: M40 | D157: Matica M40 šedá | E157: 10 | F157: 0.3364 | G157: =F157*(1-Elteq!$F$7) -> 0.3364 | H157: 869760631398
A158: BIMED | B158: BML-06 | C158: M50 | D158: Matica M50 šedá | E158: 1 (10) | F158: 0.5041 | G158: =F158*(1-Elteq!$F$7) -> 0.5041 | H158: 869760631402
A159: BIMED | B159: BML-07 | C159: M63 | D159: Mativa M63 šedá | E159: 1 (10) | F159: 0.5611 | G159: =F159*(1-Elteq!$F$7) -> 0.5611 | H159: 869760631403
A160: BIMED | B160: BML-1S | C160: M12 | D160: Matica M12 svetlo šedá | E160: 100 | F160: 0.0449 | G160: =F160*(1-Elteq!$F$7) -> 0.0449 | H160: 869760631417
A161: BIMED | B161: BML-11 | C161: M16 | D161: Matica M16 svetlo šedá | E161: 50 | F161: 0.057 | G161: =F161*(1-Elteq!$F$7) -> 0.057 | H161: 869760631409
A162: BIMED | B162: BML-12 | C162: M20 | D162: Matica M20 svetlo šedá | E162: 50 | F162: 0.0625 | G162: =F162*(1-Elteq!$F$7) -> 0.0625 | H162: 869760631410
A163: BIMED | B163: BML-13 | C163: M25 | D163: Matica M25 svetlo šedá | E163: 25 | F163: 0.0975 | G163: =F163*(1-Elteq!$F$7) -> 0.0975 | H163: 869760631412
A164: BIMED | B164: BML-14 | C164: M32 | D164: Matica M32 svetlo šedá | E164: 20 | F164: 0.1173 | G164: =F164*(1-Elteq!$F$7) -> 0.1173 | H164: 869760631413
A165: BIMED | B165: BML-15 | C165: M40 | D165: Matica M40 svetlo šedá | E165: 10 | F165: 0.3364 | G165: =F165*(1-Elteq!$F$7) -> 0.3364 | H165: 869760631414
A166: BIMED | B166: BML-16 | C166: M50 | D166: Matica M50 svetlo šedá | E166: 1 (10) | F166: 0.5041 | G166: =F166*(1-Elteq!$F$7) -> 0.5041 | H166: 869760631415
A167: BIMED | B167: BML-17 | C167: M63 | D167: Matica M63 svetlo šedá | E167: 1 (10) | F167: 0.5611 | G167: =F167*(1-Elteq!$F$7) -> 0.5611 | H167: 869760631416
A168: BIMED | B168: BML-2S | C168: M12 | D168: Matica M12 čierna | E168: 100 | F168: 0.0449 | G168: =F168*(1-Elteq!$F$7) -> 0.0449 | H168: 869760631425
A169: BIMED | B169: BML-21 | C169: M16 | D169: Matica M16 čierna | E169: 50 | F169: 0.057 | G169: =F169*(1-Elteq!$F$7) -> 0.057 | H169: 869760631418
A170: BIMED | B170: BML-22 | C170: M20 | D170: Matica M20 čierna | E170: 50 | F170: 0.0625 | G170: =F170*(1-Elteq!$F$7) -> 0.0625 | H170: 869760631419
A171: BIMED | B171: BML-23 | C171: M25 | D171: Matica M25 čierna | E171: 25 | F171: 0.0975 | G171: =F171*(1-Elteq!$F$7) -> 0.0975 | H171: 869760631420
A172: BIMED | B172: BML-24 | C172: M32 | D172: Matica M32 čierna | E172: 20 | F172: 0.1173 | G172: =F172*(1-Elteq!$F$7) -> 0.1173 | H172: 869760631421
A173: BIMED | B173: BML-25 | C173: M40 | D173: Matica M40 čierna | E173: 10 | F173: 0.3364 | G173: =F173*(1-Elteq!$F$7) -> 0.3364 | H173: 869760631422
A174: BIMED | B174: BML-26 | C174: M50 | D174: Matica M50 čierna | E174: 1 (10) | F174: 0.5041 | G174: =F174*(1-Elteq!$F$7) -> 0.5041 | H174: 869760631423
A175: BIMED | B175: BML-27 | C175: M63 | D175: Matica M63 čierna | E175: 1 (10) | F175: 0.5611 | G175: =F175*(1-Elteq!$F$7) -> 0.5611 | H175: 869760631424
A176: BIMED | B176: BSSP-11 | C176: Pg 7 | D176: Špirálová káblová vývodka PG7 svetlošedá | E176: 100 | F176: 0.3408070656 | G176: =F176*(1-Elteq!$F$7) -> 0.3408070656 | H176: 869760631054
A177: BIMED | B177: BSSP-12 | C177: Pg 9 | D177: Špirálová káblová vývodka PG9 svetlošedá | E177: 50 | F177: 0.3886650791 | G177: =F177*(1-Elteq!$F$7) -> 0.3886650791 | H177: 869760631058
A178: BIMED | B178: BSSP-13 | C178: Pg 11 | D178: Špirálová káblová vývodka PG11 svetlošedá | E178: 50 | F178: 0.4756796491 | G178: =F178*(1-Elteq!$F$7) -> 0.4756796491 | H178: 869760631063
A179: BIMED | B179: BSSP-14 | C179: Pg 13.5 | D179: Špirálová káblová vývodka PG13.5 svetlošedá | E179: 50 | F179: 0.5336893624 | G179: =F179*(1-Elteq!$F$7) -> 0.5336893624 | H179: 869760631067
A180: BIMED | B180: BSSP-15 | C180: Pg 16 | D180: Špirálová káblová vývodka PG16 svetlošedá | E180: 50 | F180: 0.667111703 | G180: =F180*(1-Elteq!$F$7) -> 0.667111703 | H180: 869760631071
A181: BIMED | B181: BSSP-16 | C181: Pg 21 | D181: Špirálová káblová vývodka PG21 svetlošedá | E181: 25 | F181: 0.9934163403 | G181: =F181*(1-Elteq!$F$7) -> 0.9934163403 | H181: 869760631075
A182: BIMED | B182: BSSP-21 | C182: Pg 7 | D182: Špirálová káblová vývodka PG7 čierna | E182: 100 | F182: 0.3408070656 | G182: =F182*(1-Elteq!$F$7) -> 0.3408070656 | H182: 869760631078
A183: BIMED | B183: BSSP-22 | C183: Pg 9 | D183: Špirálová káblová vývodka PG9 čierna | E183: 50 | F183: 0.3886650791 | G183: =F183*(1-Elteq!$F$7) -> 0.3886650791 | H183: 869760631082
A184: BIMED | B184: BSSP-23 | C184: Pg 11 | D184: Špirálová káblová vývodka PG11 čierna | E184: 50 | F184: 0.4756796491 | G184: =F184*(1-Elteq!$F$7) -> 0.4756796491 | H184: 869760631085
A185: BIMED | B185: BSSP-24 | C185: Pg 13.5 | D185: Špirálová káblová vývodka PG13.5 čierna | E185: 50 | F185: 0.5336893624 | G185: =F185*(1-Elteq!$F$7) -> 0.5336893624 | H185: 869760631089
A186: BIMED | B186: BSSP-25 | C186: Pg 16 | D186: Špirálová káblová vývodka PG16 čierna | E186: 50 | F186: 0.667111703 | G186: =F186*(1-Elteq!$F$7) -> 0.667111703 | H186: 869760631091
A187: BIMED | B187: BSSP-26 | C187: Pg 21 | D187: Špirálová káblová vývodka PG21 čierna | E187: 25 | F187: 0.9934163403 | G187: =F187*(1-Elteq!$F$7) -> 0.9934163403 | H187: 869760631093
A188: BIMED | B188: BM-EN-1S | C188: M12 | D188: Vývodka Euro Metric M12 svetlošedá | E188: 100 | F188: 0.2178264734 | G188: =F188*(1-Elteq!$F$7) -> 0.2178264734
A189: BIMED | B189: BM-EN-11 | C189: M16 | D189: Vývodka Euro Metric M16 svetlošedá | E189: 50 | F189: 0.2436407959 | G189: =F189*(1-Elteq!$F$7) -> 0.2436407959 | H189: 869760630222
A190: BIMED | B190: BM-EN-12 | C190: M20 | D190: Vývodka Euro Metric M20 svetlošedá | E190: 50 | F190: 0.2920789065 | G190: =F190*(1-Elteq!$F$7) -> 0.2920789065
A191: BIMED | B191: BM-EN-13 | C191: M25 | D191: Vývodka Euro Metric M25 svetlošedá | E191: 25 | F191: 0.5244078082 | G191: =F191*(1-Elteq!$F$7) -> 0.5244078082 | H191: 869760630226
A192: BIMED | B192: BM-EN-14 | C192: M32 | D192: Vývodka Euro Metric M32 svetlošedá | E192: 20 | F192: 1.297967335 | G192: =F192*(1-Elteq!$F$7) -> 1.297967335 | H192: 869760630229
A193: BIMED | B193: BM-EN-15 | C193: M40 | D193: Vývodka Euro Metric M40 svetlošedá | E193: 10 | F193: 2.150710121 | G193: =F193*(1-Elteq!$F$7) -> 2.150710121 | H193: 869760630232
A194: BIMED | B194: BM-EN-16 | C194: M50 | D194: Vývodka Euro Metric M50 svetlošedá | E194: 1 (10) | F194: 3.410971142 | G194: =F194*(1-Elteq!$F$7) -> 3.410971142
A195: BIMED | B195: BM-EN-17 | C195: M63 | D195: Vývodka Euro Metric M63 svetlošedá | E195: 1 (10) | F195: 3.70682068 | G195: =F195*(1-Elteq!$F$7) -> 3.70682068
A196: BIMED | B196: BM-XS | C196: M12 | D196: Vývodka M12 EEX čierna | E196: 100 | F196: 0.4383 | G196: =F196*(1-Elteq!$F$7) -> 0.4383 | H196: 869760631180
A197: BIMED | B197: BM-X1 | C197: M16 | D197: Vývodka M16 EEX čierna | E197: 50 | F197: 0.5041 | G197: =F197*(1-Elteq!$F$7) -> 0.5041 | H197: 869760631153
A198: =REPLACE(CELL("Filename",$A$1),1,FIND("]",CELL("filename",$A$1)),"") -> BIMED | B198: BM-X1L | C198: M16 | D198: Vývodka M16 EEX čierna predĺžený záv. | E198: 50 | F198: 0.5041 | G198: =F198*(1-Elteq!$F$7) -> 0.5041 | H198: 869760631155
A199: BIMED | B199: BM-X2 | C199: M20 | D199: Vývodka M20 EEX čierna | E199: 50 | F199: 0.6728 | G199: =F199*(1-Elteq!$F$7) -> 0.6728 | H199: 869760631156
A200: BIMED | B200: BM-X2L | C200: M20 | D200: Vývodka M20 EEX čierna predĺženný záv. | E200: 50 | F200: 0.6728 | G200: =F200*(1-Elteq!$F$7) -> 0.6728 | H200: 869760631159
A201: BIMED | B201: BM-X3 | C201: M20 | D201: Vývodka M20 EEX čierna | E201: 50 | F201: 0.8986 | G201: =F201*(1-Elteq!$F$7) -> 0.8986 | H201: 869760631160
A202: BIMED | B202: BM-X4 | C202: M20 | D202: Vývodka M20 EEX čierna | E202: 50 | F202: 0.9205 | G202: =F202*(1-Elteq!$F$7) -> 0.9205 | H202: 869760631163
A203: BIMED | B203: BM-X5 | C203: M25 | D203: Vývodka M25 EEX čierna | E203: 25 | F203: 0.9534 | G203: =F203*(1-Elteq!$F$7) -> 0.9534 | H203: 869760631167
... 215 more rows

Sheet REIKU-B
A4: sheetname | B4: Obj.kód čierna | D4: Popis | E4: Balenie | F4: Cena za ks alebo m | G4: Cena za kus po zľave
A5: =REPLACE(CELL("Filename",$A$1),1,FIND("]",CELL("filename",$A$1)),"") -> REIKU-B | B5: AFFSS-M10 | E5: 50 | F5: 0.1419412356 | G5: =F5*(1-Elteq!$F$8) -> 0.1419412356
A6: =REPLACE(CELL("Filename",$A$1),1,FIND("]",CELL("filename",$A$1)),"") -> REIKU-B | B6: AFFSS-M12 | E6: 50 | F6: 0.1548449843 | G6: =F6*(1-Elteq!$F$8) -> 0.1548449843
A7: REIKU-B | B7: AFFSS-M16 | E7: 50 | F7: 0.167748733 | G7: =F7*(1-Elteq!$F$8) -> 0.167748733
A8: REIKU-B | B8: AFFSS-M20 | E8: 50 | F8: 0.2064599791 | G8: =F8*(1-Elteq!$F$8) -> 0.2064599791
A9: REIKU-B | B9: AFFSS-M25 | E9: 50 | F9: 0.2322674765 | G9: =F9*(1-Elteq!$F$8) -> 0.2322674765
A10: REIKU-B | B10: AFFSS-M32 | E10: 30 | F10: 0.3354974661 | G10: =F10*(1-Elteq!$F$8) -> 0.3354974661
A11: REIKU-B | B11: AFFSS-M40 | E11: 10 | F11: 0.5032461991 | G11: =F11*(1-Elteq!$F$8) -> 0.5032461991
A12: REIKU-B | B12: AFFSS-M50 | E12: 10 | F12: 0.7097061782 | G12: =F12*(1-Elteq!$F$8) -> 0.7097061782
A13: REIKU-B | B13: AFFSS-M63 | E13: 10 | F13: 0.9419736548 | G13: =F13*(1-Elteq!$F$8) -> 0.9419736548
A14: REIKU-B | B14: AFFSS-P07 | E14: 100 | F14: 0.1548449843 | G14: =F14*(1-Elteq!$F$8) -> 0.1548449843
A15: REIKU-B | B15: AFFSS-P09 | E15: 100 | F15: 0.1548449843 | G15: =F15*(1-Elteq!$F$8) -> 0.1548449843
A16: REIKU-B | B16: AFFSS-P11 | E16: 100 | F16: 0.167748733 | G16: =F16*(1-Elteq!$F$8) -> 0.167748733
A17: REIKU-B | B17: AFFSS-P13 | E17: 100 | F17: 0.1806524817 | G17: =F17*(1-Elteq!$F$8) -> 0.1806524817
A18: REIKU-B | B18: AFFSS-P16 | E18: 50 | F18: 0.1935562304 | G18: =F18*(1-Elteq!$F$8) -> 0.1935562304
A19: REIKU-B | B19: AFFSS-P21 | E19: 50 | F19: 0.2322674765 | G19: =F19*(1-Elteq!$F$8) -> 0.2322674765
A20: REIKU-B | B20: AFFSS-P29 | E20: 30 | F20: 0.3354974661 | G20: =F20*(1-Elteq!$F$8) -> 0.3354974661
A21: REIKU-B | B21: AFFSS-P36 | E21: 20 | F21: 0.4000162096 | G21: =F21*(1-Elteq!$F$8) -> 0.4000162096
A22: REIKU-B | B22: AFFSS-P42 | E22: 10 | F22: 1.006492398 | G22: =F22*(1-Elteq!$F$8) -> 1.006492398
A23: REIKU-B | B23: AFFSS-P48 | E23: 10 | F23: 0.4774387017 | G23: =F23*(1-Elteq!$F$8) -> 0.4774387017
A24: REIKU-B | B24: BIORRB-12F | E24: 50 | F24: 2.110811363 | G24: =F24*(1-Elteq!$F$8) -> 2.110811363
A25: REIKU-B | B25: BIORRB-17F | E25: 50 | F25: 3.220214545 | G25: =F25*(1-Elteq!$F$8) -> 3.220214545
A26: REIKU-B | B26: BIORRB-23F | E26: 50 | F26: 5.134671362 | G26: =F26*(1-Elteq!$F$8) -> 5.134671362
A27: REIKU-B | B27: BIORRB-29F | E27: 50 | F27: 6.50915318 | G27: =F27*(1-Elteq!$F$8) -> 6.50915318
A28: REIKU-B | B28: BIORRB-36G | E28: 30 | F28: 9.267934543 | G28: =F28*(1-Elteq!$F$8) -> 9.267934543
A29: REIKU-B | B29: BIORRB-48G | E29: 30 | F29: 12.82195182 | G29: =F29*(1-Elteq!$F$8) -> 12.82195182
A30: REIKU-B | B30: BIORRB-52G | E30: 10/30 | F30: 18.35836458 | G30: =F30*(1-Elteq!$F$8) -> 18.35836458
A31: REIKU-B | B31: BIORRB-70G | E31: 10/30 | F31: 30.37604817 | G31: =F31*(1-Elteq!$F$8) -> 30.37604817
A32: REIKU-B | B32: EMV M16 | E32: 30 | F32: 21.94927653 | G32: =F32*(1-Elteq!$F$8) -> 21.94927653
A33: REIKU-B | B33: EMV M20 | E33: 20 | F33: 23.75580135 | G33: =F33*(1-Elteq!$F$8) -> 23.75580135
A34: REIKU-B | B34: EMV M25 | E34: 20 | F34: 26.2333211 | G34: =F34*(1-Elteq!$F$8) -> 26.2333211
A35: REIKU-B | B35: EMV M32 | E35: 10 | F35: 32.6722917 | G35: =F35*(1-Elteq!$F$8) -> 32.6722917
A36: REIKU-B | B36: EMV M40 | E36: 10 | F36: 39.57579725 | G36: =F36*(1-Elteq!$F$8) -> 39.57579725
A37: REIKU-B | B37: EMV M50 | E37: 10 | F37: 53.21505962 | G37: =F37*(1-Elteq!$F$8) -> 53.21505962
A38: REIKU-B | B38: EMV M63 | E38: 10 | F38: 56.44099679 | G38: =F38*(1-Elteq!$F$8) -> 56.44099679
A39: REIKU-B | B39: EMV P16 | E39: 30 | F39: 21.94927653 | G39: =F39*(1-Elteq!$F$8) -> 21.94927653
A40: REIKU-B | B40: EMV P21 | E40: 20 | F40: 23.75580135 | G40: =F40*(1-Elteq!$F$8) -> 23.75580135
A41: REIKU-B | B41: EMV P29 | E41: 20 | F41: 26.2333211 | G41: =F41*(1-Elteq!$F$8) -> 26.2333211
A42: REIKU-B | B42: EMV P36 | E42: 10 | F42: 32.6722917 | G42: =F42*(1-Elteq!$F$8) -> 32.6722917
A43: REIKU-B | B43: EMV P48 | E43: 10 | F43: 39.57579725 | G43: =F43*(1-Elteq!$F$8) -> 39.57579725
A44: REIKU-B | B44: FSSF-23-600 | E44: 1 | F44: 74.33197671 | G44: =F44*(1-Elteq!$F$8) -> 74.33197671
A45: REIKU-B | B45: FSSF-29-400 | E45: 1 | F45: 57.3418106 | G45: =F45*(1-Elteq!$F$8) -> 57.3418106
A46: REIKU-B | B46: FSSF-36-400 | E46: 1 | F46: 57.3418106 | G46: =F46*(1-Elteq!$F$8) -> 57.3418106
A47: REIKU-B | B47: FSMF-29-600 | E47: 1 | F47: 74.33197671 | G47: =F47*(1-Elteq!$F$8) -> 74.33197671
A48: REIKU-B | B48: FSMF-36-400 | E48: 1 | F48: 67.96066442 | G48: =F48*(1-Elteq!$F$8) -> 67.96066442
A49: REIKU-B | B49: FSMF-36-600 | E49: 1 | F49: 82.82705976 | G49: =F49*(1-Elteq!$F$8) -> 82.82705976
A50: REIKU-B | B50: FSMF-48-550 | E50: 1 | F50: 108.4858863 | G50: =F50*(1-Elteq!$F$8) -> 108.4858863
A51: REIKU-B | B51: FSMF-52-1000 | E51: 1 | F51: 106.1885382 | G51: =F51*(1-Elteq!$F$8) -> 106.1885382
A52: REIKU-B | B52: FSMF-52-52-1000 | E52: 1 | F52: 163.3669818 | G52: =F52*(1-Elteq!$F$8) -> 163.3669818
A53: REIKU-B | B53: FSMF-70-550 | E53: 1 | F53: 63.71312289 | G53: =F53*(1-Elteq!$F$8) -> 63.71312289
A54: REIKU-B | B54: FSMF-70-1000 | E54: 1 | F54: 104.0647674 | G54: =F54*(1-Elteq!$F$8) -> 104.0647674
A55: REIKU-B | B55: FSVF-52-1000 | E55: 1 | F55: 106.1885382 | G55: =F55*(1-Elteq!$F$8) -> 106.1885382
A56: REIKU-B | B56: FSVF-70-1000 | E56: 1 | F56: 116.807392 | G56: =F56*(1-Elteq!$F$8) -> 116.807392
A57: REIKU-B | B57: LPRRB-10F | E57: 100 | F57: 1.582253796 | G57: =F57*(1-Elteq!$F$8) -> 1.582253796
A58: REIKU-B | B58: LPRRB-12F | E58: 50 | F58: 2.168423574 | G58: =F58*(1-Elteq!$F$8) -> 2.168423574
A59: REIKU-B | B59: LPRRB-17F | E59: 50 | F59: 3.375660209 | G59: =F59*(1-Elteq!$F$8) -> 3.375660209
A60: REIKU-B | B60: LPRRB-23G | E60: 50 | F60: 5.321298808 | G60: =F60*(1-Elteq!$F$8) -> 5.321298808
A61: REIKU-B | B61: LPRRB-29G | E61: 50 | F61: 6.739435181 | G61: =F61*(1-Elteq!$F$8) -> 6.739435181
A62: REIKU-B | B62: LPRRB-36G | E62: 30 | F62: 9.575960806 | G62: =F62*(1-Elteq!$F$8) -> 9.575960806
A63: REIKU-B | B63: LPRRB-48G | E63: 30 | F63: 13.83062281 | G63: =F63*(1-Elteq!$F$8) -> 13.83062281
A64: REIKU-B | B64: LPRRB-52G | E64: 10/30 | F64: 20.0779586 | G64: =F64*(1-Elteq!$F$8) -> 20.0779586
A65: REIKU-B | B65: LPRRB-70G | E65: 10/30 | F65: 32.68945953 | G65: =F65*(1-Elteq!$F$8) -> 32.68945953
A66: REIKU-B | B66: LPRRB-95G | E66: 10/30 | F66: 44.15994091 | G66: =F66*(1-Elteq!$F$8) -> 44.15994091
A67: REIKU-B | B67: MES1B-07 | E67: 100 | F67: 0.4516312043 | G67: =F67*(1-Elteq!$F$8) -> 0.4516312043
A68: REIKU-B | B68: MES1B-10 | E68: 100 | F68: 0.464534953 | G68: =F68*(1-Elteq!$F$8) -> 0.464534953
A69: REIKU-B | B69: MES1B-12 | E69: 100 | F69: 0.4774387017 | G69: =F69*(1-Elteq!$F$8) -> 0.4774387017
A70: =REPLACE(CELL("Filename",$A$1),1,FIND("]",CELL("filename",$A$1)),"") -> REIKU-B | B70: MES1B-14 | E70: 100 | F70: 0.5418631201 | G70: =F70*(1-Elteq!$F$8) -> 0.5418631201
A71: REIKU-B | B71: MES1B-17 | E71: 100 | F71: 0.5419574452 | G71: =F71*(1-Elteq!$F$8) -> 0.5419574452
A72: REIKU-B | B72: MES1B-23 | E72: 50 | F72: 0.5806686913 | G72: =F72*(1-Elteq!$F$8) -> 0.5806686913
A73: REIKU-B | B73: MES1B-29 | E73: 30 | F73: 0.6709949322 | G73: =F73*(1-Elteq!$F$8) -> 0.6709949322
A74: REIKU-B | B74: MES1B-36 | E74: 20 | F74: 0.7871286704 | G74: =F74*(1-Elteq!$F$8) -> 0.7871286704
A75: REIKU-B | B75: MES1B-48 | E75: 20 | F75: 1.148433634 | G75: =F75*(1-Elteq!$F$8) -> 1.148433634
A76: REIKU-B | B76: MES1B-52 | E76: 20 | F76: 1.664583582 | G76: =F76*(1-Elteq!$F$8) -> 1.664583582
A77: REIKU-B | B77: MES1B-70 | E77: 10 | F77: 2.606557236 | G77: =F77*(1-Elteq!$F$8) -> 2.606557236
A78: REIKU-B | B78: MES2B-52 | E78: 20 | F78: 1.471027351 | G78: =F78*(1-Elteq!$F$8) -> 1.471027351
A79: REIKU-B | B79: MES2B-70 | E79: 10 | F79: 2.606557236 | G79: =F79*(1-Elteq!$F$8) -> 2.606557236
A80: REIKU-B | B80: MES2B-95 | E80: 10 | F80: 3.574338389 | G80: =F80*(1-Elteq!$F$8) -> 3.574338389
A81: REIKU-B | B81: MSGMM-M12 | E81: 100 | F81: 0.464534953 | G81: =F81*(1-Elteq!$F$8) -> 0.464534953
A82: REIKU-B | B82: MSGMM-M16 | E82: 100 | F82: 0.4903424504 | G82: =F82*(1-Elteq!$F$8) -> 0.4903424504
A83: REIKU-B | B83: MSGMM-M20 | E83: 100 | F83: 0.5032461991 | G83: =F83*(1-Elteq!$F$8) -> 0.5032461991
A84: REIKU-B | B84: MSGMM-M25 | E84: 100 | F84: 0.7097061782 | G84: =F84*(1-Elteq!$F$8) -> 0.7097061782
A85: REIKU-B | B85: MSGMM-M32 | E85: 50 | F85: 0.9935886495 | G85: =F85*(1-Elteq!$F$8) -> 0.9935886495
A86: REIKU-B | B86: MSGMM-M40 | E86: 25 | F86: 1.67748733 | G86: =F86*(1-Elteq!$F$8) -> 1.67748733
A87: REIKU-B | B87: MSGMM-M50 | E87: 25 | F87: 3.909835855 | G87: =F87*(1-Elteq!$F$8) -> 3.909835855
A88: REIKU-B | B88: MSGMM-M63 | E88: 25 | F88: 5.084076986 | G88: =F88*(1-Elteq!$F$8) -> 5.084076986
A89: REIKU-B | B89: MSGMM-P07 | E89: 100 | F89: 0.1548449843 | G89: =F89*(1-Elteq!$F$8) -> 0.1548449843
A90: REIKU-B | B90: MSGMM-P09 | E90: 100 | F90: 0.1548449843 | G90: =F90*(1-Elteq!$F$8) -> 0.1548449843
A91: REIKU-B | B91: MSGMM-P11 | E91: 100 | F91: 0.167748733 | G91: =F91*(1-Elteq!$F$8) -> 0.167748733
A92: REIKU-B | B92: MSGMM-P13 | E92: 100 | F92: 0.1806524817 | G92: =F92*(1-Elteq!$F$8) -> 0.1806524817
A93: REIKU-B | B93: MSGMM-P16 | E93: 100 | F93: 0.2451712252 | G93: =F93*(1-Elteq!$F$8) -> 0.2451712252
A94: REIKU-B | B94: MSGMM-P21 | E94: 100 | F94: 0.3096899687 | G94: =F94*(1-Elteq!$F$8) -> 0.3096899687
A95: REIKU-B | B95: MSGMM-P29 | E95: 100 | F95: 0.4774387017 | G95: =F95*(1-Elteq!$F$8) -> 0.4774387017
A96: REIKU-B | B96: MSGMM-P36 | E96: 50 | F96: 0.8516474139 | G96: =F96*(1-Elteq!$F$8) -> 0.8516474139
A97: REIKU-B | B97: MSGMM-P48 | E97: 50 | F97: 1.793621069 | G97: =F97*(1-Elteq!$F$8) -> 1.793621069
A98: REIKU-B | B98: MSGRM-10M16 /price upon enquiry/ | G98: =F98*(1-Elteq!$F$8) -> 0
A99: REIKU-B | B99: MSGRM-12M20 /price upon enquiry/ | G99: =F99*(1-Elteq!$F$8) -> 0
A100: REIKU-B | B100: MSGRM-17M25 /price upon enquiry/ | G100: =F100*(1-Elteq!$F$8) -> 0
A101: REIKU-B | B101: MSGRM-23M32 /price upon enquiry/ | G101: =F101*(1-Elteq!$F$8) -> 0
A102: REIKU-B | B102: MSGRM-29M40 /price upon enquiry/ | G102: =F102*(1-Elteq!$F$8) -> 0
A103: REIKU-B | B103: MSGRM-36M50 /price upon enquiry/ | G103: =F103*(1-Elteq!$F$8) -> 0
A104: REIKU-B | B104: MSGRM-48M63 /price upon enquiry/ | G104: =F104*(1-Elteq!$F$8) -> 0
A105: REIKU-B | B105: MSGVM-10M16 /price upon enquiry/ | G105: =F105*(1-Elteq!$F$8) -> 0
A106: REIKU-B | B106: MSGVM-12M20 /price upon enquiry/ | G106: =F106*(1-Elteq!$F$8) -> 0
A107: REIKU-B | B107: MSGVM-17M25 /price upon enquiry/ | G107: =F107*(1-Elteq!$F$8) -> 0
A108: REIKU-B | B108: MSGVM-23M32 /price upon enquiry/ | G108: =F108*(1-Elteq!$F$8) -> 0
A109: REIKU-B | B109: MSGVM-29M40 /price upon enquiry/ | G109: =F109*(1-Elteq!$F$8) -> 0
A110: REIKU-B | B110: MSGVM-36M50 /price upon enquiry/ | G110: =F110*(1-Elteq!$F$8) -> 0
A111: REIKU-B | B111: MSGVM-48M63 /price upon enquiry/ | G111: =F111*(1-Elteq!$F$8) -> 0
A112: REIKU-B | B112: MSKOM-M12 | E112: 50 | F112: 2.051696043 | G112: =F112*(1-Elteq!$F$8) -> 2.051696043
A113: REIKU-B | B113: MSKOM-M16 | E113: 50 | F113: 4.05177709 | G113: =F113*(1-Elteq!$F$8) -> 4.05177709
A114: REIKU-B | B114: MSKOM-M20 | E114: 50 | F114: 5.600226934 | G114: =F114*(1-Elteq!$F$8) -> 5.600226934
A115: REIKU-B | B115: MSKOM-M25 | E115: 50 | F115: 5.393766955 | G115: =F115*(1-Elteq!$F$8) -> 5.393766955
A116: REIKU-B | B116: MSKOM-M32 | E116: 25 | F116: 8.722934118 | G116: =F116*(1-Elteq!$F$8) -> 8.722934118
A117: REIKU-B | B117: MSKOM-M40 | E117: 10 | F117: 16.07807087 | G117: =F117*(1-Elteq!$F$8) -> 16.07807087
A118: REIKU-B | B118: MSKOM-M50 | E118: 5 | F118: 31.53676181 | G118: =F118*(1-Elteq!$F$8) -> 31.53676181
A119: REIKU-B | B119: MSKOM-M63 | E119: 5 | F119: 31.97548927 | G119: =F119*(1-Elteq!$F$8) -> 31.97548927
A120: REIKU-B | B120: MSKOM-P07 | E120: 50 | F120: 1.806524817 | G120: =F120*(1-Elteq!$F$8) -> 1.806524817
A121: REIKU-B | B121: MSKOM-P09 | E121: 50 | F121: 2.142022283 | G121: =F121*(1-Elteq!$F$8) -> 2.142022283
A122: REIKU-B | B122: MSKOM-P11 | E122: 50 | F122: 2.542038493 | G122: =F122*(1-Elteq!$F$8) -> 2.542038493
A123: REIKU-B | B123: MSKOM-P13 | E123: 50 | F123: 2.825920964 | G123: =F123*(1-Elteq!$F$8) -> 2.825920964
A124: REIKU-B | B124: MSKOM-P16 | E124: 50 | F124: 3.26464842 | G124: =F124*(1-Elteq!$F$8) -> 3.26464842
A125: REIKU-B | B125: MSKOM-P21 | E125: 50 | F125: 5.380863206 | G125: =F125*(1-Elteq!$F$8) -> 5.380863206
A126: REIKU-B | B126: MSKOM-P29 | E126: 25 | F126: 8.697126621 | G126: =F126*(1-Elteq!$F$8) -> 8.697126621
A127: REIKU-B | B127: MSKOM-P36 | E127: 10 | F127: 16.01355213 | G127: =F127*(1-Elteq!$F$8) -> 16.01355213
A128: REIKU-B | B128: MSKOM-P48 | E128: 5 | F128: 38.14348114 | G128: =F128*(1-Elteq!$F$8) -> 38.14348114
A129: REIKU-B | B129: MSM 1216 | E129: 50 | F129: 0.9935886495 | G129: =F129*(1-Elteq!$F$8) -> 0.9935886495
A130: REIKU-B | B130: MSM 1612 | E130: 50 | F130: 0.7742249217 | G130: =F130*(1-Elteq!$F$8) -> 0.7742249217
A131: REIKU-B | B131: MSM 1620 | E131: 50 | F131: 1.329086116 | G131: =F131*(1-Elteq!$F$8) -> 1.329086116
A132: REIKU-B | B132: MSM 2012 | E132: 50 | F132: 1.08391489 | G132: =F132*(1-Elteq!$F$8) -> 1.08391489
A133: REIKU-B | B133: MSM 2016 | E133: 50 | F133: 1.08391489 | G133: =F133*(1-Elteq!$F$8) -> 1.08391489
A134: =REPLACE(CELL("Filename",$A$1),1,FIND("]",CELL("filename",$A$1)),"") -> REIKU-B | B134: MSM 2025 | E134: 50 | F134: 2.232348524 | G134: =F134*(1-Elteq!$F$8) -> 2.232348524
A135: REIKU-B | B135: MSM 2516 | E135: 50 | F135: 2.103311037 | G135: =F135*(1-Elteq!$F$8) -> 2.103311037
A136: REIKU-B | B136: MSM 2520 | E136: 50 | F136: 1.78071732 | G136: =F136*(1-Elteq!$F$8) -> 1.78071732
A137: REIKU-B | B137: MSM 2532 | E137: 25 | F137: 2.813017216 | G137: =F137*(1-Elteq!$F$8) -> 2.813017216
A138: REIKU-B | B138: MSM 3220 | E138: 50 | F138: 3.148514682 | G138: =F138*(1-Elteq!$F$8) -> 3.148514682
A139: REIKU-B | B139: MSM 3225 | E139: 50 | F139: 3.001255664 | G139: =F139*(1-Elteq!$F$8) -> 3.001255664
A140: REIKU-B | B140: MSM 3240 | E140: 25 | F140: 4.425985803 | G140: =F140*(1-Elteq!$F$8) -> 4.425985803
A141: REIKU-B | B141: MSM 4025 | E141: 25 | F141: 5.109884483 | G141: =F141*(1-Elteq!$F$8) -> 5.109884483
A142: REIKU-B | B142: MSM 4032 | E142: 25 | F142: 4.193718326 | G142: =F142*(1-Elteq!$F$8) -> 4.193718326
A143: REIKU-B | B143: MSM 4050 | E143: 10 | F143: 7.006735542 | G143: =F143*(1-Elteq!$F$8) -> 7.006735542
A144: REIKU-B | B144: MSM 5032 | E144: 25 | F144: 7.006735542 | G144: =F144*(1-Elteq!$F$8) -> 7.006735542
A145: REIKU-B | B145: MSM 5040 | E145: 25 | F145: 5.677649426 | G145: =F145*(1-Elteq!$F$8) -> 5.677649426
A146: REIKU-B | B146: MSM 5063 | E146: 10 | F146: 16.94262204 | G146: =F146*(1-Elteq!$F$8) -> 16.94262204
A147: REIKU-B | B147: MSM 6340 | E147: 10 | F147: 12.86503745 | G147: =F147*(1-Elteq!$F$8) -> 12.86503745
A148: REIKU-B | B148: MSM 6350 | E148: 10 | F148: 11.62627757 | G148: =F148*(1-Elteq!$F$8) -> 11.62627757
A149: REIKU-B | B149: MSP0709 | E149: 100 | F149: 0.7355136756 | G149: =F149*(1-Elteq!$F$8) -> 0.7355136756
A150: REIKU-B | B150: MSP0907 | E150: 100 | F150: 0.4387274556 | G150: =F150*(1-Elteq!$F$8) -> 0.4387274556
A151: REIKU-B | B151: MSP0911 | E151: 100 | F151: 0.5806686913 | G151: =F151*(1-Elteq!$F$8) -> 0.5806686913
A152: REIKU-B | B152: MSP0913 | E152: 100 | F152: 1.096818639 | G152: =F152*(1-Elteq!$F$8) -> 1.096818639
A153: REIKU-B | B153: MSP1107 | E153: 100 | F153: 0.6580911835 | G153: =F153*(1-Elteq!$F$8) -> 0.6580911835
A154: REIKU-B | B154: MSP1109 | E154: 100 | F154: 0.5806686913 | G154: =F154*(1-Elteq!$F$8) -> 0.5806686913
A155: REIKU-B | B155: MSP1113 | E155: 100 | F155: 1.032299896 | G155: =F155*(1-Elteq!$F$8) -> 1.032299896
A156: REIKU-B | B156: MSP1116 | E156: 100 | F156: 1.18714488 | G156: =F156*(1-Elteq!$F$8) -> 1.18714488
A157: REIKU-B | B157: MSP1121 | E157: 100 | F157: 2.051696043 | G157: =F157*(1-Elteq!$F$8) -> 2.051696043
A158: REIKU-B | B158: MSP1307 | E158: 100 | F158: 0.6322836861 | G158: =F158*(1-Elteq!$F$8) -> 0.6322836861
A159: REIKU-B | B159: MSP1309 | E159: 100 | F159: 0.5548611939 | G159: =F159*(1-Elteq!$F$8) -> 0.5548611939
A160: REIKU-B | B160: MSP1311 | E160: 100 | F160: 0.4516312043 | G160: =F160*(1-Elteq!$F$8) -> 0.4516312043
A161: REIKU-B | B161: MSP1316 | E161: 100 | F161: 0.7355136756 | G161: =F161*(1-Elteq!$F$8) -> 0.7355136756
A162: REIKU-B | B162: MSP1321 | E162: 100 | F162: 1.638776084 | G162: =F162*(1-Elteq!$F$8) -> 1.638776084
A163: REIKU-B | B163: MSP1607 | E163: 100 | F163: 0.9290699061 | G163: =F163*(1-Elteq!$F$8) -> 0.9290699061
A164: REIKU-B | B164: MSP1609 | E164: 100 | F164: 0.8645511626 | G164: =F164*(1-Elteq!$F$8) -> 0.8645511626
A165: REIKU-B | B165: MSP1611 | E165: 100 | F165: 0.5161499478 | G165: =F165*(1-Elteq!$F$8) -> 0.5161499478
A166: REIKU-B | B166: MSP1613 | E166: 100 | F166: 0.4516312043 | G166: =F166*(1-Elteq!$F$8) -> 0.4516312043
A167: REIKU-B | B167: MSP1621 | E167: 50 | F167: 1.845236063 | G167: =F167*(1-Elteq!$F$8) -> 1.845236063
A168: REIKU-B | B168: MSP1629 | E168: 50 | F168: 4.335659562 | G168: =F168*(1-Elteq!$F$8) -> 4.335659562
A169: REIKU-B | B169: MSP2111 | E169: 100 | F169: 1.651679833 | G169: =F169*(1-Elteq!$F$8) -> 1.651679833
A170: REIKU-B | B170: MSP2113 | E170: 100 | F170: 1.806524817 | G170: =F170*(1-Elteq!$F$8) -> 1.806524817
A171: REIKU-B | B171: MSP2116 | E171: 100 | F171: 0.8516474139 | G171: =F171*(1-Elteq!$F$8) -> 0.8516474139
A172: REIKU-B | B172: MSP2129 | E172: 50 | F172: 3.225937174 | G172: =F172*(1-Elteq!$F$8) -> 3.225937174
A173: REIKU-B | B173: MSP2916 | E173: 50 | F173: 2.000081048 | G173: =F173*(1-Elteq!$F$8) -> 2.000081048
A174: REIKU-B | B174: MSP2921 | E174: 50 | F174: 1.948466053 | G174: =F174*(1-Elteq!$F$8) -> 1.948466053
A175: REIKU-B | B175: MSP2936 | E175: 25 | F175: 3.651760881 | G175: =F175*(1-Elteq!$F$8) -> 3.651760881
A176: REIKU-B | B176: MSP3621 | E176: 25 | F176: 4.851809509 | G176: =F176*(1-Elteq!$F$8) -> 4.851809509
A177: REIKU-B | B177: MSP3629 | E177: 25 | F177: 2.56784599 | G177: =F177*(1-Elteq!$F$8) -> 2.56784599
A178: REIKU-B | B178: MSP4229 | E178: 25 | F178: 14.91673349 | G178: =F178*(1-Elteq!$F$8) -> 14.91673349
A179: REIKU-B | B179: MSP4236 | E179: 25 | F179: 3.187225928 | G179: =F179*(1-Elteq!$F$8) -> 3.187225928
A180: REIKU-B | B180: MSP4248 | E180: 25 | F180: 11.40691385 | G180: =F180*(1-Elteq!$F$8) -> 11.40691385
A181: REIKU-B | B181: MSP4836 | E181: 25 | F181: 10.54236268 | G181: =F181*(1-Elteq!$F$8) -> 10.54236268
A182: REIKU-B | B182: MSP4842 | E182: 25 | F182: 7.458366746 | G182: =F182*(1-Elteq!$F$8) -> 7.458366746
A183: REIKU-B | B183: MSPAM-M16 | E183: 50 | F183: 1.729102325 | G183: =F183*(1-Elteq!$F$8) -> 1.729102325
A184: REIKU-B | B184: MSPAM-M20 | E184: 50 | F184: 1.819428566 | G184: =F184*(1-Elteq!$F$8) -> 1.819428566
A185: REIKU-B | B185: MSPAM-M25 | E185: 50 | F185: 2.800113467 | G185: =F185*(1-Elteq!$F$8) -> 2.800113467
A186: REIKU-B | B186: MSPAM-M32 | E186: 25 | F186: 3.406589656 | G186: =F186*(1-Elteq!$F$8) -> 3.406589656
A187: REIKU-B | B187: MSPAM-M40 | E187: 25 | F187: 4.271140818 | G187: =F187*(1-Elteq!$F$8) -> 4.271140818
A188: REIKU-B | B188: MSPAM-M50 | E188: 25 | F188: 4.870689849 | G188: =F188*(1-Elteq!$F$8) -> 4.870689849
A189: REIKU-B | B189: MSPAM-M63 | E189: 25 | F189: 11.29132884 | G189: =F189*(1-Elteq!$F$8) -> 11.29132884
A190: REIKU-B | B190: MSPAM-P09 | E190: 50 | F190: 1.729102325 | G190: =F190*(1-Elteq!$F$8) -> 1.729102325
A191: REIKU-B | B191: MSPAM-P11 | E191: 50 | F191: 1.729102325 | G191: =F191*(1-Elteq!$F$8) -> 1.729102325
A192: REIKU-B | B192: MSPAM-P16 | E192: 50 | F192: 1.819428566 | G192: =F192*(1-Elteq!$F$8) -> 1.819428566
A193: REIKU-B | B193: MSPAM-P21 | E193: 50 | F193: 2.800113467 | G193: =F193*(1-Elteq!$F$8) -> 2.800113467
A194: REIKU-B | B194: MSPAM-P29 | E194: 50 | F194: 3.406589656 | G194: =F194*(1-Elteq!$F$8) -> 3.406589656
A195: REIKU-B | B195: MSPAM-P36 | E195: 25 | F195: 4.271140818 | G195: =F195*(1-Elteq!$F$8) -> 4.271140818
A196: REIKU-B | B196: MSPAM-P42 | E196: 25 | F196: 11.01980139 | G196: =F196*(1-Elteq!$F$8) -> 11.01980139
A197: REIKU-B | B197: MSPAM-P48 | E197: 25 | F197: 14.40058354 | G197: =F197*(1-Elteq!$F$8) -> 14.40058354
A198: =REPLACE(CELL("Filename",$A$1),1,FIND("]",CELL("filename",$A$1)),"") -> REIKU-B | B198: NIDRB-17 | E198: 30 | F198: 0.4000162096 | G198: =F198*(1-Elteq!$F$8) -> 0.4000162096
A199: REIKU-B | B199: NIDRB-23 | E199: 30 | F199: 0.4903424504 | G199: =F199*(1-Elteq!$F$8) -> 0.4903424504
A200: REIKU-B | B200: NIDRB-29 | E200: 20 | F200: 0.6580911835 | G200: =F200*(1-Elteq!$F$8) -> 0.6580911835
A201: REIKU-B | B201: NIDRB-36 | E201: 10 | F201: 0.9161661574 | G201: =F201*(1-Elteq!$F$8) -> 0.9161661574
A202: REIKU-B | B202: NIDRB-48 | E202: 10 | F202: 1.264567372 | G202: =F202*(1-Elteq!$F$8) -> 1.264567372
A203: REIKU-B | B203: NIFSB-52 | E203: 10 | F203: 1.303260097 | G203: =F203*(1-Elteq!$F$8) -> 1.303260097
... 1321 more rows

Sheet REIKU-G
A4: sheetname | B4: Obj.kód šedá | D4: Popis | E4: Balenie | F4: Cena za ks alebo m | G4: Cena za kus po zľave
A5: =REPLACE(CELL("Filename",$A$1),1,FIND("]",CELL("filename",$A$1)),"") -> REIKU-G | B5: PAAOG-07M101 | E5: 50 | F5: 2.391286751 | G5: =F5*(1-Elteq!$F$8) -> 2.391286751
A6: =REPLACE(CELL("Filename",$A$1),1,FIND("]",CELL("filename",$A$1)),"") -> REIKU-G | B6: PAAOG-07M16 | E6: 50 | F6: 2.391286751 | G6: =F6*(1-Elteq!$F$8) -> 2.391286751
A7: REIKU-G | B7: PAAOG-07M20 | E7: 50 | F7: 2.391286751 | G7: =F7*(1-Elteq!$F$8) -> 2.391286751
A8: REIKU-G | B8: PAAOG-07P07 | E8: 50 | F8: 2.425904755 | G8: =F8*(1-Elteq!$F$8) -> 2.425904755
A9: REIKU-G | B9: PAAOG-07P09 | E9: 50 | F9: 2.425904755 | G9: =F9*(1-Elteq!$F$8) -> 2.425904755
A10: REIKU-G | B10: PAAOG-07P11 | E10: 50 | F10: 2.391286751 | G10: =F10*(1-Elteq!$F$8) -> 2.391286751
A11: REIKU-G | B11: PAAOB-07P13 | E11: 50 | F11: 2.391286751 | G11: =F11*(1-Elteq!$F$8) -> 2.391286751
A12: REIKU-G | B12: PAAOB-07P16 | E12: 50 | F12: 2.391286751 | G12: =F12*(1-Elteq!$F$8) -> 2.391286751
A13: REIKU-G | B13: PAAOG-10P09 | E13: 50 | F13: 2.425904755 | G13: =F13*(1-Elteq!$F$8) -> 2.425904755
A14: REIKU-G | B14: PAAOG-12P11 | E14: 50 | F14: 2.47751975 | G14: =F14*(1-Elteq!$F$8) -> 2.47751975
A15: REIKU-G | B15: PAAOG-17P16 | E15: 50 | F15: 2.606557236 | G15: =F15*(1-Elteq!$F$8) -> 2.606557236
A16: REIKU-G | B16: PAAOG-23P21 | E16: 30 | F16: 4.296948316 | G16: =F16*(1-Elteq!$F$8) -> 4.296948316
A17: REIKU-G | B17: PAAOG-29P29 | E17: 30 | F17: 6.258318117 | G17: =F17*(1-Elteq!$F$8) -> 6.258318117
A18: REIKU-G | B18: PAAVG-07P07 | E18: 50 | F18: 2.761402221 | G18: =F18*(1-Elteq!$F$8) -> 2.761402221
A19: REIKU-G | B19: PAAVG-07P09 | E19: 50 | F19: 2.761402221 | G19: =F19*(1-Elteq!$F$8) -> 2.761402221
A20: REIKU-G | B20: PAAVG-10P09 | E20: 50 | F20: 2.77430597 | G20: =F20*(1-Elteq!$F$8) -> 2.77430597
A21: REIKU-G | B21: PAAVG-12P11 | E21: 50 | F21: 2.851728462 | G21: =F21*(1-Elteq!$F$8) -> 2.851728462
A22: REIKU-G | B22: PAAVG-17P16 | E22: 50 | F22: 3.032380943 | G22: =F22*(1-Elteq!$F$8) -> 3.032380943
A23: REIKU-G | B23: PAAVG-23P21 | E23: 30 | F23: 4.94213575 | G23: =F23*(1-Elteq!$F$8) -> 4.94213575
A24: REIKU-G | B24: PAAVG-29P29 | E24: 30 | F24: 7.097061782 | G24: =F24*(1-Elteq!$F$8) -> 7.097061782
A25: REIKU-G | B25: PACSG | E25: 50 | F25: 0.2322674765 | G25: =F25*(1-Elteq!$F$8) -> 0.2322674765
A26: REIKU-G | B26: PADSG-07/10 | E26: 100 | F26: 0.2451712252 | G26: =F26*(1-Elteq!$F$8) -> 0.2451712252
A27: REIKU-G | B27: PADSG-12 | E27: 50 | F27: 0.2580749739 | G27: =F27*(1-Elteq!$F$8) -> 0.2580749739
A28: REIKU-G | B28: PADSG-14/17 | E28: 50 | F28: 0.2709787226 | G28: =F28*(1-Elteq!$F$8) -> 0.2709787226
A29: REIKU-G | B29: PADSG-23 | E29: 50 | F29: 0.3484012148 | G29: =F29*(1-Elteq!$F$8) -> 0.3484012148
A30: REIKU-G | B30: PADSG-29 | E30: 30 | F30: 0.4774387017 | G30: =F30*(1-Elteq!$F$8) -> 0.4774387017
A31: REIKU-G | B31: PADSG-36 | E31: 20 | F31: 0.5419574452 | G31: =F31*(1-Elteq!$F$8) -> 0.5419574452
A32: REIKU-G | B32: PADSG-48 | E32: 20 | F32: 0.6451874348 | G32: =F32*(1-Elteq!$F$8) -> 0.6451874348
A33: REIKU-G | B33: PAFOG-07 | E33: 50 | F33: 1.050889527 | G33: =F33*(1-Elteq!$F$8) -> 1.050889527
A34: REIKU-G | B34: PAFOG-10 | E34: 50 | F34: 1.170273091 | G34: =F34*(1-Elteq!$F$8) -> 1.170273091
A35: REIKU-G | B35: PAFOG-12 | E35: 50 | F35: 1.385281318 | G35: =F35*(1-Elteq!$F$8) -> 1.385281318
A36: REIKU-G | B36: PAFOG-17 | E36: 30 | F36: 2.051696043 | G36: =F36*(1-Elteq!$F$8) -> 2.051696043
A37: REIKU-G | B37: PAFOG-23 | E37: 30 | F37: 3.367878409 | G37: =F37*(1-Elteq!$F$8) -> 3.367878409
A38: REIKU-G | B38: PAFOG-29 | E38: 20 | F38: 5.04536574 | G38: =F38*(1-Elteq!$F$8) -> 5.04536574
A39: REIKU-G | B39: PAFOG-36 | E39: 10 | F39: 7.445462997 | G39: =F39*(1-Elteq!$F$8) -> 7.445462997
A40: REIKU-G | B40: PAFOG-48 | E40: 10 | F40: 10.14234647 | G40: =F40*(1-Elteq!$F$8) -> 10.14234647
A41: REIKU-G | B41: PAFVG-17 | E41: 30 | F41: 2.658172231 | G41: =F41*(1-Elteq!$F$8) -> 2.658172231
A42: REIKU-G | B42: PAFVG-23 | E42: 30 | F42: 4.258237069 | G42: =F42*(1-Elteq!$F$8) -> 4.258237069
A43: REIKU-G | B43: PAFVG-29 | E43: 20 | F43: 6.193799374 | G43: =F43*(1-Elteq!$F$8) -> 6.193799374
A44: REIKU-G | B44: PAFVG-36 | E44: 10 | F44: 9.122950328 | G44: =F44*(1-Elteq!$F$8) -> 9.122950328
A45: REIKU-G | B45: PAFVG-48 | E45: 10 | F45: 12.33598375 | G45: =F45*(1-Elteq!$F$8) -> 12.33598375
A46: REIKU-G | B46: PAGMB-07S22 | E46: 50 | F46: 1.922658556 | G46: =F46*(1-Elteq!$F$8) -> 1.922658556
A47: REIKU-G | B47: PAGMB-11S22 | E47: 50 | F47: 2.090407289 | G47: =F47*(1-Elteq!$F$8) -> 2.090407289
A48: REIKU-G | B48: PAGMB-20S32 | E48: 50 | F48: 2.702483217 | G48: =F48*(1-Elteq!$F$8) -> 2.702483217
A49: REIKU-G | B49: PAGMB-25S32 | E49: 25 | F49: 2.702483217 | G49: =F49*(1-Elteq!$F$8) -> 2.702483217
A50: REIKU-G | B50: PAGMB-32S40 | E50: 25 | F50: 3.372017348 | G50: =F50*(1-Elteq!$F$8) -> 3.372017348
A51: REIKU-G | B51: PAGMB-M12 | E51: 100 | F51: 0.1935562304 | G51: =F51*(1-Elteq!$F$8) -> 0.1935562304
A52: REIKU-G | B52: PAGMB-M16 | E52: 100 | F52: 0.2064599791 | G52: =F52*(1-Elteq!$F$8) -> 0.2064599791
A53: REIKU-G | B53: PAGMB-M20 | E53: 100 | F53: 0.3096899687 | G53: =F53*(1-Elteq!$F$8) -> 0.3096899687
A54: REIKU-G | B54: PAGMB-M25 | E54: 100 | F54: 0.3225937174 | G54: =F54*(1-Elteq!$F$8) -> 0.3225937174
A55: REIKU-G | B55: PAGMB-M32 | E55: 50 | F55: 0.7097061782 | G55: =F55*(1-Elteq!$F$8) -> 0.7097061782
A56: REIKU-G | B56: PAGMB-M40 | E56: 25 | F56: 1.032299896 | G56: =F56*(1-Elteq!$F$8) -> 1.032299896
A57: REIKU-G | B57: PAGMB-M50 | E57: 25 | F57: 1.354893613 | G57: =F57*(1-Elteq!$F$8) -> 1.354893613
A58: REIKU-G | B58: PAGMB-M63 | E58: 25 | F58: 1.522642346 | G58: =F58*(1-Elteq!$F$8) -> 1.522642346
A59: REIKU-G | B59: PAGOG-07G00 | E59: 50 | F59: 1.007298818 | G59: =F59*(1-Elteq!$F$8) -> 1.007298818
A60: REIKU-G | B60: PAGOG-07M101 | E60: 50 | F60: 1.007298818 | G60: =F60*(1-Elteq!$F$8) -> 1.007298818
A61: REIKU-G | B61: PAGOG-07M12 | E61: 50 | F61: 1.007298818 | G61: =F61*(1-Elteq!$F$8) -> 1.007298818
A62: REIKU-G | B62: PAGOG-07M12Z | E62: 30 | F62: 2.606557236 | G62: =F62*(1-Elteq!$F$8) -> 2.606557236
A63: REIKU-G | B63: PAGOG-07M16 | E63: 50 | F63: 1.007298818 | G63: =F63*(1-Elteq!$F$8) -> 1.007298818
A64: REIKU-G | B64: PAGOG-07M20 | E64: 50 | F64: 1.007298818 | G64: =F64*(1-Elteq!$F$8) -> 1.007298818
A65: REIKU-G | B65: PAGOG-07P07 | E65: 50 | F65: 1.007298818 | G65: =F65*(1-Elteq!$F$8) -> 1.007298818
A66: REIKU-G | B66: PAGOG-07P07Z | E66: 30 | F66: 2.606557236 | G66: =F66*(1-Elteq!$F$8) -> 2.606557236
A67: REIKU-G | B67: PAGOG-07P09 | E67: 50 | F67: 1.007298818 | G67: =F67*(1-Elteq!$F$8) -> 1.007298818
A68: REIKU-G | B68: PAGOG-07P11 | E68: 50 | F68: 1.007298818 | G68: =F68*(1-Elteq!$F$8) -> 1.007298818
A69: REIKU-G | B69: PAGOG-07P13 | E69: 50 | F69: 1.007298818 | G69: =F69*(1-Elteq!$F$8) -> 1.007298818
A70: =REPLACE(CELL("Filename",$A$1),1,FIND("]",CELL("filename",$A$1)),"") -> REIKU-G | B70: PAGOG-07S13 | E70: 50 | F70: 1.160455363 | G70: =F70*(1-Elteq!$F$8) -> 1.160455363
A71: REIKU-G | B71: PAGOG-10M12 | E71: 50 | F71: 1.101549 | G71: =F71*(1-Elteq!$F$8) -> 1.101549
A72: REIKU-G | B72: PAGOG-10M16 | E72: 50 | F72: 1.101549 | G72: =F72*(1-Elteq!$F$8) -> 1.101549
A73: REIKU-G | B73: PAGOG-10M16Z | E73: 30 | F73: 3.135610933 | G73: =F73*(1-Elteq!$F$8) -> 3.135610933
A74: REIKU-G | B74: PAGOG-10M20 | E74: 50 | F74: 1.101549 | G74: =F74*(1-Elteq!$F$8) -> 1.101549
A75: REIKU-G | B75: PAGOG-10P07 | E75: 50 | F75: 1.030861363 | G75: =F75*(1-Elteq!$F$8) -> 1.030861363
A76: REIKU-G | B76: PAGOG-10P09 | E76: 50 | F76: 1.030861363 | G76: =F76*(1-Elteq!$F$8) -> 1.030861363
A77: REIKU-G | B77: PAGOG-10P09Z | E77: 30 | F77: 2.877535959 | G77: =F77*(1-Elteq!$F$8) -> 2.877535959
A78: REIKU-G | B78: PAGOG-10P11 | E78: 50 | F78: 1.101549 | G78: =F78*(1-Elteq!$F$8) -> 1.101549
A79: REIKU-G | B79: PAGOG-10P13 | E79: 50 | F79: 1.101549 | G79: =F79*(1-Elteq!$F$8) -> 1.101549
A80: REIKU-G | B80: PAGOG-10S15 | E80: 50 | F80: 1.172236636 | G80: =F80*(1-Elteq!$F$8) -> 1.172236636
A81: REIKU-G | B81: PAGOG-12M16 | E81: 50 | F81: 1.101549 | G81: =F81*(1-Elteq!$F$8) -> 1.101549
A82: REIKU-G | B82: PAGOG-12M16Z | E82: 30 | F82: 3.290455917 | G82: =F82*(1-Elteq!$F$8) -> 3.290455917
A83: REIKU-G | B83: PAGOG-12M20 | E83: 50 | F83: 1.101549 | G83: =F83*(1-Elteq!$F$8) -> 1.101549
A84: REIKU-G | B84: PAGOG-12M20Z | E84: 30 | F84: 3.290455917 | G84: =F84*(1-Elteq!$F$8) -> 3.290455917
A85: REIKU-G | B85: PAGOG-12P09 | E85: 50 | F85: 1.101549 | G85: =F85*(1-Elteq!$F$8) -> 1.101549
A86: REIKU-G | B86: PAGOG-12P11 | E86: 50 | F86: 1.101549 | G86: =F86*(1-Elteq!$F$8) -> 1.101549
A87: REIKU-G | B87: PAGOG-12P11Z | E87: 30 | F87: 2.993669697 | G87: =F87*(1-Elteq!$F$8) -> 2.993669697
A88: REIKU-G | B88: PAGOG-12P13 | E88: 50 | F88: 1.101549 | G88: =F88*(1-Elteq!$F$8) -> 1.101549
A89: REIKU-G | B89: PAGOG-12P13Z | E89: 30 | F89: 3.019477195 | G89: =F89*(1-Elteq!$F$8) -> 3.019477195
A90: REIKU-G | B90: PAGOG-12S19 | E90: 50 | F90: 1.184017909 | G90: =F90*(1-Elteq!$F$8) -> 1.184017909
A91: REIKU-G | B91: PAGOG-17M20 | E91: 50 | F91: 1.113330272 | G91: =F91*(1-Elteq!$F$8) -> 1.113330272
A92: REIKU-G | B92: PAGOG-17M20Z | E92: 30 | F92: 3.909835855 | G92: =F92*(1-Elteq!$F$8) -> 3.909835855
A93: REIKU-G | B93: PAGOG-17M25 | E93: 50 | F93: 1.113330272 | G93: =F93*(1-Elteq!$F$8) -> 1.113330272
A94: REIKU-G | B94: PAGOG-17M32 | E94: 50 | F94: 1.113330272 | G94: =F94*(1-Elteq!$F$8) -> 1.113330272
A95: REIKU-G | B95: PAGOG-17P11 | E95: 50 | F95: 1.113330272 | G95: =F95*(1-Elteq!$F$8) -> 1.113330272
A96: REIKU-G | B96: PAGOG-17P13 | E96: 50 | F96: 1.113330272 | G96: =F96*(1-Elteq!$F$8) -> 1.113330272
A97: REIKU-G | B97: PAGOG-17P16 | E97: 50 | F97: 1.113330272 | G97: =F97*(1-Elteq!$F$8) -> 1.113330272
A98: REIKU-G | B98: PAGOG-17P16Z | E98: 30 | F98: 3.56143464 | G98: =F98*(1-Elteq!$F$8) -> 3.56143464
A99: REIKU-G | B99: PAGOG-17P21 | E99: 50 | F99: 1.753446091 | G99: =F99*(1-Elteq!$F$8) -> 1.753446091
A100: REIKU-G | B100: PAGOG-17S22 | E100: 50 | F100: 1.195799182 | G100: =F100*(1-Elteq!$F$8) -> 1.195799182
A101: REIKU-G | B101: PAGOG-23M25 | E101: 30 | F101: 1.777008636 | G101: =F101*(1-Elteq!$F$8) -> 1.777008636
A102: REIKU-G | B102: PAGOG-23M25Z | E102: 30 | F102: 4.761483269 | G102: =F102*(1-Elteq!$F$8) -> 4.761483269
A103: REIKU-G | B103: PAGOG-23M32 | E103: 30 | F103: 1.777008636 | G103: =F103*(1-Elteq!$F$8) -> 1.777008636
A104: REIKU-G | B104: PAGOG-23P16 | E104: 50 | F104: 1.788789909 | G104: =F104*(1-Elteq!$F$8) -> 1.788789909
A105: REIKU-G | B105: PAGOG-23P21 | E105: 30 | F105: 1.788789909 | G105: =F105*(1-Elteq!$F$8) -> 1.788789909
A106: REIKU-G | B106: PAGOG-23P21Z | E106: 30 | F106: 4.374370808 | G106: =F106*(1-Elteq!$F$8) -> 4.374370808
A107: REIKU-G | B107: PAGOG-23S28 | E107: 30 | F107: 2.108847818 | G107: =F107*(1-Elteq!$F$8) -> 2.108847818
A108: REIKU-G | B108: PAGOG-23S32 | E108: 30 | F108: 2.108847818 | G108: =F108*(1-Elteq!$F$8) -> 2.108847818
A109: REIKU-G | B109: PAGOG-29M32 | E109: 30 | F109: 2.344473272 | G109: =F109*(1-Elteq!$F$8) -> 2.344473272
A110: REIKU-G | B110: PAGOG-29M32Z | E110: 20 | F110: 6.284125615 | G110: =F110*(1-Elteq!$F$8) -> 6.284125615
A111: REIKU-G | B111: PAGOG-29M40 | E111: 30 | F111: 2.344473272 | G111: =F111*(1-Elteq!$F$8) -> 2.344473272
A112: REIKU-G | B112: PAGOG-29P29 | E112: 30 | F112: 2.344473272 | G112: =F112*(1-Elteq!$F$8) -> 2.344473272
A113: REIKU-G | B113: PAGOG-29P29Z | E113: 20 | F113: 5.845398159 | G113: =F113*(1-Elteq!$F$8) -> 5.845398159
A114: REIKU-G | B114: PAGOG-29S37 | E114: 30 | F114: 3.080802817 | G114: =F114*(1-Elteq!$F$8) -> 3.080802817
A115: REIKU-G | B115: PAGOG-29S40 | E115: 30 | F115: 3.080802817 | G115: =F115*(1-Elteq!$F$8) -> 3.080802817
A116: REIKU-G | B116: PAGOG-36M40 | E116: 10 | F116: 4.003669181 | G116: =F116*(1-Elteq!$F$8) -> 4.003669181
A117: REIKU-G | B117: PAGOG-36M40Z | E117: 10 | F117: 11.83273755 | G117: =F117*(1-Elteq!$F$8) -> 11.83273755
A118: REIKU-G | B118: PAGOG-36M50 | E118: 10 | F118: 4.003669181 | G118: =F118*(1-Elteq!$F$8) -> 4.003669181
A119: REIKU-G | B119: PAGOG-36P29 | E119: 10 | F119: 4.003669181 | G119: =F119*(1-Elteq!$F$8) -> 4.003669181
A120: REIKU-G | B120: PAGOG-36P36 | E120: 10 | F120: 4.003669181 | G120: =F120*(1-Elteq!$F$8) -> 4.003669181
A121: REIKU-G | B121: PAGOG-36P36Z | E121: 10 | F121: 11.83273755 | G121: =F121*(1-Elteq!$F$8) -> 11.83273755
A122: REIKU-G | B122: PAGOG-48M50 | E122: 10 | F122: 5.211249635 | G122: =F122*(1-Elteq!$F$8) -> 5.211249635
A123: REIKU-G | B123: PAGOG-48M63 | E123: 10 | F123: 5.211249635 | G123: =F123*(1-Elteq!$F$8) -> 5.211249635
A124: REIKU-G | B124: PAGOG-48M63Z | E124: 10 | F124: 13.58764738 | G124: =F124*(1-Elteq!$F$8) -> 13.58764738
A125: REIKU-G | B125: PAGOG-48P42 | E125: 10 | F125: 5.211249635 | G125: =F125*(1-Elteq!$F$8) -> 5.211249635
A126: REIKU-G | B126: PAGOG-48P48 | E126: 10 | F126: 5.211249635 | G126: =F126*(1-Elteq!$F$8) -> 5.211249635
A127: REIKU-G | B127: PAGOG-48P48Z | E127: 10 | F127: 13.58764738 | G127: =F127*(1-Elteq!$F$8) -> 13.58764738
A128: REIKU-G | B128: PAGOG-52 | E128: 10 | F128: 9.464289089 | G128: =F128*(1-Elteq!$F$8) -> 9.464289089
A129: REIKU-G | B129: PAGOG-70 | E129: 10 | F129: 10.47158791 | G129: =F129*(1-Elteq!$F$8) -> 10.47158791
A130: REIKU-G | B130: PAGOG-95 | E130: 10 | F130: 12.75715482 | G130: =F130*(1-Elteq!$F$8) -> 12.75715482
A131: REIKU-G | B131: PAGVG-07M101 | E131: 50 | F131: 1.432316105 | G131: =F131*(1-Elteq!$F$8) -> 1.432316105
A132: REIKU-G | B132: PAGVG-07M12 | E132: 50 | F132: 1.445219854 | G132: =F132*(1-Elteq!$F$8) -> 1.445219854
A133: REIKU-G | B133: PAGVG-07M12Z | E133: 30 | F133: 2.954958451 | G133: =F133*(1-Elteq!$F$8) -> 2.954958451
A134: =REPLACE(CELL("Filename",$A$1),1,FIND("]",CELL("filename",$A$1)),"") -> REIKU-G | B134: PAGVG-07M16 | E134: 50 | F134: 1.458123603 | G134: =F134*(1-Elteq!$F$8) -> 1.458123603
A135: REIKU-G | B135: PAGVG-07M20 | E135: 50 | F135: 1.496834849 | G135: =F135*(1-Elteq!$F$8) -> 1.496834849
A136: REIKU-G | B136: PAGVG-07P07 | E136: 50 | F136: 1.445219854 | G136: =F136*(1-Elteq!$F$8) -> 1.445219854
A137: REIKU-G | B137: PAGVG-07P07Z | E137: 30 | F137: 2.954958451 | G137: =F137*(1-Elteq!$F$8) -> 2.954958451
A138: REIKU-G | B138: PAGVG-07P09 | E138: 50 | F138: 1.445219854 | G138: =F138*(1-Elteq!$F$8) -> 1.445219854
A139: REIKU-G | B139: PAGVG-07P11 | E139: 50 | F139: 1.458123603 | G139: =F139*(1-Elteq!$F$8) -> 1.458123603
A140: REIKU-G | B140: PAGVG-07P13 | E140: 50 | F140: 1.4839311 | G140: =F140*(1-Elteq!$F$8) -> 1.4839311
A141: REIKU-G | B141: PAGVG-10M12 | E141: 50 | F141: 1.561353592 | G141: =F141*(1-Elteq!$F$8) -> 1.561353592
A142: REIKU-G | B142: PAGVG-10M16 | E142: 50 | F142: 1.574257341 | G142: =F142*(1-Elteq!$F$8) -> 1.574257341
A143: REIKU-G | B143: PAGVG-10M16Z | E143: 30 | F143: 3.509819645 | G143: =F143*(1-Elteq!$F$8) -> 3.509819645
A144: REIKU-G | B144: PAGVG-10M20 | E144: 50 | F144: 1.612968587 | G144: =F144*(1-Elteq!$F$8) -> 1.612968587
A145: REIKU-G | B145: PAGVG-10P07 | E145: 50 | F145: 1.4839311 | G145: =F145*(1-Elteq!$F$8) -> 1.4839311
A146: REIKU-G | B146: PAGVG-10P09 | E146: 50 | F146: 1.4839311 | G146: =F146*(1-Elteq!$F$8) -> 1.4839311
A147: REIKU-G | B147: PAGVG-10P09Z | E147: 30 | F147: 3.238840923 | G147: =F147*(1-Elteq!$F$8) -> 3.238840923
A148: REIKU-G | B148: PAGVG-10P11 | E148: 50 | F148: 1.574257341 | G148: =F148*(1-Elteq!$F$8) -> 1.574257341
A149: REIKU-G | B149: PAGVG-10P13 | E149: 50 | F149: 1.58716109 | G149: =F149*(1-Elteq!$F$8) -> 1.58716109
A150: REIKU-G | B150: PAGVG-12M16 | E150: 50 | F150: 1.58716109 | G150: =F150*(1-Elteq!$F$8) -> 1.58716109
A151: REIKU-G | B151: PAGVG-12M16Z | E151: 30 | F151: 3.677568378 | G151: =F151*(1-Elteq!$F$8) -> 3.677568378
A152: REIKU-G | B152: PAGVG-12M20 | E152: 50 | F152: 1.625872336 | G152: =F152*(1-Elteq!$F$8) -> 1.625872336
A153: REIKU-G | B153: PAGVG-12M20Z | E153: 30 | F153: 3.716279624 | G153: =F153*(1-Elteq!$F$8) -> 3.716279624
A154: REIKU-G | B154: PAGVG-12P09 | E154: 50 | F154: 1.574257341 | G154: =F154*(1-Elteq!$F$8) -> 1.574257341
A155: REIKU-G | B155: PAGVG-12P11 | E155: 50 | F155: 1.58716109 | G155: =F155*(1-Elteq!$F$8) -> 1.58716109
A156: REIKU-G | B156: PAGVG-12P11Z | E156: 30 | F156: 3.367878409 | G156: =F156*(1-Elteq!$F$8) -> 3.367878409
A157: REIKU-G | B157: PAGVG-12P13 | E157: 50 | F157: 1.600064838 | G157: =F157*(1-Elteq!$F$8) -> 1.600064838
A158: REIKU-G | B158: PAGVG-12P13Z | E158: 30 | F158: 3.406589656 | G158: =F158*(1-Elteq!$F$8) -> 3.406589656
A159: REIKU-G | B159: PAGVG-17M20 | E159: 50 | F159: 1.651679833 | G159: =F159*(1-Elteq!$F$8) -> 1.651679833
A160: REIKU-G | B160: PAGVG-17M20Z | E160: 30 | F160: 4.34856331 | G160: =F160*(1-Elteq!$F$8) -> 4.34856331
A161: REIKU-G | B161: PAGVG-17M25 | E161: 50 | F161: 1.67748733 | G161: =F161*(1-Elteq!$F$8) -> 1.67748733
A162: REIKU-G | B162: PAGVG-17M32 | E162: 50 | F162: 1.767813571 | G162: =F162*(1-Elteq!$F$8) -> 1.767813571
A163: REIKU-G | B163: PAGVG-17P11 | E163: 50 | F163: 1.67748733 | G163: =F163*(1-Elteq!$F$8) -> 1.67748733
A164: REIKU-G | B164: PAGVG-17P13 | E164: 50 | F164: 1.625872336 | G164: =F164*(1-Elteq!$F$8) -> 1.625872336
A165: REIKU-G | B165: PAGVG-17P16 | E165: 50 | F165: 1.638776084 | G165: =F165*(1-Elteq!$F$8) -> 1.638776084
A166: REIKU-G | B166: PAGVG-17P16Z | E166: 30 | F166: 3.987258347 | G166: =F166*(1-Elteq!$F$8) -> 3.987258347
A167: REIKU-G | B167: PAGVG-17P21 | E167: 50 | F167: 2.361386011 | G167: =F167*(1-Elteq!$F$8) -> 2.361386011
A168: REIKU-G | B168: PAGVG-23M25 | E168: 30 | F168: 2.580749739 | G168: =F168*(1-Elteq!$F$8) -> 2.580749739
A169: REIKU-G | B169: PAGVG-23M25Z | E169: 30 | F169: 5.406670703 | G169: =F169*(1-Elteq!$F$8) -> 5.406670703
A170: REIKU-G | B170: PAGVG-23M32 | E170: 30 | F170: 2.67107598 | G170: =F170*(1-Elteq!$F$8) -> 2.67107598
A171: REIKU-G | B171: PAGVG-23P16 | E171: 50 | F171: 2.554942242 | G171: =F171*(1-Elteq!$F$8) -> 2.554942242
A172: REIKU-G | B172: PAGVG-23P21 | E172: 30 | F172: 2.593653488 | G172: =F172*(1-Elteq!$F$8) -> 2.593653488
A173: REIKU-G | B173: PAGVG-23P21Z | E173: 30 | F173: 5.032461991 | G173: =F173*(1-Elteq!$F$8) -> 5.032461991
A174: REIKU-G | B174: PAGVG-29M32 | E174: 30 | F174: 3.393685907 | G174: =F174*(1-Elteq!$F$8) -> 3.393685907
A175: REIKU-G | B175: PAGVG-29M32Z | E175: 20 | F175: 7.12286928 | G175: =F175*(1-Elteq!$F$8) -> 7.12286928
A176: REIKU-G | B176: PAGVG-29M40 | E176: 30 | F176: 3.574338389 | G176: =F176*(1-Elteq!$F$8) -> 3.574338389
A177: REIKU-G | B177: PAGVG-29P29 | E177: 30 | F177: 3.393685907 | G177: =F177*(1-Elteq!$F$8) -> 3.393685907
A178: REIKU-G | B178: PAGVG-29P29Z | E178: 20 | F178: 6.697045573 | G178: =F178*(1-Elteq!$F$8) -> 6.697045573
A179: REIKU-G | B179: PAGVG-36M40 | E179: 10 | F179: 5.664745677 | G179: =F179*(1-Elteq!$F$8) -> 5.664745677
A180: REIKU-G | B180: PAGVG-36M40Z | E180: 10 | F180: 13.13601617 | G180: =F180*(1-Elteq!$F$8) -> 13.13601617
A181: REIKU-G | B181: PAGVG-36M50 | E181: 10 | F181: 5.871205656 | G181: =F181*(1-Elteq!$F$8) -> 5.871205656
A182: REIKU-G | B182: PAGVG-36P29 | E182: 10 | F182: 5.484093196 | G182: =F182*(1-Elteq!$F$8) -> 5.484093196
A183: REIKU-G | B183: PAGVG-36P36 | E183: 10 | F183: 5.561515688 | G183: =F183*(1-Elteq!$F$8) -> 5.561515688
A184: REIKU-G | B184: PAGVG-36P36Z | E184: 10 | F184: 13.03278618 | G184: =F184*(1-Elteq!$F$8) -> 13.03278618
A185: REIKU-G | B185: PAGVG-48M50 | E185: 10 | F185: 7.368040505 | G185: =F185*(1-Elteq!$F$8) -> 7.368040505
A186: REIKU-G | B186: PAGVG-48M63 | E186: 10 | F186: 7.561596735 | G186: =F186*(1-Elteq!$F$8) -> 7.561596735
A187: REIKU-G | B187: PAGVG-48M63Z | E187: 10 | F187: 15.49740218 | G187: =F187*(1-Elteq!$F$8) -> 15.49740218
A188: REIKU-G | B188: PAGVG-48P42 | E188: 10 | F188: 7.651922976 | G188: =F188*(1-Elteq!$F$8) -> 7.651922976
A189: REIKU-G | B189: PAGVG-48P48 | E189: 10 | F189: 7.12286928 | G189: =F189*(1-Elteq!$F$8) -> 7.12286928
A190: REIKU-G | B190: PAGVG-48P48Z | E190: 10 | F190: 15.03286723 | G190: =F190*(1-Elteq!$F$8) -> 15.03286723
A191: REIKU-G | B191: PAHDG-07 | E191: 100 | F191: 0.6580911835 | G191: =F191*(1-Elteq!$F$8) -> 0.6580911835
A192: REIKU-G | B192: PAHDG-10 | E192: 100 | F192: 0.6709949322 | G192: =F192*(1-Elteq!$F$8) -> 0.6709949322
A193: REIKU-G | B193: PAHDG-12 | E193: 50 | F193: 0.6968024295 | G193: =F193*(1-Elteq!$F$8) -> 0.6968024295
A194: REIKU-G | B194: PAHDG-14 | E194: 50 | F194: 0.7484174243 | G194: =F194*(1-Elteq!$F$8) -> 0.7484174243
A195: REIKU-G | B195: PAHDG-17 | E195: 50 | F195: 0.761321173 | G195: =F195*(1-Elteq!$F$8) -> 0.761321173
A196: REIKU-G | B196: PAHDG-23 | E196: 50 | F196: 1.38070111 | G196: =F196*(1-Elteq!$F$8) -> 1.38070111
A197: REIKU-G | B197: PAHDG-29 | E197: 30 | F197: 1.742006074 | G197: =F197*(1-Elteq!$F$8) -> 1.742006074
A198: =REPLACE(CELL("Filename",$A$1),1,FIND("]",CELL("filename",$A$1)),"") -> REIKU-G | B198: PAHDG-36 | E198: 20 | F198: 2.219444776 | G198: =F198*(1-Elteq!$F$8) -> 2.219444776
A199: REIKU-G | B199: PAHDG-48 | E199: 20 | F199: 2.86463221 | G199: =F199*(1-Elteq!$F$8) -> 2.86463221
A200: REIKU-G | B200: PAHOG-07 | E200: 100 | F200: 0.4129199583 | G200: =F200*(1-Elteq!$F$8) -> 0.4129199583
A201: REIKU-G | B201: PAHOG-10 | E201: 100 | F201: 0.4258237069 | G201: =F201*(1-Elteq!$F$8) -> 0.4258237069
A202: REIKU-G | B202: PAHOG-12 | E202: 50 | F202: 0.4387274556 | G202: =F202*(1-Elteq!$F$8) -> 0.4387274556
A203: REIKU-G | B203: PAHOG-14 | E203: 50 | F203: 0.4774387017 | G203: =F203*(1-Elteq!$F$8) -> 0.4774387017
... 775 more rows

Sheet TECHNIK
A4: sheetname | B4: Objednávací kód | D4: Popis | E4: Balenie | F4: Cena za ks alebo m | G4: Cena za kus po zľave | H4: EAN
A5: =REPLACE(CELL("Filename",$A$1),1,FIND("]",CELL("filename",$A$1)),"") -> TECHNIK | B5: Cupal 0,5x500x2000 | D5: Cupalový plech 0,5x500x2000mm, složení 70% Al + 30% Cu | E5: 1ks | F5: 168.119621 | G5: =F5*(1-Elteq!$F$9) -> 168.119621 | H5: 8591735037079
A6: =REPLACE(CELL("Filename",$A$1),1,FIND("]",CELL("filename",$A$1)),"") -> TECHNIK | B6: Cupal 1,0x500x2000 | D6: Cupalový plech 1,0x500x2000mm, složení 70% Al + 30% Cu | E6: 1ks | F6: 334.3836171 | G6: =F6*(1-Elteq!$F$9) -> 334.3836171 | H6: 8591735031862
A7: TECHNIK | B7: Cupal 1,5x500x2000 | D7: Cupalový plech 1,5x500x2000mm, složení 70% Al + 30% Cu | E7: 1ks | F7: 503.616613 | G7: =F7*(1-Elteq!$F$9) -> 503.616613 | H7: 8591735031879
A8: TECHNIK | B8: Cupal 2,0x500x2000 | D8: Cupalový plech 2,0x500x2000mm, složení 70% Al + 30% Cu | E8: 1ks | F8: 673.962984 | G8: =F8*(1-Elteq!$F$9) -> 673.962984 | H8: 8591735031886
A9: TECHNIK | B9: Cupal 25x100 | D9: Cupalový pásek 1,0x250x1000mm, složení 70% Al + 30% Cu (dodáváno po 2ks) | E9: 1ks | F9: 100.0181851 | G9: =F9*(1-Elteq!$F$9) -> 100.0181851 | H9: 8591735042394
A10: TECHNIK | B10: Cupal 50x 3 | D10: Cupalový pásek 1,0x500x30mm, složení 70% Al + 30% Cu | E10: 1ks | F10: 11.13374974 | G10: =F10*(1-Elteq!$F$9) -> 11.13374974 | H10: 8591735050917
A11: TECHNIK | B11: Cupal 50x 4 | D11: Cupalový pásek 1,0x500x40mm, složení 70% Al + 30% Cu | E11: 1ks | F11: 14.10274967 | G11: =F11*(1-Elteq!$F$9) -> 14.10274967 | H11: 8591735019372
A12: TECHNIK | B12: Cupal 50x 4/0,5 | D12: Cupalový pásek 0,5x500x40mm, složení 70% Al + 30% Cu | E12: 1ks | F12: 12.98937469 | G12: =F12*(1-Elteq!$F$9) -> 12.98937469 | H12: 8591735031909
A13: TECHNIK | B13: Cupal 50x 5 | D13: Cupalový pásek 1,0x500x50mm, složení 70% Al + 30% Cu | E13: 1ks | F13: 15.58724963 | G13: =F13*(1-Elteq!$F$9) -> 15.58724963 | H13: 8591735037543
A14: TECHNIK | B14: Cupal 50x 6 | D14: Cupalový pásek 1,0x500x60mm, složení 70% Al + 30% Cu | E14: 1ks | F14: 17.62843708 | G14: =F14*(1-Elteq!$F$9) -> 17.62843708 | H14: 8591735039981
A15: TECHNIK | B15: Cupal 50x 6/0,5 | D15: Cupalový pásek 0,5x500x60mm, složení 70% Al + 30% Cu | E15: 1ks | F15: 15.95837462 | G15: =F15*(1-Elteq!$F$9) -> 15.95837462 | H15: 8591735037546
A16: TECHNIK | B16: Cupal 50x 8 | D16: Cupalový pásek 1,0x500x80mm, složení 70% Al + 30% Cu | E16: 1ks | F16: 20.59743701 | G16: =F16*(1-Elteq!$F$9) -> 20.59743701 | H16: 8591735037062
A17: TECHNIK | B17: Cupal 50x 8/0,5 | D17: Cupalový pásek 0,5x500x80mm, složení 70% Al + 30% Cu | E17: 1ks | F17: 17.25731209 | G17: =F17*(1-Elteq!$F$9) -> 17.25731209 | H17: 8591735047153
A18: TECHNIK | B18: Cupal 50x10 | D18: Cupalový pásek 1,0x500x100mm, složení 70% Al + 30% Cu | E18: 1ks | F18: 23.75199944 | G18: =F18*(1-Elteq!$F$9) -> 23.75199944 | H18: 8591735031916
A19: TECHNIK | B19: Cupal 50x10/0,5 | D19: Cupalový pásek 0,5x500x100mm, složení 70% Al + 30% Cu | E19: 1ks | F19: 21.52524949 | G19: =F19*(1-Elteq!$F$9) -> 21.52524949 | H19: 8591735046064
A20: TECHNIK | B20: Cupal 50x100 | D20: Cupalový pásek 1,0x500x1000mm, složení 70% Al + 30% Cu | E20: 1ks | F20: 175.9132458 | G20: =F20*(1-Elteq!$F$9) -> 175.9132458 | H20: 8591735031855
A21: TECHNIK | B21: Cupal 50x11 | D21: Cupalový pásek 1,0x500x110mm, složení 70% Al + 30% Cu | E21: 1ks | F21: 26.16431188 | G21: =F21*(1-Elteq!$F$9) -> 26.16431188 | H21: 8591735052188
A22: TECHNIK | B22: Cupal 50x12 | D22: Cupalový pásek 1,0x500x120mm, složení 70% Al + 30% Cu | E22: 1ks | F22: 27.09212436 | G22: =F22*(1-Elteq!$F$9) -> 27.09212436 | H22: 8591735036072
A23: TECHNIK | B23: Cupal 50x17,5 | D23: Cupalový pásek 1,0x500x175mm, složení 70% Al + 30% Cu | E23: 1ks | F23: 35.99912415 | G23: =F23*(1-Elteq!$F$9) -> 35.99912415 | H23: 8591735054151
A24: TECHNIK | B24: Cupal 50x20 | D24: Cupalový pásek 1,0x500x200mm, složení 70% Al + 30% Cu | E24: 1ks | F24: 40.82374903 | G24: =F24*(1-Elteq!$F$9) -> 40.82374903 | H24: 8591735031923
A25: TECHNIK | B25: Cupal 50x25 | D25: Cupalový pásek 1,0x500x250mm, složení 70% Al + 30% Cu | E25: 1ks | F25: 50.4729988 | G25: =F25*(1-Elteq!$F$9) -> 50.4729988 | H25: 8591735053086
A26: TECHNIK | B26: Cupal 50x30 | D26: Cupalový pásek 1,0x500x300mm, složení 70% Al + 30% Cu | E26: 1ks | F26: 57.70993613 | G26: =F26*(1-Elteq!$F$9) -> 57.70993613 | H26: 8591735031930
A27: TECHNIK | B27: Cupal 50x50 | D27: Cupalový pásek 1,0x500x500mm, složení 70% Al + 30% Cu | E27: 1ks | F27: 87.58549792 | G27: =F27*(1-Elteq!$F$9) -> 87.58549792 | H27: 8591735052225
A28: TECHNIK | B28: Cupal 50x50/0,5 | D28: Cupalový pásek 0,5x500x500mm, složení 70% Al + 30% Cu | E28: 1ks | F28: 44.53499894 | G28: =F28*(1-Elteq!$F$9) -> 44.53499894
A29: TECHNIK | B29: Cupal M 3 | D29: Cupalová podložka pro svorník M3, síla 1mm, vnější ø 7,0mm / vnitřní ø 3,2mm | E29: 100ks | F29: 8.906999788 | G29: =F29*(1-Elteq!$F$9) -> 8.906999788 | H29: 8591735034023
A30: TECHNIK | B30: Cupal M 4 | D30: Cupalová podložka pro svorník M4, síla 1mm, vnější ø 8,5mm / vnitřní ø 4,2mm | E30: 100ks | F30: 9.27812478 | G30: =F30*(1-Elteq!$F$9) -> 9.27812478 | H30: 8591735029296
A31: TECHNIK | B31: Cupal M 5 | D31: Cupalová podložka pro svorník M5, síla 1mm, vnější ø 11,2mm / vnitřní ø 5,2mm | E31: 100ks | F31: 9.649249771 | G31: =F31*(1-Elteq!$F$9) -> 9.649249771 | H31: 8591735019341
A32: TECHNIK | B32: Cupal M 5/2 | D32: Cupalová podložka pro svorník M5, síla 2mm | E32: 50ks | F32: 7.793624815 | G32: =F32*(1-Elteq!$F$9) -> 7.793624815 | H32: 8591735048303
A33: TECHNIK | B33: Cupal M 6 | D33: Cupalová podložka pro svorník M6, síla 1mm, vnější ø 13,2mm / vnitřní ø 6,5mm | E33: 100ks | F33: 10.39149975 | G33: =F33*(1-Elteq!$F$9) -> 10.39149975 | H33: 8591735009335
A34: TECHNIK | B34: Cupal M 6/2 | D34: Cupalová podložka pro svorník M6, síla 2mm | E34: 50ks | F34: 7.97918731 | G34: =F34*(1-Elteq!$F$9) -> 7.97918731 | H34: 8591735048297
A35: TECHNIK | B35: Cupal M 8 | D35: Cupalová podložka pro svorník M8, síla 1mm, vnější ø 17,2mm / vnitřní ø 8,5mm | E35: 100ks | F35: 14.47387466 | G35: =F35*(1-Elteq!$F$9) -> 14.47387466 | H35: 8591735009298
A36: TECHNIK | B36: Cupal M 8/2 | D36: Cupalová podložka pro svorník M8, síla 2mm | E36: 50ks | F36: 14.47387466 | G36: =F36*(1-Elteq!$F$9) -> 14.47387466 | H36: 8591735048280
A37: TECHNIK | B37: Cupal M10 | D37: Cupalová podložka pro svorník M10, síla 1mm, vnější ø 21,2mm / vnitřní ø 11,0mm | E37: 100ks | F37: 21.1541245 | G37: =F37*(1-Elteq!$F$9) -> 21.1541245 | H37: 8591735009304
A38: TECHNIK | B38: Cupal M10/2 | D38: Cupalová podložka pro svorník M10, síla 2mm | E38: 50ks | F38: 18.40779956 | G38: =F38*(1-Elteq!$F$9) -> 18.40779956 | H38: 8591735047672
A39: TECHNIK | B39: Cupal M12 | D39: Cupalová podložka pro svorník M12, síla 1mm, vnější ø 28,2mm / vnitřní ø 13,0mm | E39: 50ks | F39: 16.32949961 | G39: =F39*(1-Elteq!$F$9) -> 16.32949961 | H39: 8591735009311
A40: TECHNIK | B40: Cupal M12/2 | D40: Cupalová podložka pro svorník M12, síla 2mm | E40: 50ks | F40: 29.13331181 | G40: =F40*(1-Elteq!$F$9) -> 29.13331181 | H40: 8591735048273
A41: TECHNIK | B41: Cupal M14 | D41: Cupalová podložka pro svorník M14, síla 1mm, vnější ø 32,0mm / vnitřní ø 15,0mm | E41: 50ks | F41: 25.60762439 | G41: =F41*(1-Elteq!$F$9) -> 25.60762439 | H41: 8591735018108
A42: TECHNIK | B42: Cupal M14/2 | D42: Cupalová podložka pro svorník M14, síla 2mm | E42: 50ks | F42: 38.0403116 | G42: =F42*(1-Elteq!$F$9) -> 38.0403116 | H42: 8591735048259
A43: TECHNIK | B43: Cupal M16 | D43: Cupalová podložka pro svorník M16, síla 1mm, vnější ø 35,0mm / vnitřní ø 17,0mm | E43: 50ks | F43: 24.49424942 | G43: =F43*(1-Elteq!$F$9) -> 24.49424942 | H43: 8591735009328
A44: TECHNIK | B44: Cupal M16/2 | D44: Cupalová podložka pro svorník M16, síla 2mm | E44: 50ks | F44: 43.05049898 | G44: =F44*(1-Elteq!$F$9) -> 43.05049898 | H44: 8591735048266
A45: TECHNIK | B45: Cupal M20 | D45: Cupalová podložka pro svorník M20, síla 1mm, vnější ø 40,0mm / vnitřní ø 21,0mm | E45: 50ks | F45: 32.28787423 | G45: =F45*(1-Elteq!$F$9) -> 32.28787423 | H45: 8591735031848
A46: TECHNIK | B46: Cupal M20/2 | D46: Cupalová podložka pro svorník M20, síla 2mm | E46: 50ks | F46: 52.51418625 | G46: =F46*(1-Elteq!$F$9) -> 52.51418625 | H46: 8591735048099
A47: TECHNIK | B47: DD 0,25-8 fialová | D47: Dutinka dvojitá, průřez 2x0,25mm2 / délka 8mm, dle DIN46228, barva fialová | E47: 500ks | F47: 11.31931223 | G47: =F47*(1-Elteq!$F$9) -> 11.31931223 | H47: 8591735014575
A48: TECHNIK | B48: DD 0,25-8 modrá | D48: Dutinka dvojitá, průřez 2x0,25mm2 / délka 8mm, dle DIN46228, barva modrá | E48: 500ks | F48: 11.31931223 | G48: =F48*(1-Elteq!$F$9) -> 11.31931223 | H48: 8591735014568
A49: TECHNIK | B49: DD 0,25-8 modrá 100 | D49: Dutinka dvojitá, průřez 2x0,25mm2 / délka 8mm, dle DIN46228, barva modrá (100ks) | E49: 100ks | F49: 2.820549933 | G49: =F49*(1-Elteq!$F$9) -> 2.820549933 | H49: 8591735030377
A50: TECHNIK | B50: DD 0,34-8 tyrkys100 | D50: Dutinka dvojitá, průřez 2x0,34mm2 / délka 8mm, dle DIN46228, barva tyrkysová (100ks) | E50: 100ks | F50: 2.820549933 | G50: =F50*(1-Elteq!$F$9) -> 2.820549933 | H50: 8591735030384
A51: TECHNIK | B51: DD 0,34-8 tyrkysová | D51: Dutinka dvojitá, průřez 2x0,34mm2 / délka 8mm, dle DIN46228, barva tyrkysová | E51: 500ks | F51: 11.31931223 | G51: =F51*(1-Elteq!$F$9) -> 11.31931223 | H51: 8591735014582
A52: TECHNIK | B52: DD 0,5- 6 bílá | D52: Dutinka dvojitá, průřez 2x0,50mm2 / délka 6mm, dle DIN46228, barva bílá | E52: 500ks | F52: 11.31931223 | G52: =F52*(1-Elteq!$F$9) -> 11.31931223 | H52: 8591735021863
A53: TECHNIK | B53: DD 0,5- 6 oranž 100 | D53: Dutinka dvojitá, průřez 2x0,50mm2 / délka 6mm, dle DIN46228, barva oranžová (100ks) | E53: 100ks | F53: 2.746324935 | G53: =F53*(1-Elteq!$F$9) -> 2.746324935 | H53: 8591735030391
A54: TECHNIK | B54: DD 0,5- 6 oranžová | D54: Dutinka dvojitá, průřez 2x0,50mm2 / délka 6mm, dle DIN46228, barva oranžová | E54: 500ks | F54: 11.31931223 | G54: =F54*(1-Elteq!$F$9) -> 11.31931223 | H54: 8591735021856
A55: TECHNIK | B55: DD 0,5- 8 bílá | D55: Dutinka dvojitá, průřez 2x0,50mm2 / délka 8mm, dle DIN46228, barva bílá | E55: 500ks | F55: 10.76262474 | G55: =F55*(1-Elteq!$F$9) -> 10.76262474 | H55: 8591735000844
A56: TECHNIK | B56: DD 0,5- 8 bílá 100 | D56: Dutinka dvojitá, průřez 2x0,50mm2 / délka 8mm, dle DIN46228, barva bílá (100ks) | E56: 100ks | F56: 2.449424942 | G56: =F56*(1-Elteq!$F$9) -> 2.449424942 | H56: 8591735030407
A57: TECHNIK | B57: DD 0,5- 8 oranž 100 | D57: Dutinka dvojitá, průřez 2x0,50mm2 / délka 8mm, dle DIN46228, barva oranžová (100ks) | E57: 100ks | F57: 2.449424942 | G57: =F57*(1-Elteq!$F$9) -> 2.449424942 | H57: 8591735017521
A58: TECHNIK | B58: DD 0,5- 8 oranžová | D58: Dutinka dvojitá, průřez 2x0,50mm2 / délka 8mm, dle DIN46228, barva oranžová | E58: 500ks | F58: 10.76262474 | G58: =F58*(1-Elteq!$F$9) -> 10.76262474 | H58: 8591735000851
A59: TECHNIK | B59: DD 0,5-10 bílá | D59: Dutinka dvojitá, průřez 2x0,50mm2 / délka 10mm, dle DIN46228, barva bílá | E59: 500ks | F59: 18.92737455 | G59: =F59*(1-Elteq!$F$9) -> 18.92737455 | H59: 8591735014001
A60: TECHNIK | B60: DD 0,5-10 bílá 100 | D60: Dutinka dvojitá, průřez 2x0,50mm2 / délka 10mm, dle DIN46228, barva bílá (100ks) | E60: 100ks | F60: 4.2308249 | G60: =F60*(1-Elteq!$F$9) -> 4.2308249 | H60: 8591735030414
A61: TECHNIK | B61: DD 0,5-10 oranžová | D61: Dutinka dvojitá, průřez 2x0,50mm2 / délka 10mm, dle DIN46228, barva oranžová | E61: 500ks | F61: 18.92737455 | G61: =F61*(1-Elteq!$F$9) -> 18.92737455 | H61: 8591735000868
A62: TECHNIK | B62: DD 0,5-12 bílá | D62: Dutinka dvojitá, průřez 2x0,50mm2 / délka 12mm, dle DIN46228, barva bílá | E62: 500ks | F62: 30.24668678 | G62: =F62*(1-Elteq!$F$9) -> 30.24668678 | H62: 8591735033699
A63: TECHNIK | B63: DD 0,5-12 oranž 100 | D63: Dutinka dvojitá, průřez 2x0,50mm2 / délka 12mm, dle DIN46228, barva oranžová (100ks) | E63: 100ks | F63: 7.199824829 | G63: =F63*(1-Elteq!$F$9) -> 7.199824829 | H63: 8591735030421
A64: TECHNIK | B64: DD 0,5-12 oranžová | D64: Dutinka dvojitá, průřez 2x0,50mm2 / délka 12mm, dle DIN46228, barva oranžová | E64: 500ks | F64: 30.24668678 | G64: =F64*(1-Elteq!$F$9) -> 30.24668678 | H64: 8591735017262
A65: TECHNIK | B65: DD 0,75- 8 bílá | D65: Dutinka dvojitá, průřez 2x0,75mm2 / délka 8mm, dle DIN46228, barva bílá | E65: 500ks | F65: 10.76262474 | G65: =F65*(1-Elteq!$F$9) -> 10.76262474 | H65: 8591735000875
A66: TECHNIK | B66: DD 0,75- 8 bílá 100 | D66: Dutinka dvojitá, průřez 2x0,75mm2 / délka 8mm, dle DIN46228, barva bílá (100ks) | E66: 100ks | F66: 2.449424942 | G66: =F66*(1-Elteq!$F$9) -> 2.449424942 | H66: 8591735017705
A67: TECHNIK | B67: DD 0,75- 8 modrá | D67: Dutinka dvojitá, průřez 2x0,75mm2 / délka 8mm, dle DIN46228, barva modrá | E67: 500ks | F67: 10.76262474 | G67: =F67*(1-Elteq!$F$9) -> 10.76262474 | H67: 8591735000882
A68: TECHNIK | B68: DD 0,75- 8 modrá100 | D68: Dutinka dvojitá, průřez 2x0,75mm2 / délka 8mm, dle DIN46228, barva modrá (100ks) | E68: 100ks | F68: 2.449424942 | G68: =F68*(1-Elteq!$F$9) -> 2.449424942 | H68: 8591735047023
A69: TECHNIK | B69: DD 0,75- 8 šedá | D69: Dutinka dvojitá, průřez 2x0,75mm2 / délka 8mm, dle DIN46228, barva šedá | E69: 500ks | F69: 10.76262474 | G69: =F69*(1-Elteq!$F$9) -> 10.76262474 | H69: 8591735000899
A70: =REPLACE(CELL("Filename",$A$1),1,FIND("]",CELL("filename",$A$1)),"") -> TECHNIK | B70: DD 0,75- 8 šedá 100 | D70: Dutinka dvojitá, průřez 2x0,75mm2 / délka 8mm, dle DIN46228, barva šedá (100ks) | E70: 100ks | F70: 2.449424942 | G70: =F70*(1-Elteq!$F$9) -> 2.449424942 | H70: 8591735018344
A71: TECHNIK | B71: DD 0,75-10 bílá | D71: Dutinka dvojitá, průřez 2x0,75mm2 / délka 10mm, dle DIN46228, barva bílá | E71: 500ks | F71: 19.11293705 | G71: =F71*(1-Elteq!$F$9) -> 19.11293705 | H71: 8591735000905
A72: TECHNIK | B72: DD 0,75-10 bílá 100 | D72: Dutinka dvojitá, průřez 2x0,75mm2 / délka 10mm, dle DIN46228, barva bílá (100ks) | E72: 100ks | F72: 4.2308249 | G72: =F72*(1-Elteq!$F$9) -> 4.2308249 | H72: 8591735018436
A73: TECHNIK | B73: DD 0,75-10 modrá | D73: Dutinka dvojitá, průřez 2x0,75mm2 / délka 10mm, dle DIN46228, barva modrá | E73: 500ks | F73: 19.11293705 | G73: =F73*(1-Elteq!$F$9) -> 19.11293705 | H73: 8591735000912
A74: TECHNIK | B74: DD 0,75-10 šedá | D74: Dutinka dvojitá, průřez 2x0,75mm2 / délka 10mm, dle DIN46228, barva šedá | E74: 500ks | F74: 19.11293705 | G74: =F74*(1-Elteq!$F$9) -> 19.11293705 | H74: 8591735000929
A75: TECHNIK | B75: DD 0,75-12 bílá | D75: Dutinka dvojitá, průřez 2x0,75mm2 / délka 12mm, dle DIN46228, barva bílá | E75: 500ks | F75: 20.59743701 | G75: =F75*(1-Elteq!$F$9) -> 20.59743701 | H75: 8591735029135
A76: TECHNIK | B76: DD 0,75-12 bílá 100 | D76: Dutinka dvojitá, průřez 2x0,75mm2 / délka 12mm, dle DIN46228, barva bílá (100ks) | E76: 100ks | F76: 4.750399887 | G76: =F76*(1-Elteq!$F$9) -> 4.750399887 | H76: 8591735030438
A77: TECHNIK | B77: DD 0,75-12 modrá | D77: Dutinka dvojitá, průřez 2x0,75mm2 / délka 12mm, dle DIN46228, barva modrá | E77: 500ks | F77: 20.59743701 | G77: =F77*(1-Elteq!$F$9) -> 20.59743701 | H77: 8591735029142
A78: TECHNIK | B78: DD 0,75-12 šedá | D78: Dutinka dvojitá, průřez 2x0,75mm2 / délka 12mm, dle DIN46228, barva šedá | E78: 500ks | F78: 20.59743701 | G78: =F78*(1-Elteq!$F$9) -> 20.59743701 | H78: 8591735029159
A79: TECHNIK | B79: DD 0,75-18 bílá | D79: Dutinka dvojitá, průřez 2x0,75mm2 / délka 18mm, dle DIN46228, barva bílá | E79: 500ks | F79: 30.24668678 | G79: =F79*(1-Elteq!$F$9) -> 30.24668678 | H79: 8591735018481
A80: TECHNIK | B80: DD 0,75-18 bílá 100 | D80: Dutinka dvojitá, průřez 2x0,75mm2 / délka 18mm, dle DIN46228, barva bílá (100ks) | E80: 100ks | F80: 7.199824829 | G80: =F80*(1-Elteq!$F$9) -> 7.199824829 | H80: 8591735030445
A81: TECHNIK | B81: DD 1,0- 8 rudá | D81: Dutinka dvojitá, průřez 2x1,0mm2 / délka 8mm, dle DIN46228, barva rudá | E81: 500ks | F81: 10.76262474 | G81: =F81*(1-Elteq!$F$9) -> 10.76262474 | H81: 8591735000936
A82: TECHNIK | B82: DD 1,0- 8 rudá 100 | D82: Dutinka dvojitá, průřez 2x1,0mm2 / délka 8mm, dle DIN46228, barva rudá (100ks) | E82: 100ks | F82: 2.449424942 | G82: =F82*(1-Elteq!$F$9) -> 2.449424942 | H82: 8591735018887
A83: TECHNIK | B83: DD 1,0- 8 žlutá | D83: Dutinka dvojitá, průřez 2x1,0mm2 / délka 8mm, dle DIN46228, barva žlutá | E83: 500ks | F83: 10.76262474 | G83: =F83*(1-Elteq!$F$9) -> 10.76262474 | H83: 8591735000943
A84: TECHNIK | B84: DD 1,0- 8 žlutá 100 | D84: Dutinka dvojitá, průřez 2x1,0mm2 / délka 8mm, dle DIN46228, barva žlutá (100ks) | E84: 100ks | F84: 2.449424942 | G84: =F84*(1-Elteq!$F$9) -> 2.449424942 | H84: 8591735017460
A85: TECHNIK | B85: DD 1,0-10 rudá | D85: Dutinka dvojitá, průřez 2x1,0mm2 / délka 10mm, dle DIN46228, barva rudá | E85: 500ks | F85: 19.85518703 | G85: =F85*(1-Elteq!$F$9) -> 19.85518703 | H85: 8591735000950
A86: TECHNIK | B86: DD 1,0-10 rudá 100 | D86: Dutinka dvojitá, průřez 2x1,0mm2 / délka 10mm, dle DIN46228, barva rudá (100ks) | E86: 100ks | F86: 4.2308249 | G86: =F86*(1-Elteq!$F$9) -> 4.2308249 | H86: 8591735033323
A87: TECHNIK | B87: DD 1,0-10 žlutá | D87: Dutinka dvojitá, průřez 2x1,0mm2 / délka 10mm, dle DIN46228, barva žlutá | E87: 500ks | F87: 19.85518703 | G87: =F87*(1-Elteq!$F$9) -> 19.85518703 | H87: 8591735000967
A88: TECHNIK | B88: DD 1,0-10 žlutá 100 | D88: Dutinka dvojitá, průřez 2x1,0mm2 / délka 10mm, dle DIN46228, barva žlutá (100ks) | E88: 100ks | F88: 4.2308249 | G88: =F88*(1-Elteq!$F$9) -> 4.2308249 | H88: 8591735017781
A89: TECHNIK | B89: DD 1,0-12 rudá | D89: Dutinka dvojitá, průřez 2x1,0mm2 / délka 12mm, dle DIN46228, barva rudá | E89: 500ks | F89: 20.78299951 | G89: =F89*(1-Elteq!$F$9) -> 20.78299951 | H89: 8591735020057
A90: TECHNIK | B90: DD 1,0-12 rudá 100 | D90: Dutinka dvojitá, průřez 2x1,0mm2 / délka 12mm, dle DIN46228, barva rudá (100ks) | E90: 100ks | F90: 4.750399887 | G90: =F90*(1-Elteq!$F$9) -> 4.750399887 | H90: 8591735037031
A91: TECHNIK | B91: DD 1,0-12 žlutá | D91: Dutinka dvojitá, průřez 2x1,0mm2 / délka 12mm, dle DIN46228, barva žlutá | E91: 500ks | F91: 20.78299951 | G91: =F91*(1-Elteq!$F$9) -> 20.78299951 | H91: 8591735018498
A92: TECHNIK | B92: DD 1,0-12 žlutá 100 | D92: Dutinka dvojitá, průřez 2x1,0mm2 / délka 12mm, dle DIN46228, barva žlutá (100ks) | E92: 100ks | F92: 4.750399887 | G92: =F92*(1-Elteq!$F$9) -> 4.750399887 | H92: 8591735018467
A93: TECHNIK | B93: DD 1,0-18 rudá | D93: Dutinka dvojitá, průřez 2x1,0mm2 / délka 18mm, dle DIN46228, barva rudá | E93: 500ks | F93: 30.24668678 | G93: =F93*(1-Elteq!$F$9) -> 30.24668678 | H93: 8591735017873
A94: TECHNIK | B94: DD 1,0-18 žlutá | D94: Dutinka dvojitá, průřez 2x1,0mm2 / délka 18mm, dle DIN46228, barva žlutá | E94: 500ks | F94: 30.24668678 | G94: =F94*(1-Elteq!$F$9) -> 30.24668678 | H94: 8591735017880
A95: TECHNIK | B95: DD 1,0-18 žlutá 100 | D95: Dutinka dvojitá, průřez 2x1,0mm2 / délka 18mm, dle DIN46228, barva žlutá (100ks) | E95: 100ks | F95: 7.199824829 | G95: =F95*(1-Elteq!$F$9) -> 7.199824829 | H95: 8591735030452
A96: TECHNIK | B96: DD 1,5- 8 černá | D96: Dutinka dvojitá, průřez 2x1,5mm2 / délka 8mm, dle DIN46228, barva černá | E96: 500ks | F96: 10.76262474 | G96: =F96*(1-Elteq!$F$9) -> 10.76262474 | H96: 8591735000974
A97: TECHNIK | B97: DD 1,5- 8 černá 100 | D97: Dutinka dvojitá, průřez 2x1,5mm2 / délka 8mm, dle DIN46228, barva černá (100ks) | E97: 100ks | F97: 2.449424942 | G97: =F97*(1-Elteq!$F$9) -> 2.449424942 | H97: 8591735030469
A98: TECHNIK | B98: DD 1,5- 8 rudá | D98: Dutinka dvojitá, průřez 2x1,5mm2 / délka 8mm, dle DIN46228, barva rudá | E98: 500ks | F98: 10.76262474 | G98: =F98*(1-Elteq!$F$9) -> 10.76262474 | H98: 8591735000981
A99: TECHNIK | B99: DD 1,5- 8 rudá 100 | D99: Dutinka dvojitá, průřez 2x1,5mm2 / délka 8mm, dle DIN46228, barva rudá (100ks) | E99: 100ks | F99: 2.449424942 | G99: =F99*(1-Elteq!$F$9) -> 2.449424942 | H99: 8591735017453
A100: TECHNIK | B100: DD 1,5-12 černá | D100: Dutinka dvojitá, průřez 2x1,5mm2 / délka 12mm, dle DIN46228, barva černá | E100: 500ks | F100: 19.85518703 | G100: =F100*(1-Elteq!$F$9) -> 19.85518703 | H100: 8591735000998
A101: TECHNIK | B101: DD 1,5-12 černá 100 | D101: Dutinka dvojitá, průřez 2x1,5mm2 / délka 12mm, dle DIN46228, barva černá (100ks) | E101: 100ks | F101: 4.416387395 | G101: =F101*(1-Elteq!$F$9) -> 4.416387395 | H101: 8591735033330
A102: TECHNIK | B102: DD 1,5-12 rudá | D102: Dutinka dvojitá, průřez 2x1,5mm2 / délka 12mm, dle DIN46228, barva rudá | E102: 500ks | F102: 19.85518703 | G102: =F102*(1-Elteq!$F$9) -> 19.85518703 | H102: 8591735001001
A103: TECHNIK | B103: DD 1,5-12 rudá 100 | D103: Dutinka dvojitá, průřez 2x1,5mm2 / délka 12mm, dle DIN46228, barva rudá (100ks) | E103: 100ks | F103: 4.416387395 | G103: =F103*(1-Elteq!$F$9) -> 4.416387395 | H103: 8591735018443
A104: TECHNIK | B104: DD 1,5-18 černá | D104: Dutinka dvojitá, průřez 2x1,5mm2 / délka 18mm, dle DIN46228, barva černá | E104: 100ks | F104: 7.199824829 | G104: =F104*(1-Elteq!$F$9) -> 7.199824829 | H104: 8591735048884
A105: TECHNIK | B105: DD 1,5-18 rudá | D105: Dutinka dvojitá, průřez 2x1,5mm2 / délka 18mm, dle DIN46228, barva rudá | E105: 100ks | F105: 7.199824829 | G105: =F105*(1-Elteq!$F$9) -> 7.199824829 | H105: 8591735016326
A106: TECHNIK | B106: DD 2,5-10 modrá | D106: Dutinka dvojitá, průřez 2x2,5mm2 / délka 10mm, dle DIN46228, barva modrá | E106: 250ks | F106: 6.123562355 | G106: =F106*(1-Elteq!$F$9) -> 6.123562355 | H106: 8591735001018
A107: TECHNIK | B107: DD 2,5-10 modrá 100 | D107: Dutinka dvojitá, průřez 2x2,5mm2 / délka 10mm, dle DIN46228, barva modrá (100ks) | E107: 100ks | F107: 2.746324935 | G107: =F107*(1-Elteq!$F$9) -> 2.746324935 | H107: 8591735030162
A108: TECHNIK | B108: DD 2,5-10 šedá | D108: Dutinka dvojitá, průřez 2x2,5mm2 / délka 10mm, dle DIN46228, barva šedá | E108: 250ks | F108: 6.123562355 | G108: =F108*(1-Elteq!$F$9) -> 6.123562355 | H108: 8591735001025
A109: TECHNIK | B109: DD 2,5-10 šedá 100 | D109: Dutinka dvojitá, průřez 2x2,5mm2 / délka 10mm, dle DIN46228, barva šedá (100ks) | E109: 100ks | F109: 2.746324935 | G109: =F109*(1-Elteq!$F$9) -> 2.746324935 | H109: 8591735036454
A110: TECHNIK | B110: DD 2,5-13 modrá | D110: Dutinka dvojitá, průřez 2x2,5mm2 / délka 13mm, dle DIN46228, barva modrá | E110: 250ks | F110: 11.31931223 | G110: =F110*(1-Elteq!$F$9) -> 11.31931223 | H110: 8591735001032
A111: TECHNIK | B111: DD 2,5-13 modrá 100 | D111: Dutinka dvojitá, průřez 2x2,5mm2 / délka 13mm, dle DIN46228, barva modrá (100ks) | E111: 100ks | F111: 5.010187381 | G111: =F111*(1-Elteq!$F$9) -> 5.010187381 | H111: 8591735018450
A112: TECHNIK | B112: DD 2,5-13 šedá | D112: Dutinka dvojitá, průřez 2x2,5mm2 / délka 13mm, dle DIN46228, barva šedá | E112: 250ks | F112: 11.31931223 | G112: =F112*(1-Elteq!$F$9) -> 11.31931223 | H112: 8591735001049
A113: TECHNIK | B113: DD 2,5-18 modrá | D113: Dutinka dvojitá, průřez 2x2,5mm2 / délka 18mm, dle DIN46228, barva modrá | E113: 100ks | F113: 7.756512316 | G113: =F113*(1-Elteq!$F$9) -> 7.756512316 | H113: 8591735018504
A114: TECHNIK | B114: DD 2,5-18 šedá | D114: Dutinka dvojitá, průřez 2x2,5mm2 / délka 18mm, dle DIN46228, barva šedá | E114: 100ks | F114: 7.756512316 | G114: =F114*(1-Elteq!$F$9) -> 7.756512316 | H114: 8591735027889
A115: TECHNIK | B115: DD 4-12 oranžová | D115: Dutinka dvojitá, průřez 2x4,0mm2 / délka 12mm, dle DIN46228, barva oranžová | E115: 100ks | F115: 8.201862305 | G115: =F115*(1-Elteq!$F$9) -> 8.201862305 | H115: 8591735001056
A116: TECHNIK | B116: DD 4-12 šedá | D116: Dutinka dvojitá, průřez 2x4,0mm2 / délka 12mm, dle DIN46228, barva šedá | E116: 100ks | F116: 8.201862305 | G116: =F116*(1-Elteq!$F$9) -> 8.201862305 | H116: 8591735001063
A117: TECHNIK | B117: DD 4-18 šedá | D117: Dutinka dvojitá, průřez 2x4,0mm2 / délka 18mm, dle DIN46228, barva šedá | E117: 100ks | F117: 14.62232465 | G117: =F117*(1-Elteq!$F$9) -> 14.62232465 | H117: 8591735001070
A118: TECHNIK | B118: DD 6-14 černá | D118: Dutinka dvojitá, průřez 2x6,0mm2 / délka 14mm, dle DIN46228, barva černá | E118: 100ks | F118: 10.46572475 | G118: =F118*(1-Elteq!$F$9) -> 10.46572475 | H118: 8591735001087
A119: TECHNIK | B119: DD 6-14 zelená | D119: Dutinka dvojitá, průřez 2x6,0mm2 / délka 14mm, dle DIN46228, barva zelená | E119: 100ks | F119: 10.46572475 | G119: =F119*(1-Elteq!$F$9) -> 10.46572475 | H119: 8591735001094
A120: TECHNIK | B120: DD 6-14 žlutá | D120: Dutinka dvojitá, průřez 2x6,0mm2 / délka 14mm, dle DIN46228, barva žlutá | E120: 100ks | F120: 10.46572475 | G120: =F120*(1-Elteq!$F$9) -> 10.46572475 | H120: 8591735001100
A121: TECHNIK | B121: DD 6-18 černá | D121: Dutinka dvojitá, průřez 2x6,0mm2 / délka 18mm, dle DIN46228, barva černá | E121: 100ks | F121: 16.9975246 | G121: =F121*(1-Elteq!$F$9) -> 16.9975246 | H121: 8591735001117
A122: TECHNIK | B122: DD 6-18 žlutá | D122: Dutinka dvojitá, průřez 2x6,0mm2 / délka 18mm, dle DIN46228, barva žlutá | E122: 100ks | F122: 16.9975246 | G122: =F122*(1-Elteq!$F$9) -> 16.9975246 | H122: 8591735013325
A123: TECHNIK | B123: DD 10-14 hnědá | D123: Dutinka dvojitá, průřez 2x10mm2 / délka 14mm, dle DIN46228, barva hnědá | E123: 100ks | F123: 12.87803719 | G123: =F123*(1-Elteq!$F$9) -> 12.87803719 | H123: 8591735029371
A124: TECHNIK | B124: DD 10-14 rudá | D124: Dutinka dvojitá, průřez 2x10mm2 / délka 14mm, dle DIN46228, barva rudá | E124: 100ks | F124: 12.87803719 | G124: =F124*(1-Elteq!$F$9) -> 12.87803719 | H124: 8591735001131
A125: TECHNIK | B125: DD 10-14 sl. kost | D125: Dutinka dvojitá, průřez 2x10mm2 / délka 14mm, dle DIN46228, barva sl. kost | E125: 100ks | F125: 12.87803719 | G125: =F125*(1-Elteq!$F$9) -> 12.87803719 | H125: 8591735001124
A126: TECHNIK | B126: DD 10-18 sl. kost | D126: Dutinka dvojitá, průřez 2x10mm2 / délka 18mm, dle DIN46228, barva sl. kost | E126: 100ks | F126: 19.59539953 | G126: =F126*(1-Elteq!$F$9) -> 19.59539953 | H126: 8591735009724
A127: TECHNIK | B127: DD 16-14 bílá | D127: Dutinka dvojitá, průřez 2x16mm2 / délka 14mm, dle DIN46228, barva bílá | E127: 50ks | F127: 9.389462277 | G127: =F127*(1-Elteq!$F$9) -> 9.389462277 | H127: 8591735018511
A128: TECHNIK | B128: DD 16-14 modrá | D128: Dutinka dvojitá, průřez 2x16mm2 / délka 14mm, dle DIN46228, barva modrá | E128: 50ks | F128: 9.389462277 | G128: =F128*(1-Elteq!$F$9) -> 9.389462277 | H128: 8591735001148
A129: TECHNIK | B129: DD 16-14 zelená | D129: Dutinka dvojitá, průřez 2x16mm2 / délka 14mm, dle DIN46228, barva zelená | E129: 50ks | F129: 9.389462277 | G129: =F129*(1-Elteq!$F$9) -> 9.389462277 | H129: 8591735001155
A130: TECHNIK | B130: DD 16-16 zelená | D130: Dutinka dvojitá, průřez 2x16mm2 / délka 16mm, dle DIN46228, barva zelená | E130: 50ks | F130: 9.723474769 | G130: =F130*(1-Elteq!$F$9) -> 9.723474769 | H130: 8591735021344
A131: TECHNIK | B131: DD 16-25 zelená | D131: Dutinka dvojitá, průřez 2x16mm2 / délka 25mm, dle DIN46228, barva zelená | E131: 50ks | F131: 14.65943715 | G131: =F131*(1-Elteq!$F$9) -> 14.65943715 | H131: 8591735009731
A132: TECHNIK | B132: DI 0,14- 6 hnědá | D132: Dutinka izolovaná, průřez 0,14mm2 / délka 6mm, dle DIN46228, barva hnědá | E132: 500ks | F132: 9.352349778 | G132: =F132*(1-Elteq!$F$9) -> 9.352349778 | H132: 8591735000011
A133: TECHNIK | B133: DI 0,14- 6 hnědá100 | D133: Dutinka izolovaná, průřez 0,14mm2 / délka 6mm, dle DIN46228, barva hnědá (100ks) | E133: 100ks | F133: 2.152524949 | G133: =F133*(1-Elteq!$F$9) -> 2.152524949 | H133: 8591735038694
A134: =REPLACE(CELL("Filename",$A$1),1,FIND("]",CELL("filename",$A$1)),"") -> TECHNIK | B134: DI 0,14- 6 šedá | D134: Dutinka izolovaná, průřez 0,14mm2 / délka 6mm, dle DIN46228, barva šedá | E134: 500ks | F134: 9.352349778 | G134: =F134*(1-Elteq!$F$9) -> 9.352349778 | H134: 8591735000028
A135: TECHNIK | B135: DI 0,14- 6 šedá 100 | D135: Dutinka izolovaná, průřez 0,14mm2 / délka 6mm, dle DIN46228, barva šedá (100ks) | E135: 100ks | F135: 2.152524949 | G135: =F135*(1-Elteq!$F$9) -> 2.152524949 | H135: 8591735030193
A136: TECHNIK | B136: DI 0,14- 8 hnědá | D136: Dutinka izolovaná, průřez 0,14mm2 / délka 8mm, dle DIN46228, barva hnědá | E136: 500ks | F136: 9.760587268 | G136: =F136*(1-Elteq!$F$9) -> 9.760587268 | H136: 8591735000035
A137: TECHNIK | B137: DI 0,14- 8 hnědá100 | D137: Dutinka izolovaná, průřez 0,14mm2 / délka 8mm, dle DIN46228, barva hnědá (100ks) | E137: 100ks | F137: 2.300974945 | G137: =F137*(1-Elteq!$F$9) -> 2.300974945 | H137: 8591735038908
A138: TECHNIK | B138: DI 0,14- 8 šedá | D138: Dutinka izolovaná, průřez 0,14mm2 / délka 8mm, dle DIN46228, barva šedá | E138: 500ks | F138: 9.760587268 | G138: =F138*(1-Elteq!$F$9) -> 9.760587268 | H138: 8591735000042
A139: TECHNIK | B139: DI 0,14- 8 šedá 100 | D139: Dutinka izolovaná, průřez 0,14mm2 / délka 8mm, dle DIN46228, barva šedá (100ks) | E139: 100ks | F139: 2.300974945 | G139: =F139*(1-Elteq!$F$9) -> 2.300974945 | H139: 8591735030209
A140: TECHNIK | B140: DI 0,25- 6 fialová | D140: Dutinka izolovaná, průřez 0,25mm2 / délka 6mm, dle DIN46228, barva fialová | E140: 500ks | F140: 9.352349778 | G140: =F140*(1-Elteq!$F$9) -> 9.352349778 | H140: 8591735056124
A141: TECHNIK | B141: DI 0,25- 6 modrá | D141: Dutinka izolovaná, průřez 0,25mm2 / délka 6mm, dle DIN46228, barva modrá | E141: 500ks | F141: 9.352349778 | G141: =F141*(1-Elteq!$F$9) -> 9.352349778 | H141: 8591735000059
A142: TECHNIK | B142: DI 0,25- 6 modrá100 | D142: Dutinka izolovaná, průřez 0,25mm2 / délka 6mm, dle DIN46228, barva modrá (100ks) | E142: 100ks | F142: 2.152524949 | G142: =F142*(1-Elteq!$F$9) -> 2.152524949 | H142: 8591735030216
A143: TECHNIK | B143: DI 0,25- 6 žlutá | D143: Dutinka izolovaná, průřez 0,25mm2 / délka 6mm, dle DIN46228, barva žlutá | E143: 500ks | F143: 9.352349778 | G143: =F143*(1-Elteq!$F$9) -> 9.352349778 | H143: 8591735021085
A144: TECHNIK | B144: DI 0,25- 8 fial.100 | D144: Dutinka izolovaná, průřez 0,25mm2 / délka 8mm, dle DIN46228, barva fialová (100ks) | E144: 100ks | F144: 2.300974945 | G144: =F144*(1-Elteq!$F$9) -> 2.300974945 | H144: 8591735033514
A145: TECHNIK | B145: DI 0,25- 8 fialová | D145: Dutinka izolovaná, průřez 0,25mm2 / délka 8mm, dle DIN46228, barva fialová | E145: 500ks | F145: 10.39149975 | G145: =F145*(1-Elteq!$F$9) -> 10.39149975 | H145: 8591735010812
A146: TECHNIK | B146: DI 0,25- 8 modrá | D146: Dutinka izolovaná, průřez 0,25mm2 / délka 8mm, dle DIN46228, barva modrá | E146: 500ks | F146: 10.39149975 | G146: =F146*(1-Elteq!$F$9) -> 10.39149975 | H146: 8591735000066
A147: TECHNIK | B147: DI 0,25- 8 modrá100 | D147: Dutinka izolovaná, průřez 0,25mm2 / délka 8mm, dle DIN46228, barva modrá (100ks) | E147: 100ks | F147: 2.300974945 | G147: =F147*(1-Elteq!$F$9) -> 2.300974945 | H147: 8591735018979
A148: TECHNIK | B148: DI 0,25- 8 žlutá | D148: Dutinka izolovaná, průřez 0,25mm2 / délka 8mm, dle DIN46228, barva žlutá | E148: 500ks | F148: 10.39149975 | G148: =F148*(1-Elteq!$F$9) -> 10.39149975 | H148: 8591735021092
A149: TECHNIK | B149: DI 0,25- 8 žlutá100 | D149: Dutinka izolovaná, průřez 0,25mm2 / délka 8mm, dle DIN46228, barva žlutá (100ks) | E149: 100ks | F149: 2.300974945 | G149: =F149*(1-Elteq!$F$9) -> 2.300974945 | H149: 8591735056360
A150: TECHNIK | B150: DI 0,25-12 fialová | D150: Dutinka izolovaná, průřez 0,25mm2 / délka 12mm, dle DIN46228, barva fialová | E150: 500ks | F150: 16.40372461 | G150: =F150*(1-Elteq!$F$9) -> 16.40372461 | H150: 8591735041328
A151: TECHNIK | B151: DI 0,25-12 modrá | D151: Dutinka izolovaná, průřez 0,25mm2 / délka 12mm, dle DIN46228, barva modrá | E151: 500ks | F151: 16.40372461 | G151: =F151*(1-Elteq!$F$9) -> 16.40372461 | H151: 8591735041335
A152: TECHNIK | B152: DI 0,34- 6 růžová | D152: Dutinka izolovaná, průřez 0,34mm2 / délka 6mm, dle DIN46228, barva růžová | E152: 500ks | F152: 9.352349778 | G152: =F152*(1-Elteq!$F$9) -> 9.352349778 | H152: 8591735047474
A153: TECHNIK | B153: DI 0,34- 6 tyrk 100 | D153: Dutinka izolovaná, průřez 0,34mm2 / délka 6mm, dle DIN46228, barva tyrkysová (100ks) | E153: 100ks | F153: 2.152524949 | G153: =F153*(1-Elteq!$F$9) -> 2.152524949 | H153: 8591735030223
A154: TECHNIK | B154: DI 0,34- 6 tyrkys. | D154: Dutinka izolovaná, průřez 0,34mm2 / délka 6mm, dle DIN46228, barva tyrkysová | E154: 500ks | F154: 9.352349778 | G154: =F154*(1-Elteq!$F$9) -> 9.352349778 | H154: 8591735000073
A155: TECHNIK | B155: DI 0,34- 6 zelená | D155: Dutinka izolovaná, průřez 0,34mm2 / délka 6mm, dle DIN46228, barva zelená | E155: 500ks | F155: 9.352349778 | G155: =F155*(1-Elteq!$F$9) -> 9.352349778 | H155: 8591735047498
A156: TECHNIK | B156: DI 0,34- 6 žlutá | D156: Dutinka izolovaná, průřez 0,34mm2 / délka 6mm, dle DIN46228, barva žlutá | E156: 500ks | F156: 9.352349778 | G156: =F156*(1-Elteq!$F$9) -> 9.352349778 | H156: 8591735047481
A157: TECHNIK | B157: DI 0,34- 8 růžo 100 | D157: Dutinka izolovaná, průřez 0,34mm2 / délka 8mm, dle DIN46228, barva růžová (100ks) | E157: 100ks | F157: 2.300974945 | G157: =F157*(1-Elteq!$F$9) -> 2.300974945 | H157: 8591735056476
A158: TECHNIK | B158: DI 0,34- 8 růžová | D158: Dutinka izolovaná, průřez 0,34mm2 / délka 8mm, dle DIN46228, barva růžová | E158: 500ks | F158: 10.39149975 | G158: =F158*(1-Elteq!$F$9) -> 10.39149975 | H158: 8591735047504
A159: TECHNIK | B159: DI 0,34- 8 tyrk 100 | D159: Dutinka izolovaná, průřez 0,34mm2 / délka 8mm, dle DIN46228, barva tyrkysová (100ks) | E159: 100ks | F159: 2.300974945 | G159: =F159*(1-Elteq!$F$9) -> 2.300974945 | H159: 8591735030230
A160: TECHNIK | B160: DI 0,34- 8 tyrkys. | D160: Dutinka izolovaná, průřez 0,34mm2 / délka 8mm, dle DIN46228, barva tyrkysová | E160: 500ks | F160: 10.39149975 | G160: =F160*(1-Elteq!$F$9) -> 10.39149975 | H160: 8591735000080
A161: TECHNIK | B161: DI 0,34- 8 zele 100 | D161: Dutinka izolovaná, průřez 0,34mm2 / délka 8mm, dle DIN46228, barva zelená (100ks) | E161: 100ks | F161: 2.300974945 | G161: =F161*(1-Elteq!$F$9) -> 2.300974945 | H161: 8591735056841
A162: TECHNIK | B162: DI 0,34- 8 zelená | D162: Dutinka izolovaná, průřez 0,34mm2 / délka 8mm, dle DIN46228, barva zelená | E162: 500ks | F162: 10.39149975 | G162: =F162*(1-Elteq!$F$9) -> 10.39149975 | H162: 8591735047511
A163: TECHNIK | B163: DI 0,34- 8 žlutá | D163: Dutinka izolovaná, průřez 0,34mm2 / délka 8mm, dle DIN46228, barva žlutá | E163: 500ks | F163: 10.39149975 | G163: =F163*(1-Elteq!$F$9) -> 10.39149975 | H163: 8591735047528
A164: TECHNIK | B164: DI 0,34-12 růžová | D164: Dutinka izolovaná, průřez 0,34mm2 / délka 12mm, dle DIN46228, barva růžová | E164: 500ks | F164: 16.40372461 | G164: =F164*(1-Elteq!$F$9) -> 16.40372461 | H164: 8591735041359
A165: TECHNIK | B165: DI 0,34-12 tyrkys. | D165: Dutinka izolovaná, průřez 0,34mm2 / délka 12mm, dle DIN46228, barva tyrkysová | E165: 500ks | F165: 16.40372461 | G165: =F165*(1-Elteq!$F$9) -> 16.40372461 | H165: 8591735041342
A166: TECHNIK | B166: DI 0,5- 6 bílá | D166: Dutinka izolovaná, průřez 0,50mm2 / délka 6mm, dle DIN46228, barva bílá | E166: 500ks | F166: 6.680249841 | G166: =F166*(1-Elteq!$F$9) -> 6.680249841 | H166: 8591735000097
A167: TECHNIK | B167: DI 0,5- 6 bílá 100 | D167: Dutinka izolovaná, průřez 0,50mm2 / délka 6mm, dle DIN46228, barva bílá (100ks) | E167: 100ks | F167: 1.484499965 | G167: =F167*(1-Elteq!$F$9) -> 1.484499965 | H167: 8591735030247
A168: TECHNIK | B168: DI 0,5- 6 oranž 100 | D168: Dutinka izolovaná, průřez 0,50mm2 / délka 6mm, dle DIN46228, barva oranžová (100ks) | E168: 100ks | F168: 1.484499965 | G168: =F168*(1-Elteq!$F$9) -> 1.484499965 | H168: 8591735030254
A169: TECHNIK | B169: DI 0,5- 6 oranžová | D169: Dutinka izolovaná, průřez 0,50mm2 / délka 6mm, dle DIN46228, barva oranžová | E169: 500ks | F169: 6.680249841 | G169: =F169*(1-Elteq!$F$9) -> 6.680249841 | H169: 8591735000103
A170: TECHNIK | B170: DI 0,5- 8 bílá | D170: Dutinka izolovaná, průřez 0,50mm2 / délka 8mm, dle DIN46228, barva bílá | E170: 500ks | F170: 4.082374903 | G170: =F170*(1-Elteq!$F$9) -> 4.082374903 | H170: 8591735000110
A171: TECHNIK | B171: DI 0,5- 8 bílá 100 | D171: Dutinka izolovaná, průřez 0,50mm2 / délka 8mm, dle DIN46228, barva bílá (100ks) | E171: 100ks | F171: 0.8906999788 | G171: =F171*(1-Elteq!$F$9) -> 0.8906999788 | H171: 8591735018122
A172: TECHNIK | B172: DI 0,5- 8 oranž 100 | D172: Dutinka izolovaná, průřez 0,50mm2 / délka 8mm, dle DIN46228, barva oranžová (100ks) | E172: 100ks | F172: 0.8906999788 | G172: =F172*(1-Elteq!$F$9) -> 0.8906999788 | H172: 8591735017729
A173: TECHNIK | B173: DI 0,5- 8 oranžová | D173: Dutinka izolovaná, průřez 0,50mm2 / délka 8mm, dle DIN46228, barva oranžová | E173: 500ks | F173: 4.082374903 | G173: =F173*(1-Elteq!$F$9) -> 4.082374903 | H173: 8591735000127
A174: TECHNIK | B174: DI 0,5-10 bílá | D174: Dutinka izolovaná, průřez 0,50mm2 / délka 10mm, dle DIN46228, barva bílá | E174: 500ks | F174: 8.350312302 | G174: =F174*(1-Elteq!$F$9) -> 8.350312302 | H174: 8591735000134
A175: TECHNIK | B175: DI 0,5-10 bílá 100 | D175: Dutinka izolovaná, průřez 0,50mm2 / délka 10mm, dle DIN46228, barva bílá (100ks) | E175: 100ks | F175: 1.781399958 | G175: =F175*(1-Elteq!$F$9) -> 1.781399958 | H175: 8591735018269
A176: TECHNIK | B176: DI 0,5-10 oranž 100 | D176: Dutinka izolovaná, průřez 0,50mm2 / délka 10mm, dle DIN46228, barva oranžová (100ks) | E176: 100ks | F176: 1.781399958 | G176: =F176*(1-Elteq!$F$9) -> 1.781399958 | H176: 8591735030261
A177: TECHNIK | B177: DI 0,5-10 oranžová | D177: Dutinka izolovaná, průřez 0,50mm2 / délka 10mm, dle DIN46228, barva oranžová | E177: 500ks | F177: 8.350312302 | G177: =F177*(1-Elteq!$F$9) -> 8.350312302 | H177: 8591735000141
A178: TECHNIK | B178: DI 0,5-12 bílá | D178: Dutinka izolovaná, průřez 0,50mm2 / délka 12mm, dle DIN46228, barva bílá | E178: 500ks | F178: 10.20593726 | G178: =F178*(1-Elteq!$F$9) -> 10.20593726 | H178: 8591735046385
A179: TECHNIK | B179: DI 0,5-12 oranž 100 | D179: Dutinka izolovaná, průřez 0,50mm2 / délka 12mm, dle DIN46228, barva oranžová (100ks) | E179: 100ks | F179: 2.226749947 | G179: =F179*(1-Elteq!$F$9) -> 2.226749947 | H179: 8591735052782
A180: TECHNIK | B180: DI 0,5-12 oranžová | D180: Dutinka izolovaná, průřez 0,50mm2 / délka 12mm, dle DIN46228, barva oranžová | E180: 500ks | F180: 10.20593726 | G180: =F180*(1-Elteq!$F$9) -> 10.20593726 | H180: 8591735030698
A181: TECHNIK | B181: DI 0,75- 6 bílá | D181: Dutinka izolovaná, průřez 0,75mm2 / délka 6mm, dle DIN46228, barva bílá | E181: 500ks | F181: 6.680249841 | G181: =F181*(1-Elteq!$F$9) -> 6.680249841 | H181: 8591735000158
A182: TECHNIK | B182: DI 0,75- 6 bílá 100 | D182: Dutinka izolovaná, průřez 0,75mm2 / délka 6mm, dle DIN46228, barva bílá (100ks) | E182: 100ks | F182: 1.484499965 | G182: =F182*(1-Elteq!$F$9) -> 1.484499965 | H182: 8591735030278
A183: TECHNIK | B183: DI 0,75- 6 modrá | D183: Dutinka izolovaná, průřez 0,75mm2 / délka 6mm, dle DIN46228, barva modrá | E183: 500ks | F183: 6.680249841 | G183: =F183*(1-Elteq!$F$9) -> 6.680249841 | H183: 8591735004910
A184: TECHNIK | B184: DI 0,75- 6 šedá | D184: Dutinka izolovaná, průřez 0,75mm2 / délka 6mm, dle DIN46228, barva šedá | E184: 500ks | F184: 6.680249841 | G184: =F184*(1-Elteq!$F$9) -> 6.680249841 | H184: 8591735000165
A185: TECHNIK | B185: DI 0,75- 6 šedá 100 | D185: Dutinka izolovaná, průřez 0,75mm2 / délka 6mm, dle DIN46228, barva šedá (100ks) | E185: 100ks | F185: 1.484499965 | G185: =F185*(1-Elteq!$F$9) -> 1.484499965 | H185: 8591735017392
A186: TECHNIK | B186: DI 0,75- 8 bílá | D186: Dutinka izolovaná, průřez 0,75mm2 / délka 8mm, dle DIN46228, barva bílá | E186: 500ks | F186: 4.082374903 | G186: =F186*(1-Elteq!$F$9) -> 4.082374903 | H186: 8591735000172
A187: TECHNIK | B187: DI 0,75- 8 bílá 100 | D187: Dutinka izolovaná, průřez 0,75mm2 / délka 8mm, dle DIN46228, barva bílá (100ks) | E187: 100ks | F187: 0.8906999788 | G187: =F187*(1-Elteq!$F$9) -> 0.8906999788 | H187: 8591735017538
A188: TECHNIK | B188: DI 0,75- 8 modrá | D188: Dutinka izolovaná, průřez 0,75mm2 / délka 8mm, dle DIN46228, barva modrá | E188: 500ks | F188: 4.082374903 | G188: =F188*(1-Elteq!$F$9) -> 4.082374903 | H188: 8591735000189
A189: TECHNIK | B189: DI 0,75- 8 modrá100 | D189: Dutinka izolovaná, průřez 0,75mm2 / délka 8mm, dle DIN46228, barva modrá (100ks) | E189: 100ks | F189: 0.8906999788 | G189: =F189*(1-Elteq!$F$9) -> 0.8906999788 | H189: 8591735017798
A190: TECHNIK | B190: DI 0,75- 8 šedá | D190: Dutinka izolovaná, průřez 0,75mm2 / délka 8mm, dle DIN46228, barva šedá | E190: 500ks | F190: 4.082374903 | G190: =F190*(1-Elteq!$F$9) -> 4.082374903 | H190: 8591735000196
A191: TECHNIK | B191: DI 0,75- 8 šedá 100 | D191: Dutinka izolovaná, průřez 0,75mm2 / délka 8mm, dle DIN46228, barva šedá (100ks) | E191: 100ks | F191: 0.8906999788 | G191: =F191*(1-Elteq!$F$9) -> 0.8906999788 | H191: 8591735030285
A192: TECHNIK | B192: DI 0,75-10 bílá | D192: Dutinka izolovaná, průřez 0,75mm2 / délka 10mm, dle DIN46228, barva bílá | E192: 500ks | F192: 8.350312302 | G192: =F192*(1-Elteq!$F$9) -> 8.350312302 | H192: 8591735000202
A193: TECHNIK | B193: DI 0,75-10 bílá 100 | D193: Dutinka izolovaná, průřez 0,75mm2 / délka 10mm, dle DIN46228, barva bílá (100ks) | E193: 100ks | F193: 1.781399958 | G193: =F193*(1-Elteq!$F$9) -> 1.781399958 | H193: 8591735030292
A194: TECHNIK | B194: DI 0,75-10 modrá | D194: Dutinka izolovaná, průřez 0,75mm2 / délka 10mm, dle DIN46228, barva modrá | E194: 500ks | F194: 8.350312302 | G194: =F194*(1-Elteq!$F$9) -> 8.350312302 | H194: 8591735000219
A195: TECHNIK | B195: DI 0,75-10 modrá100 | D195: Dutinka izolovaná, průřez 0,75mm2 / délka 10mm, dle DIN46228, barva modrá (100ks) | E195: 100ks | F195: 1.781399958 | G195: =F195*(1-Elteq!$F$9) -> 1.781399958 | H195: 8591735046125
A196: TECHNIK | B196: DI 0,75-10 šedá | D196: Dutinka izolovaná, průřez 0,75mm2 / délka 10mm, dle DIN46228, barva šedá | E196: 500ks | F196: 8.350312302 | G196: =F196*(1-Elteq!$F$9) -> 8.350312302 | H196: 8591735000226
A197: TECHNIK | B197: DI 0,75-12 bílá | D197: Dutinka izolovaná, průřez 0,75mm2 / délka 12mm, dle DIN46228, barva bílá | E197: 500ks | F197: 9.649249771 | G197: =F197*(1-Elteq!$F$9) -> 9.649249771 | H197: 8591735000233
A198: =REPLACE(CELL("Filename",$A$1),1,FIND("]",CELL("filename",$A$1)),"") -> TECHNIK | B198: DI 0,75-12 bílá 100 | D198: Dutinka izolovaná, průřez 0,75mm2 / délka 12mm, dle DIN46228, barva bílá (100ks) | E198: 100ks | F198: 2.078299951 | G198: =F198*(1-Elteq!$F$9) -> 2.078299951 | H198: 8591735018405
A199: TECHNIK | B199: DI 0,75-12 modrá | D199: Dutinka izolovaná, průřez 0,75mm2 / délka 12mm, dle DIN46228, barva modrá | E199: 500ks | F199: 9.649249771 | G199: =F199*(1-Elteq!$F$9) -> 9.649249771 | H199: 8591735000240
A200: TECHNIK | B200: DI 0,75-12 šedá | D200: Dutinka izolovaná, průřez 0,75mm2 / délka 12mm, dle DIN46228, barva šedá | E200: 500ks | F200: 9.649249771 | G200: =F200*(1-Elteq!$F$9) -> 9.649249771 | H200: 8591735000257
A201: TECHNIK | B201: DI 0,75-18 bílá | D201: Dutinka izolovaná, průřez 0,75mm2 / délka 18mm, dle DIN46228, barva bílá | E201: 500ks | F201: 12.24712471 | G201: =F201*(1-Elteq!$F$9) -> 12.24712471 | H201: 8591735030704
A202: TECHNIK | B202: DI 1,0- 6 rudá | D202: Dutinka izolovaná, průřez 1,0mm2 / délka 6mm, dle DIN46228, barva rudá | E202: 500ks | F202: 6.680249841 | G202: =F202*(1-Elteq!$F$9) -> 6.680249841 | H202: 8591735000264
A203: TECHNIK | B203: DI 1,0- 6 rudá 100 | D203: Dutinka izolovaná, průřez 1,0mm2 / délka 6mm, dle DIN46228, barva rudá (100ks) | E203: 100ks | F203: 1.484499965 | G203: =F203*(1-Elteq!$F$9) -> 1.484499965 | H203: 8591735017408
... 6401 more rows

Sheet TECHNIK SPECIAL - AKCIA
A4: sheetname | B4: Objednávací kód | D4: Popis | E4: Balenie | F4: Cena za ks alebo m | G4: Cena za kus po zľave | H4: EAN
A5: =REPLACE(CELL("Filename",$A$1),1,FIND("]",CELL("filename",$A$1)),"") -> TECHNIK SPECIAL - AKCIA | B5: AHP 03 | D5: 03853 ALFRA hydraulické čerpadlo na síť 220V s tlakovou hadicí délky 2m | E5: 1ks | F5: 2536.824877 | G5: =F5*(1-Elteq!$F$10) -> 2536.824877
A6: =REPLACE(CELL("Filename",$A$1),1,FIND("]",CELL("filename",$A$1)),"") -> TECHNIK SPECIAL - AKCIA | B6: ANP 8 STD | D6: Hydraulické čerpadlo na síť 220V s tlakem 20-850 bar, s tlakovou hadicí 3m | E6: 1ks | F6: 3374.26842 | G6: =F6*(1-Elteq!$F$10) -> 3374.26842
A7: TECHNIK SPECIAL - AKCIA | B7: B70M-P24 | D7: Hydraulické čerpadlo na baterie 24V s tlakem 700 bar, vč. nabíječky, brašny a tlakové hadice 3m | E7: 1ks | F7: 3656.323413 | G7: =F7*(1-Elteq!$F$10) -> 3656.323413
A8: TECHNIK SPECIAL - AKCIA | B8: BP 1 | D8: Hydraulické čerpadlo benzínové 700bar / 2,2kW / 25kg / 0,65-2,2 l/min. bez podstavce | E8: 1ks | F8: 3927.615782 | G8: =F8*(1-Elteq!$F$10) -> 3927.615782
A9: TECHNIK SPECIAL - AKCIA | B9: BP 3 | D9: Hydraulické čerpadlo benzínové 700bar / 3,2kW / 60kg / 610x470x850mm / 1,2-4,3 l/min. s podstavcem | E9: 1ks | F9: 3799.57766 | G9: =F9*(1-Elteq!$F$10) -> 3799.57766
A10: TECHNIK SPECIAL - AKCIA | B10: DSP 120 | D10: 02027 ALFRA hydraulické čerpadlo na síť 220V s tlakovou hadicí délky 1,8m | E10: 1ks | F10: 2990.710741 | G10: =F10*(1-Elteq!$F$10) -> 2990.710741
A11: TECHNIK SPECIAL - AKCIA | B11: DSP 120 nožní ovl. | D11: 02029 ALFRA nožní ovládání k čerpadlu DSP120 | E11: 1ks | F11: 211.541245 | G11: =F11*(1-Elteq!$F$10) -> 211.541245
A12: TECHNIK SPECIAL - AKCIA | B12: EHP 1 | D12: Hydraulické čerpadlo na síť 220V s tlakovou hadicí 2m vč. plastového kufru | E12: 1ks | F12: 1835.213081 | G12: =F12*(1-Elteq!$F$10) -> 1835.213081
A13: TECHNIK SPECIAL - AKCIA | B13: FP 700 | D13: Hydraulické nožní čerpadlo s tlakem 700 bar, vč. brašny a tlakové hadice 3m | E13: 1ks | F13: 858.7832296 | G13: =F13*(1-Elteq!$F$10) -> 858.7832296
A14: TECHNIK SPECIAL - AKCIA | B14: FP 850 | D14: Hydraulické nožní čerpadlo s tlakem 850 bar, vč. brašny a tlakové hadice 3m | E14: 1ks | F14: 902.2048536 | G14: =F14*(1-Elteq!$F$10) -> 902.2048536
A15: TECHNIK SPECIAL - AKCIA | B15: FPA 700 | D15: 02121 ALFRA hydraulické nožní čerpadlo s tlakem 700 bar, vč. tlakové hadice 2,8m | E15: 1ks | F15: 850.4329173 | G15: =F15*(1-Elteq!$F$10) -> 850.4329173
A16: TECHNIK SPECIAL - AKCIA | B16: HAD 2 | D16: Hydraulická hadice 2m oboustranně osazená rychlospojkami CEJN | E16: 1ks | F16: 209.68562 | G16: =F16*(1-Elteq!$F$10) -> 209.68562
A17: TECHNIK SPECIAL - AKCIA | B17: HAD 3 | D17: Hydraulická hadice 3m oboustranně osazená rychlospojkami CEJN | E17: 1ks | F17: 234.5509944 | G17: =F17*(1-Elteq!$F$10) -> 234.5509944
A18: TECHNIK SPECIAL - AKCIA | B18: HAD 5 | D18: Hydraulická hadice 5m oboustranně osazená rychlospojkami CEJN | E18: 1ks | F18: 282.0549933 | G18: =F18*(1-Elteq!$F$10) -> 282.0549933
A19: TECHNIK SPECIAL - AKCIA | B19: HAD10 | D19: Hydraulická hadice 10m oboustranně osazená rychlospojkami CEJN | E19: 1ks | F19: 552.9762369 | G19: =F19*(1-Elteq!$F$10) -> 552.9762369
A20: TECHNIK SPECIAL - AKCIA | B20: NP7-700 | D20: Hydraulické čerpadlo na síť 220V s tlakem 700 bar, bez tlakové hadice | E20: 1ks | F20: 3841.143659 | G20: =F20*(1-Elteq!$F$10) -> 3841.143659
A21: TECHNIK SPECIAL - AKCIA | B21: NP7-850 | D21: Hydraulické čerpadlo na síť 220V s tlakem 850 bar, bez tlakové hadice | E21: 1ks | F21: 3918.337657 | G21: =F21*(1-Elteq!$F$10) -> 3918.337657
A22: TECHNIK SPECIAL - AKCIA | B22: OLEJ HF-E15 | D22: Hydraulický olej typ SHELL Naturelle HF-E15 pro hydraulické nářadí (5 litrů) | E22: 1ks | F22: 89.06999788 | G22: =F22*(1-Elteq!$F$10) -> 89.06999788
A23: TECHNIK SPECIAL - AKCIA | B23: OLEJ H-LP46 | D23: 01455 ALFRA hydraulický olej typ H-LP46 pro hydraulické nářadí (1 litr) | E23: 1ks | F23: 18.37068706 | G23: =F23*(1-Elteq!$F$10) -> 18.37068706
A24: TECHNIK SPECIAL - AKCIA | B24: PO 7000 | D24: Hydraulické nožní čerpadlo s tlakem 700 bar, vč. plastového kufru a tlakové hadice 3m | E24: 1ks | F24: 933.3793528 | G24: =F24*(1-Elteq!$F$10) -> 933.3793528
A25: TECHNIK SPECIAL - AKCIA | B25: SC 05 | D25: 03852 ALFRA hydraulické čerpadlo na síť 220V s tlakovou hadicí délky 2m | E25: 1ks | F25: 5120.040378 | G25: =F25*(1-Elteq!$F$10) -> 5120.040378
A26: TECHNIK SPECIAL - AKCIA | B26: V 24/230 UNI-F | D26: Hydraulické čerpadlo na síť i baterie 24V / 230V UNI FUTURE 2050 DA, bez tlakové hadice | E26: 1ks | F26: 5377.229997 | G26: =F26*(1-Elteq!$F$10) -> 5377.229997
A27: TECHNIK SPECIAL - AKCIA | B27: ALFRA 03910 | D27: 03910 ALFRA hydraulický základní přístroj komplet s čerpadlem SC05 | E27: 1ks | F27: 11063.79267 | G27: =F27*(1-Elteq!$F$10) -> 11063.79267
A28: TECHNIK SPECIAL - AKCIA | B28: B 200 | D28: 03750 ALFRA hydraulická ohýbací hlavice pro pasovinu Cu 200x10mm a Al 200x16mm | E28: 1ks | F28: 37112.46201 | G28: =F28*(1-Elteq!$F$10) -> 37112.46201
A29: TECHNIK SPECIAL - AKCIA | B29: BS 160 | D29: 03258 ALFRA hydraulická ohýbací a děrovací hlavice pro pasovinu Al a Cu 160x12mm | E29: 1ks | F29: 2280.563071 | G29: =F29*(1-Elteq!$F$10) -> 2280.563071
A30: TECHNIK SPECIAL - AKCIA | B30: BS 160/R5 | D30: 03259 ALFRA razník s poloměrem R5 pro ohýbání do síly materiálu 8mm k hlavici BS160 | E30: 1ks | F30: 289.8486181 | G30: =F30*(1-Elteq!$F$10) -> 289.8486181
A31: TECHNIK SPECIAL - AKCIA | B31: BW 200 | D31: Hydraulická ohýbací hlavice pro pasovinu Cu 200x13mm a Al 200x13mm | E31: 1ks | F31: 798.289856 | G31: =F31*(1-Elteq!$F$10) -> 798.289856
A32: TECHNIK SPECIAL - AKCIA | B32: DP100Z PLUS | D32: Hydraulická děrovací hlavice pro AL a CU materiály s maximálními rozměry 100x10mm | E32: 1ks | F32: 855.9997922 | G32: =F32*(1-Elteq!$F$10) -> 855.9997922
A33: TECHNIK SPECIAL - AKCIA | B33: ECW-H3D | D33: Hydraulická lisovací hlavice do 500mm2 (RH230) | E33: 1ks | F33: 606.9749231 | G33: =F33*(1-Elteq!$F$10) -> 606.9749231
A34: TECHNIK SPECIAL - AKCIA | B34: LH 130 | D34: Hydraulická lisovací hlavice do 240mm2 | E34: 1ks | F34: 607.9027356 | G34: =F34*(1-Elteq!$F$10) -> 607.9027356
A35: TECHNIK SPECIAL - AKCIA | B35: LH 130K | D35: Hydraulická lisovací hlavice do 240mm2 v kufru s příslušenstvím | E35: 1ks | F35: 887.3598539 | G35: =F35*(1-Elteq!$F$10) -> 887.3598539
A36: TECHNIK SPECIAL - AKCIA | B36: LPV 120/12 | D36: 03256 ALFRA hydraulická stanice pro ohýbání a děrování pasovin Al a Cu 120x12mm | E36: 1ks | F36: 3398.577107 | G36: =F36*(1-Elteq!$F$10) -> 3398.577107
A37: TECHNIK SPECIAL - AKCIA | B37: NC 1319 | D37: Hydraulický střihač matek pro šroubové spoje M6 - M12 | E37: 1ks | F37: 544.6259246 | G37: =F37*(1-Elteq!$F$10) -> 544.6259246
A38: TECHNIK SPECIAL - AKCIA | B38: NC 1924 | D38: Hydraulický střihač matek pro šroubové spoje M12 - M16 | E38: 1ks | F38: 1074.035724 | G38: =F38*(1-Elteq!$F$10) -> 1074.035724
A39: TECHNIK SPECIAL - AKCIA | B39: NC 2432 | D39: Hydraulický střihač matek pro šroubové spoje M16 - M22 | E39: 1ks | F39: 1342.173531 | G39: =F39*(1-Elteq!$F$10) -> 1342.173531
A40: TECHNIK SPECIAL - AKCIA | B40: NC 3241 | D40: Hydraulický střihač matek pro šroubové spoje M22 - M27 | E40: 1ks | F40: 1589.528337 | G40: =F40*(1-Elteq!$F$10) -> 1589.528337
A41: TECHNIK SPECIAL - AKCIA | B41: NP 100 U | D41: Hydraulická střihací hlavice na pasovinu | E41: 1ks | F41: 861.7522295 | G41: =F41*(1-Elteq!$F$10) -> 861.7522295
A42: TECHNIK SPECIAL - AKCIA | B42: OP 100 D | D42: Hydraulická ohýbací hlavice pro pasovinu Al a Cu 100x10mm | E42: 1ks | F42: 1038.407725 | G42: =F42*(1-Elteq!$F$10) -> 1038.407725
A43: TECHNIK SPECIAL - AKCIA | B43: OP 200 | D43: Hydraulická ohýbací hlavice pro pasovinu Al a Cu 200x15mm | E43: 1ks | F43: 1288.917094 | G43: =F43*(1-Elteq!$F$10) -> 1288.917094
A44: TECHNIK SPECIAL - AKCIA | B44: P 60 CK | D44: Hydraulická lisovací hlavice do 300mm2 | E44: 1ks | F44: 612.7273604 | G44: =F44*(1-Elteq!$F$10) -> 612.7273604
A45: TECHNIK SPECIAL - AKCIA | B45: PPV 120/12 | D45: 03200 ALFRA hydraulická stanice pro ohýbání a děrování pasovin Al a Cu 120x12mm | E45: 1ks | F45: 4943.384883 | G45: =F45*(1-Elteq!$F$10) -> 4943.384883
A46: TECHNIK SPECIAL - AKCIA | B46: PPV 120/12 DD | D46: 03203 ALFRA délkový doraz s jemným nastavením | E46: 1ks | F46: 379.660866 | G46: =F46*(1-Elteq!$F$10) -> 379.660866
A47: TECHNIK SPECIAL - AKCIA | B47: PPV 120/12 DMS | D47: 03229 ALFRA digitální měřicí systém úhlu ohybu s připojovacím kabelem | E47: 1ks | F47: 2000.92039 | G47: =F47*(1-Elteq!$F$10) -> 2000.92039
A48: TECHNIK SPECIAL - AKCIA | B48: PPV 120/12 MMS | D48: 03201 ALFRA mechanický měřící systém úhlu ohybu s připojovacím kabelem | E48: 1ks | F48: 303.2091178 | G48: =F48*(1-Elteq!$F$10) -> 303.2091178
A49: TECHNIK SPECIAL - AKCIA | B49: PPV 120/12 OM | D49: 03202 ALFRA ohybová matrice | E49: 1ks | F49: 351.6409291 | G49: =F49*(1-Elteq!$F$10) -> 351.6409291
A50: TECHNIK SPECIAL - AKCIA | B50: PPV 160/10 | D50: 03200SET ALFRA hydraulická stanice pro ohýbání a děrování pasovin Al a Cu 160x10mm | E50: 1ks | F50: 8530.12236 | G50: =F50*(1-Elteq!$F$10) -> 8530.12236
A51: TECHNIK SPECIAL - AKCIA | B51: RH 50 | D51: Hydraulická lisovací hlavice do 185mm2 | E51: 1ks | F51: 408.2374903 | G51: =F51*(1-Elteq!$F$10) -> 408.2374903
A52: TECHNIK SPECIAL - AKCIA | B52: RHC 131 | D52: Hydraulická lisovací hlavice do 300mm2 | E52: 1ks | F52: 447.7623019 | G52: =F52*(1-Elteq!$F$10) -> 447.7623019 | H52: 8591735040963
A53: TECHNIK SPECIAL - AKCIA | B53: RHC 131 LN | D53: Hydraulická lisovací hlavice do 300mm2 | E53: 1ks | F53: 531.8221124 | G53: =F53*(1-Elteq!$F$10) -> 531.8221124 | H53: 8591735040970
A54: TECHNIK SPECIAL - AKCIA | B54: RHM 132 | D54: Hydraulická lisovací hlavice do 300mm2 | E54: 1ks | F54: 624.0466727 | G54: =F54*(1-Elteq!$F$10) -> 624.0466727
A55: TECHNIK SPECIAL - AKCIA | B55: RHT 160 | D55: Hydraulická děrovací hlavice pro otvory 6,5-21,0mm pro otvory do 27,5mm od okraje pasoviny | E55: 1ks | F55: 796.4342311 | G55: =F55*(1-Elteq!$F$10) -> 796.4342311
A56: TECHNIK SPECIAL - AKCIA | B56: RHT 160-60N | D56: Hydraulická děrovací hlavice pro otvory 6,5-21,0mm pro otvory do 55,0mm od okraje pasoviny | E56: 1ks | F56: 1273.70097 | G56: =F56*(1-Elteq!$F$10) -> 1273.70097
A57: TECHNIK SPECIAL - AKCIA | B57: RHU 131-C | D57: Hydraulická lisovací hlavice do průřezu 300mm2 | E57: 1ks | F57: 556.6874868 | G57: =F57*(1-Elteq!$F$10) -> 556.6874868
A58: TECHNIK SPECIAL - AKCIA | B58: RHU 450 | D58: Hydraulická lisovací hlavice do průřezu 1000mm2 | E58: 1ks | F58: 964.5538521 | G58: =F58*(1-Elteq!$F$10) -> 964.5538521 | H58: 8591735042721
A59: TECHNIK SPECIAL - AKCIA | B59: RHU 520 | D59: Hydraulická lisovací hlavice do průřezu 1200mm2 | E59: 1ks | F59: 1257.37147 | G59: =F59*(1-Elteq!$F$10) -> 1257.37147
A60: TECHNIK SPECIAL - AKCIA | B60: RHU1000 | D60: Hydraulická lisovací hlavice do průřezu 2500mm2 | E60: 1ks | F60: 6381.865348 | G60: =F60*(1-Elteq!$F$10) -> 6381.865348
A61: TECHNIK SPECIAL - AKCIA | B61: S 125 | D61: 03250 ALFRA hydraulická střihací hlavice na pasovinu 120x12mm (SP120) | E61: 1ks | F61: 2148.071449 | G61: =F61*(1-Elteq!$F$10) -> 2148.071449
A62: TECHNIK SPECIAL - AKCIA | B62: SK 130 | D62: Kovový kufr pro čelisti typu C | E62: 1ks | F62: 153.0890589 | G62: =F62*(1-Elteq!$F$10) -> 153.0890589
A63: TECHNIK SPECIAL - AKCIA | B63: SK 130 PL | D63: Plastový kufr pro uložení hlavice RH 131 a lisovacích čelistí | E63: 1ks | F63: 29.3188743 | G63: =F63*(1-Elteq!$F$10) -> 29.3188743 | H63: 8591735046767
A64: TECHNIK SPECIAL - AKCIA | B64: SK 130 U | D64: Kovový kufr pro uložení hlavice RHU 131 a lisovacích čelistí typu C | E64: 1ks | F64: 174.7998708 | G64: =F64*(1-Elteq!$F$10) -> 174.7998708
A65: TECHNIK SPECIAL - AKCIA | B65: SK 230 | D65: Kovový kufr pro hlavici ECW-H3D a RH230 (MK230) | E65: 1ks | F65: 128.409247 | G65: =F65*(1-Elteq!$F$10) -> 128.409247
A66: TECHNIK SPECIAL - AKCIA | B66: SK 50 PL | D66: Plastový kufr pro hlavici RH 50 | E66: 1ks | F66: 35.25687416 | G66: =F66*(1-Elteq!$F$10) -> 35.25687416
A67: TECHNIK SPECIAL - AKCIA | B67: SK 520 | D67: Kovový kufr pro hlavici RHU 450 a RHU 520 (MK450) | E67: 1ks | F67: 107.4406849 | G67: =F67*(1-Elteq!$F$10) -> 107.4406849
A68: TECHNIK SPECIAL - AKCIA | B68: SK 520 C | D68: Kovový kufr pro čelisti k RHU 450 a RHU 520 | E68: 1ks | F68: 145.4809965 | G68: =F68*(1-Elteq!$F$10) -> 145.4809965
A69: TECHNIK SPECIAL - AKCIA | B69: AP 35/2 | D69: Elektrohydraulické lisovací kleště do 120mm2, síla 35kN, vč.kufru, nabíječky a akumulátoru 18V/1,5Ah | E69: 1ks | F69: 1284.09247 | G69: =F69*(1-Elteq!$F$10) -> 1284.09247
A70: =REPLACE(CELL("Filename",$A$1),1,FIND("]",CELL("filename",$A$1)),"") -> TECHNIK SPECIAL - AKCIA | B70: AP 62 | D70: Elektrohydraulické lisovací kleště do 300mm2, síla 62kN, vč.kufru, nabíječky a akumulátoru 18V/1,5Ah | E70: 1ks | F70: 1465.943715 | G70: =F70*(1-Elteq!$F$10) -> 1465.943715 | H70: 8591735047634
A71: TECHNIK SPECIAL - AKCIA | B71: AP 62 D | D71: Elektrohydraulické lisovací kleště do 300mm2, síla 62kN, vč. kufru, nabíječky a akumulátoru 18V/4Ah | E71: 1ks | F71: 1888.283955 | G71: =F71*(1-Elteq!$F$10) -> 1888.283955 | H71: 8591735047641
A72: TECHNIK SPECIAL - AKCIA | B72: AP 130 | D72: Elektrohydraulické lisovací kleště do 400mm2, síla 130kN, vč. kufru, nabíječky a akumulátoru 18V/2Ah | E72: 1ks | F72: 1707.174959 | G72: =F72*(1-Elteq!$F$10) -> 1707.174959
A73: TECHNIK SPECIAL - AKCIA | B73: AP 132 C26 | D73: Elektrohydraulické lisovací kleště do 400mm2, síla 130kN, vč. kufru, nabíječky a akumulátoru 18V/4Ah | E73: 1ks | F73: 2042.671951 | G73: =F73*(1-Elteq!$F$10) -> 2042.671951 | H73: 8591735047689
A74: TECHNIK SPECIAL - AKCIA | B74: AP 132 C32 | D74: Elektrohydraulické lisovací kleště do 400mm2, síla 130kN, vč. kufru, nabíječky a akumulátoru 18V/4Ah | E74: 1ks | F74: 2071.619701 | G74: =F74*(1-Elteq!$F$10) -> 2071.619701 | H74: 8591735047696
A75: TECHNIK SPECIAL - AKCIA | B75: AP 132 C38 | D75: Elektrohydraulické lisovací kleště do 400mm2, síla 130kN, vč. kufru, nabíječky a akumulátoru 18V/4Ah | E75: 1ks | F75: 2165.514324 | G75: =F75*(1-Elteq!$F$10) -> 2165.514324 | H75: 8591735047658
A76: TECHNIK SPECIAL - AKCIA | B76: AP 132 U | D76: Elektrohydraulické lisovací kleště do 400mm2, síla 130kN, vč. kufru, nabíječky a akumulátoru 18V/4Ah | E76: 1ks | F76: 2304.686195 | G76: =F76*(1-Elteq!$F$10) -> 2304.686195 | H76: 8591735047665
A77: TECHNIK SPECIAL - AKCIA | B77: B 131-C | D77: Elektrohydraulické lisovací kleště do 400mm2, síla 130kN, vč. kufru, nabíječky a akumulátorů | E77: 1ks | F77: 2349.221194 | G77: =F77*(1-Elteq!$F$10) -> 2349.221194
A78: TECHNIK SPECIAL - AKCIA | B78: B 131LN-C | D78: Elektrohydraulické lisovací kleště do 400mm2, síla 130kN, vč. kufru, nabíječky a akumulátorů | E78: 1ks | F78: 2478.001566 | G78: =F78*(1-Elteq!$F$10) -> 2478.001566
A79: TECHNIK SPECIAL - AKCIA | B79: B 131-UC | D79: Elektrohydraulické lisovací kleště do 400mm2, síla 130kN, vč. kufru, nabíječky a akumulátorů | E79: 1ks | F79: 2491.362066 | G79: =F79*(1-Elteq!$F$10) -> 2491.362066
A80: TECHNIK SPECIAL - AKCIA | B80: B 1350-C | D80: Elektrohydraulické lisovací kleště do 400mm2, síla 132kN, vč. kufru, nabíječky a akumulátorů 18V | E80: 1ks | F80: 2293.923571 | G80: =F80*(1-Elteq!$F$10) -> 2293.923571
A81: TECHNIK SPECIAL - AKCIA | B81: B 1350L-C | D81: Elektrohydraulické lisovací kleště do 400mm2, síla 132kN, vč. kufru, nabíječky a akumulátorů 18V | E81: 1ks | F81: 2429.755317 | G81: =F81*(1-Elteq!$F$10) -> 2429.755317
A82: TECHNIK SPECIAL - AKCIA | B82: B 1350-UC | D82: Elektrohydraulické lisovací kleště do 400mm2, síla 132kN, vč. kufru, nabíječky a akumulátorů 18V | E82: 1ks | F82: 2342.912069 | G82: =F82*(1-Elteq!$F$10) -> 2342.912069
A83: TECHNIK SPECIAL - AKCIA | B83: B 15 D | D83: Elektrohydraulické lisovací kleště do 16mm2, síla 15kN, vč. kufru, nabíječky a akumulátorů | E83: 1ks | F83: 1349.781593 | G83: =F83*(1-Elteq!$F$10) -> 1349.781593
A84: TECHNIK SPECIAL - AKCIA | B84: B 35-45 D | D84: Elektrohydraulické lisovací kleště do 120-150mm2, síla 35kN, vč. kufru, nabíječky a akumulátorů | E84: 1ks | F84: 1305.617719 | G84: =F84*(1-Elteq!$F$10) -> 1305.617719
A85: TECHNIK SPECIAL - AKCIA | B85: B 35-50 D | D85: Elektrohydraulické lisovací kleště do 120-150mm2, síla 35kN, vč. kufru, nabíječky a akumulátorů | E85: 1ks | F85: 1399.512342 | G85: =F85*(1-Elteq!$F$10) -> 1399.512342
A86: TECHNIK SPECIAL - AKCIA | B86: B 46 | D86: Elektrohydraulické lisovací kleště do 120mm2, síla 50kN, vč. kufru, nabíječky a akumulátorů | E86: 1ks | F86: 1534.601839 | G86: =F86*(1-Elteq!$F$10) -> 1534.601839
A87: TECHNIK SPECIAL - AKCIA | B87: B 500 | D87: Elektrohydraulické lisovací kleště do 240mm2, síla 60kN, vč. kufru, nabíječky a akumulátorů (B51) | E87: 1ks | F87: 2338.458569 | G87: =F87*(1-Elteq!$F$10) -> 2338.458569
A88: TECHNIK SPECIAL - AKCIA | B88: B 62 | D88: Elektrohydraulické lisovací kleště do 240mm2, síla 60kN, vč. kufru, nabíječky a akumulátorů | E88: 1ks | F88: 1627.011961 | G88: =F88*(1-Elteq!$F$10) -> 1627.011961
A89: TECHNIK SPECIAL - AKCIA | B89: BPS 230.14 | D89: Síťový adaptér 230V / 14,4V pro napájení hydraulických bateriových zařízení | E89: 1ks | F89: 271.2923686 | G89: =F89*(1-Elteq!$F$10) -> 271.2923686
A90: TECHNIK SPECIAL - AKCIA | B90: BPS 230.24 | D90: Síťový adaptér 230V / 24V pro napájení hydraulických bateriových zařízení | E90: 1ks | F90: 295.415493 | G90: =F90*(1-Elteq!$F$10) -> 295.415493
A91: TECHNIK SPECIAL - AKCIA | B91: EPG 10 | D91: Elektrohydraulické lisovací kleště bateriové 13kN do průřezu 50mm2, Klauke EK15/50 | E91: 1ks | F91: 1208.011846 | G91: =F91*(1-Elteq!$F$10) -> 1208.011846
A92: TECHNIK SPECIAL - AKCIA | B92: EPG 15 | D92: Elektrohydraulické lisovací kleště bateriové 13kN do průřezu 50mm2, Klauke EK15/50G | E92: 1ks | F92: 1255.330283 | G92: =F92*(1-Elteq!$F$10) -> 1255.330283
A93: TECHNIK SPECIAL - AKCIA | B93: EPG 20 | D93: Elektrohydraulické lisovací kleště bateriové 35kN do průřezu 120mm2, Klauke EK35/4 | E93: 1ks | F93: 1208.011846 | G93: =F93*(1-Elteq!$F$10) -> 1208.011846
A94: TECHNIK SPECIAL - AKCIA | B94: HK 60 22 | D94: Hydraulické lisovací kleště do 300mm2 Klauke | E94: 1ks | F94: 1797.17277 | G94: =F94*(1-Elteq!$F$10) -> 1797.17277
A95: TECHNIK SPECIAL - AKCIA | B95: HP 60 CK | D95: Hydraulické lisovací kleště do 300mm2 vč. plastového kufru | E95: 1ks | F95: 915.9364782 | G95: =F95*(1-Elteq!$F$10) -> 915.9364782
A96: TECHNIK SPECIAL - AKCIA | B96: HT 131-C | D96: Hydraulické lisovací kleště do 300mm2 s hlavou typu "C" vč. plastového kufru | E96: 1ks | F96: 890.3288539 | G96: =F96*(1-Elteq!$F$10) -> 890.3288539
A97: TECHNIK SPECIAL - AKCIA | B97: HT 131LN-C | D97: Hydraulické lisovací kleště do 300mm2 s prodlouženou hlavou typu "C" vč. plastového kufru | E97: 1ks | F97: 1011.686726 | G97: =F97*(1-Elteq!$F$10) -> 1011.686726
A98: TECHNIK SPECIAL - AKCIA | B98: HT 131-UC | D98: Hydraulické lisovací kleště do 300mm2 s hlavou typu "U" vč. plastového kufru | E98: 1ks | F98: 1024.676101 | G98: =F98*(1-Elteq!$F$10) -> 1024.676101
A99: TECHNIK SPECIAL - AKCIA | B99: HT 45E | D99: Hydraulické lisovací kleště do 120mm2 vč. plastového kufru | E99: 1ks | F99: 452.7724892 | G99: =F99*(1-Elteq!$F$10) -> 452.7724892
A100: TECHNIK SPECIAL - AKCIA | B100: HT 51 | D100: Hydraulické lisovací kleště do 240mm2 vč. plastového kufru | E100: 1ks | F100: 601.7791732 | G100: =F100*(1-Elteq!$F$10) -> 601.7791732
A101: TECHNIK SPECIAL - AKCIA | B101: LKE1 | D101: Lisovací kleště elektromechanické na kabelové koncovky - vč. kufru, nabíječky a akku, bez čelistí | E101: 1sada | F101: 1204.300596 | G101: =F101*(1-Elteq!$F$10) -> 1204.300596 | H101: 8591735048617
A102: TECHNIK SPECIAL - AKCIA | B102: K 18 | D102: Mechanické lisovací kleště pro CU do 240mm2 a AL do 185mm2, bez kufru, bez čelistí (MHP6/185) | E102: 1ks | F102: 515.1214878 | G102: =F102*(1-Elteq!$F$10) -> 515.1214878 | H102: 8591735023898
A103: TECHNIK SPECIAL - AKCIA | B103: K 18 L | D103: Mechanické lisovací kleště pro CU do 240mm2 a AL do 185mm2 s kovovým kufrem, bez čelistí | E103: 1ks | F103: 370.3827412 | G103: =F103*(1-Elteq!$F$10) -> 370.3827412 | H103: 8591735055622
A104: TECHNIK SPECIAL - AKCIA | B104: K 22 | D104: Mechanické lisovací kleště pro CU do 300mm2 a AL do 240mm2, bez kufru, bez čelistí (MHP10/240) | E104: 1ks | F104: 718.4979829 | G104: =F104*(1-Elteq!$F$10) -> 718.4979829 | H104: 8591735023904
A105: TECHNIK SPECIAL - AKCIA | B105: K 22 L | D105: Mechanické lisovací kleště pro CU do 300mm2 a AL do 240mm s kovovým kufrem, bez čelistí | E105: 1ks | F105: 589.346486 | G105: =F105*(1-Elteq!$F$10) -> 589.346486 | H105: 8591735055639
A106: TECHNIK SPECIAL - AKCIA | B106: SK 18 | D106: Kovový kufr ke kleštím K 18 | E106: 1ks | F106: 152.7179339 | G106: =F106*(1-Elteq!$F$10) -> 152.7179339 | H106: 8591735025397
A107: TECHNIK SPECIAL - AKCIA | B107: SK 22 | D107: Kovový kufr ke kleštím K 22 | E107: 1ks | F107: 142.5119966 | G107: =F107*(1-Elteq!$F$10) -> 142.5119966 | H107: 8591735013172
A108: TECHNIK SPECIAL - AKCIA | B108: FP brašna | D108: Brašna s popruhem přes rameno, profesionální, vyztužená, pro nožní čerpadlo FP700 a hlavici TC120 | E108: 1ks | F108: 131.7493719 | G108: =F108*(1-Elteq!$F$10) -> 131.7493719
A109: TECHNIK SPECIAL - AKCIA | B109: TRS-B70 | D109: Ruksak na záda pro čerpadlo B70M-P24 | E109: 1ks | F109: 106.698435 | G109: =F109*(1-Elteq!$F$10) -> 106.698435
A110: TECHNIK SPECIAL - AKCIA | B110: TOOL SET 11 | D110: Sada nářadí pro zpracování VN kabelů TOOLSET 11 | E110: 1sada | F110: 1242.340908 | G110: =F110*(1-Elteq!$F$10) -> 1242.340908 | H110: 8591735052331
A111: TECHNIK SPECIAL - AKCIA | B111: TOOL SET 12 | D111: Sada nářadí pro zpracování VN kabelů TOOLSET 12 | E111: 1sada | F111: 1229.351533 | G111: =F111*(1-Elteq!$F$10) -> 1229.351533 | H111: 8591735052348
A112: TECHNIK SPECIAL - AKCIA | B112: AS 32 | D112: Elektrohydraulické nůžky do průměru 32mm | E112: 1ks | F112: 1238.444096 | G112: =F112*(1-Elteq!$F$10) -> 1238.444096
A113: TECHNIK SPECIAL - AKCIA | B113: AS 34 | D113: Elektrohydraulické nůžky do průměru 34mm | E113: 1ks | F113: 1335.864406 | G113: =F113*(1-Elteq!$F$10) -> 1335.864406
A114: TECHNIK SPECIAL - AKCIA | B114: AS 52 | D114: Elektrohydraulické nůžky do průměru 50mm | E114: 1ks | F114: 1157.538848 | G114: =F114*(1-Elteq!$F$10) -> 1157.538848
A115: TECHNIK SPECIAL - AKCIA | B115: BC 25 | D115: Elektrohydraulické nůžky do průměru 25mm | E115: 1ks | F115: 1665.60896 | G115: =F115*(1-Elteq!$F$10) -> 1665.60896
A116: TECHNIK SPECIAL - AKCIA | B116: BC 55 | D116: Elektrohydraulické nůžky do průměru 55mm, kufr, nabíječka, 1x akku 18V Li-Ion | E116: 1ks | F116: 2253.099821 | G116: =F116*(1-Elteq!$F$10) -> 2253.099821
A117: TECHNIK SPECIAL - AKCIA | B117: BC 85 | D117: Elektrohydraulické nůžky do průměru 85mm, kufr, nabíječka, 1x akku 18V Li-Ion | E117: 1ks | F117: 2698.449811 | G117: =F117*(1-Elteq!$F$10) -> 2698.449811
A118: TECHNIK SPECIAL - AKCIA | B118: BC 90 | D118: Elektrohydraulické nůžky do průměru 90mm, kufr, nabíječka, 1x akku 18V Li-Ion | E118: 1ks | F118: 3237.694423 | G118: =F118*(1-Elteq!$F$10) -> 3237.694423
A119: TECHNIK SPECIAL - AKCIA | B119: B-TC 026 | D119: Elektrohydraulické nůžky do průměru 24mm | E119: 1ks | F119: 1854.882706 | G119: =F119*(1-Elteq!$F$10) -> 1854.882706
A120: TECHNIK SPECIAL - AKCIA | B120: B-TC 04 | D120: Elektrohydraulické nůžky do průměru 40mm | E120: 1ks | F120: 2835.95162 | G120: =F120*(1-Elteq!$F$10) -> 2835.95162
A121: TECHNIK SPECIAL - AKCIA | B121: B-TC 051 | D121: Elektrohydraulické nůžky do průměru 50mm, kufr, nabíječka, 2x akku 14,4V Li-Ion | E121: 1ks | F121: 1999.621453 | G121: =F121*(1-Elteq!$F$10) -> 1999.621453
A122: TECHNIK SPECIAL - AKCIA | B122: B-TC 055 | D122: Elektrohydraulické nůžky do průměru 55mm, dvoupístové s rychloposuvem, kufr, nabíječka, 2 akku 14,4V | E122: 1ks | F122: 2914.815681 | G122: =F122*(1-Elteq!$F$10) -> 2914.815681
A123: TECHNIK SPECIAL - AKCIA | B123: B-TC 065 | D123: Elektrohydraulické nůžky do průměru 65mm, kufr, nabíječka, 2x akku 14,4V Li-Ion | E123: 1ks | F123: 2308.583008 | G123: =F123*(1-Elteq!$F$10) -> 2308.583008
A124: TECHNIK SPECIAL - AKCIA | B124: B-TC 095 | D124: Elektrohydraulické nůžky do průměru 95mm | E124: 1ks | F124: 2801.065871 | G124: =F124*(1-Elteq!$F$10) -> 2801.065871
A125: TECHNIK SPECIAL - AKCIA | B125: B-TC 650 | D125: Elektrohydraulické nůžky do průměru 65mm, kufr, nabíječka, 2x akku 18V | E125: 1ks | F125: 2624.224813 | G125: =F125*(1-Elteq!$F$10) -> 2624.224813
A126: TECHNIK SPECIAL - AKCIA | B126: HT-TC 026 | D126: Hydraulické nůžky do průměru 25mm na AL, Cu kabely a ALFe lana | E126: 1ks | F126: 827.4231678 | G126: =F126*(1-Elteq!$F$10) -> 827.4231678
A127: TECHNIK SPECIAL - AKCIA | B127: HT-TC 026 Y | D127: Hydraulické nůžky do průměru 25mm na AL, Cu kabely, ALFe a Fe lana | E127: 1ks | F127: 866.3912919 | G127: =F127*(1-Elteq!$F$10) -> 866.3912919
A128: TECHNIK SPECIAL - AKCIA | B128: HT-TC 041 | D128: Hydraulické nůžky do průměru 40mm na AL, Cu kabely a ALFe lana | E128: 1ks | F128: 1187.228847 | G128: =F128*(1-Elteq!$F$10) -> 1187.228847
A129: TECHNIK SPECIAL - AKCIA | B129: HT-TC 051 | D129: Hydraulické nůžky do průměru 50mm na AL a Cu kabely | E129: 1ks | F129: 919.8332907 | G129: =F129*(1-Elteq!$F$10) -> 919.8332907
A130: TECHNIK SPECIAL - AKCIA | B130: HT-TC 055 | D130: Hydraulické nůžky do průměru 55mm na AL a Cu kabely | E130: 1ks | F130: 1715.710834 | G130: =F130*(1-Elteq!$F$10) -> 1715.710834
A131: TECHNIK SPECIAL - AKCIA | B131: HT-TC 065 | D131: Hydraulické nůžky do průměru 65mm na AL a Cu kabely | E131: 1ks | F131: 1224.526908 | G131: =F131*(1-Elteq!$F$10) -> 1224.526908
A132: TECHNIK SPECIAL - AKCIA | B132: HT-TC 0851 | D132: Hydraulické nůžky do průměru 85mm na AL a Cu kabely vč. pouzdra | E132: 1ks | F132: 1357.946343 | G132: =F132*(1-Elteq!$F$10) -> 1357.946343
A133: TECHNIK SPECIAL - AKCIA | B133: KN 40 | D133: Hydraulická střihací hlavice do průměru 40mm | E133: 1ks | F133: 716.271233 | G133: =F133*(1-Elteq!$F$10) -> 716.271233
A134: =REPLACE(CELL("Filename",$A$1),1,FIND("]",CELL("filename",$A$1)),"") -> TECHNIK SPECIAL - AKCIA | B134: KN 65 | D134: Hydraulická střihací hlavice do průměru 65mm | E134: 1ks | F134: 703.4674208 | G134: =F134*(1-Elteq!$F$10) -> 703.4674208
A135: TECHNIK SPECIAL - AKCIA | B135: KN 85 | D135: Hydraulická střihací hlavice do průměru 85mm | E135: 1ks | F135: 864.3501045 | G135: =F135*(1-Elteq!$F$10) -> 864.3501045
A136: TECHNIK SPECIAL - AKCIA | B136: TC 025 | D136: Hydraulická střihací hlavice do průměru 25mm, na AL, Cu a ALFe (síla 50kN) | E136: 1ks | F136: 666.1693592 | G136: =F136*(1-Elteq!$F$10) -> 666.1693592
A137: TECHNIK SPECIAL - AKCIA | B137: TC 04 | D137: Hydraulická střihací hlavice do průměru 40mm, na AL, Cu a ALFe (síla 100kN) | E137: 1ks | F137: 848.7628548 | G137: =F137*(1-Elteq!$F$10) -> 848.7628548
A138: TECHNIK SPECIAL - AKCIA | B138: TC 045 | D138: Hydraulická střihací hlavice do průměru 45mm, na AL, Cu a ALFe (síla 60 kN) | E138: 1ks | F138: 688.4368586 | G138: =F138*(1-Elteq!$F$10) -> 688.4368586
A139: TECHNIK SPECIAL - AKCIA | B139: TC 050 | D139: Hydraulická střihací hlavice do průměru 50mm, na AL, Cu (síla 50kN) | E139: 1ks | F139: 700.6839834 | G139: =F139*(1-Elteq!$F$10) -> 700.6839834
A140: TECHNIK SPECIAL - AKCIA | B140: TC 055 | D140: Hydraulická střihací hlavice do průměru 55mm, na AL, Cu | E140: 1ks | F140: 1421.223154 | G140: =F140*(1-Elteq!$F$10) -> 1421.223154
A141: TECHNIK SPECIAL - AKCIA | B141: TC 085 | D141: Hydraulická střihací hlavice do průměru 85mm, na AL, Cu (síla 56kN) | E141: 1ks | F141: 1017.995851 | G141: =F141*(1-Elteq!$F$10) -> 1017.995851
A142: TECHNIK SPECIAL - AKCIA | B142: TC 096 | D142: Hydraulická střihací hlavice do průměru 96mm, na AL, Cu (síla 85kN) | E142: 1ks | F142: 1228.794846 | G142: =F142*(1-Elteq!$F$10) -> 1228.794846
A143: TECHNIK SPECIAL - AKCIA | B143: TC 120 | D143: Hydraulická střihací hlavice do průměru 120mm, na AL, Cu (síla 110kN) | E143: 1ks | F143: 1448.500841 | G143: =F143*(1-Elteq!$F$10) -> 1448.500841
A144: TECHNIK SPECIAL - AKCIA | B144: TC 120 kufr | D144: Kufr kovový pro střihací hlavici TC120 | E144: 1ks | F144: 106.8839975 | G144: =F144*(1-Elteq!$F$10) -> 106.8839975
A145: TECHNIK SPECIAL - AKCIA | B145: ALC/5,5 | D145: 03007 ALFRA razník s matricí do nůžek ALC na DIN lišty, kruhový otvor průměr 5,5mm | E145: 1ks | F145: 138.8007467 | G145: =F145*(1-Elteq!$F$10) -> 138.8007467
A146: TECHNIK SPECIAL - AKCIA | B146: ALC/6 | D146: 03008 ALFRA razník s matricí do nůžek ALC na DIN lišty, kruhový otvor průměr 6,0mm | E146: 1ks | F146: 138.8007467 | G146: =F146*(1-Elteq!$F$10) -> 138.8007467
A147: TECHNIK SPECIAL - AKCIA | B147: ALC/7 | D147: 03010 ALFRA razník s matricí do nůžek ALC na DIN lišty, kruhový otvor průměr 7,0mm | E147: 1ks | F147: 249.5815566 | G147: =F147*(1-Elteq!$F$10) -> 249.5815566
A148: TECHNIK SPECIAL - AKCIA | B148: ALC/PO 12x6,4 | D148: 03005 ALFRA razník s matricí do nůžek ALC na DIN lišty, podélný oválný otvor 12x6,4mm | E148: 1ks | F148: 139.1718717 | G148: =F148*(1-Elteq!$F$10) -> 139.1718717
A149: TECHNIK SPECIAL - AKCIA | B149: ALC/PR 12x6,4 | D149: 03006 ALFRA razník s matricí do nůžek ALC na DIN lišty, příčný oválný otvor 12x6,4mm | E149: 1ks | F149: 139.1718717 | G149: =F149*(1-Elteq!$F$10) -> 139.1718717
A150: TECHNIK SPECIAL - AKCIA | B150: ALC-02 | D150: 03004 ALFRA pákové nůžky na DIN lišty TS 35x7,5 / 35x15 / 15x5,5 / Cu 10x3mm | E150: 1ks | F150: 1574.312213 | G150: =F150*(1-Elteq!$F$10) -> 1574.312213
A151: TECHNIK SPECIAL - AKCIA | B151: ALC-H | D151: 03003 ALFRA hydraulické nůžky s děrováním na DIN lišty TS 35x7,5/35x15/15x5,5/profil 34x15/Cu10x3mm | E151: 1ks | F151: 2442.373567 | G151: =F151*(1-Elteq!$F$10) -> 2442.373567
A152: TECHNIK SPECIAL - AKCIA | B152: ALC-R1 AKCE | D152: 03001 ALFRA pákové nůžky s děrováním 12x6,4 na DIN lišty 35x7,5/35x15/15x5,5/C-profil 34x15/Cu10x3mm | E152: 1ks | F152: 2103.907575 | G152: =F152*(1-Elteq!$F$10) -> 2103.907575
A153: TECHNIK SPECIAL - AKCIA | B153: ALC-R2 | D153: 03002 ALFRA pákové nůžky s děrováním 5,5/6 na DIN lišty 35x7,5/35x15/15x5,5/C-profil 34x15/Cu 10x3mm | E153: 1ks | F153: 2103.907575 | G153: =F153*(1-Elteq!$F$10) -> 2103.907575
A154: TECHNIK SPECIAL - AKCIA | B154: DUO | D154: 03199 ALFRA pákové nůžky na DIN lišty TS 35x7,5 / 35x15mm | E154: 1ks | F154: 974.2031019 | G154: =F154*(1-Elteq!$F$10) -> 974.2031019
A155: TECHNIK SPECIAL - AKCIA | B155: RC 300 | D155: Pákové nůžky na DIN lišty TS 15x5,5 / 35x7,5 / 35x15mm | E155: 1ks | F155: 979.0277267 | G155: =F155*(1-Elteq!$F$10) -> 979.0277267 | H155: 8591735012670
A156: TECHNIK SPECIAL - AKCIA | B156: RC 500 | D156: Pákové nůžky s děrováním na DIN lišty NS 35x7,5 / 35x15 / 15 a 32 a NLS-CU 3x10mm | E156: 1ks | F156: 1653.732961 | G156: =F156*(1-Elteq!$F$10) -> 1653.732961 | H156: 8591735049768
A157: TECHNIK SPECIAL - AKCIA | B157: RC 500 L65 | D157: Děrovací razník k pákovým nůžkám RC500 pro otvor oválný 6,5x15mm | E157: 1ks | F157: 63.46237349 | G157: =F157*(1-Elteq!$F$10) -> 63.46237349 | H157: 8591735049799
A158: TECHNIK SPECIAL - AKCIA | B158: RC 500 R64 | D158: Děrovací razník k pákovým nůžkám RC500 pro otvor kruhový 6,4mm | E158: 1ks | F158: 63.46237349 | G158: =F158*(1-Elteq!$F$10) -> 63.46237349 | H158: 8591735049775
A159: TECHNIK SPECIAL - AKCIA | B159: RC 500 R84 | D159: Děrovací razník k pákovým nůžkám RC500 pro otvor kruhový 8,4mm | E159: 1ks | F159: 63.46237349 | G159: =F159*(1-Elteq!$F$10) -> 63.46237349 | H159: 8591735049782
A160: TECHNIK SPECIAL - AKCIA | B160: VKS 125 | D160: 03191 pákové nůžky na kabelové kanály do šíře 125mm (DC 125) | E160: 1ks | F160: 922.2456031 | G160: =F160*(1-Elteq!$F$10) -> 922.2456031 | H160: 8591735013189
A161: TECHNIK SPECIAL - AKCIA | B161: VKS 125 břit | D161: Náhradní břit k nůžkám VKS 125 | E161: 1ks | F161: 127.666997 | G161: =F161*(1-Elteq!$F$10) -> 127.666997 | H161: 8591735013196
A162: TECHNIK SPECIAL - AKCIA | B162: VKS 125 džák | D162: Náhradní držák břitu k nůžkám VKS 125 | E162: 1ks | F162: 25.60762439 | G162: =F162*(1-Elteq!$F$10) -> 25.60762439 | H162: 8591735051884
A163: TECHNIK SPECIAL - AKCIA | B163: LK330 | D163: Elektronický popisovač bužírek L-MARK připojitelný k PC přes USB port, vč. kufru a SW pro Vista + XP | E163: 1ks | F163: 593.4288609 | G163: =F163*(1-Elteq!$F$10) -> 593.4288609 | H163: 8591735040574
A164: TECHNIK SPECIAL - AKCIA | B164: LK330 nůž | D164: Náhradní střihací nůž pro tiskárnu L-MARK model LK-330 | E164: 1ks | F164: 18.18512457 | G164: =F164*(1-Elteq!$F$10) -> 18.18512457 | H164: 8591735048662
A165: TECHNIK SPECIAL - AKCIA | B165: M-1 Pro IV + kufr | D165: MK2500 elektronický popisovač bužírek CANON připojitelný k PC přes USB port, vč. kufru a SW | E165: 1ks | F165: 1302.648719 | G165: =F165*(1-Elteq!$F$10) -> 1302.648719 | H165: 8591735046866
A166: TECHNIK SPECIAL - AKCIA | B166: M-1 Std III + kufr | D166: MK1500 elektronický popisovač bužírek a samolepicích pásek CANON vč. kufru a příslušenství | E166: 1ks | F166: 749.6724822 | G166: =F166*(1-Elteq!$F$10) -> 749.6724822 | H166: 8591735047016
A167: TECHNIK SPECIAL - AKCIA | B167: M-1 adaptér 230V | D167: Síťový sdaptér 230V pro tiskárny bužírek CANON M-1 | E167: 1ks | F167: 68.28699838 | G167: =F167*(1-Elteq!$F$10) -> 68.28699838 | H167: 8591735040178
A168: TECHNIK SPECIAL - AKCIA | B168: M-1 čistící sada | D168: 3476A043 náhradní čistící sada pro navádění bužírky (molitanová vložka v plastovém dílu) | E168: 1ks | F168: 10.02037476 | G168: =F168*(1-Elteq!$F$10) -> 10.02037476 | H168: 8591735020385
A169: TECHNIK SPECIAL - AKCIA | B169: M-1 čistící sada 2 | D169: 3476A078 náhradní čistící sada pro navádění štítků (molitanová vložka v plastovém dílu) | E169: 1ks | F169: 29.87556179 | G169: =F169*(1-Elteq!$F$10) -> 29.87556179
A170: TECHNIK SPECIAL - AKCIA | B170: M-1 čistící sada 3 | D170: 3476A071 náhradní čistící sada pro předehřívání bužírky (molitanová vložka v plastovém dílu) | E170: 1ks | F170: 39.33924907 | G170: =F170*(1-Elteq!$F$10) -> 39.33924907
A171: TECHNIK SPECIAL - AKCIA | B171: M-1 deska OBM | D171: 3471A032 vodící deska pro připojení obmotávací pásky | E171: 1ks | F171: 43.97831146 | G171: =F171*(1-Elteq!$F$10) -> 43.97831146
A172: TECHNIK SPECIAL - AKCIA | B172: M-1 kufr AL | D172: 4013B001 hliníkový kufr pro bezpečnou manipulaci a uložení tiskáren CANON M1 | E172: 1ks | F172: 98.34812266 | G172: =F172*(1-Elteq!$F$10) -> 98.34812266
A173: TECHNIK SPECIAL - AKCIA | B173: M-1 navádění | D173: 3476A046 adaptér pro navádění bužírky | E173: 1ks | F173: 23.56643694 | G173: =F173*(1-Elteq!$F$10) -> 23.56643694 | H173: 8591735020408
A174: TECHNIK SPECIAL - AKCIA | B174: M-1 navádění 2 | D174: 3471A033 adaptér pro navádění pásku | E174: 1ks | F174: 172.7586834 | G174: =F174*(1-Elteq!$F$10) -> 172.7586834
A175: TECHNIK SPECIAL - AKCIA | B175: M-1 nůž | D175: 3476A042 náhradní dvoudílná sada nože pro přístroje M-1 (TM-CT03) | E175: 1sada | F175: 20.78299951 | G175: =F175*(1-Elteq!$F$10) -> 20.78299951 | H175: 8591735020477
A176: TECHNIK SPECIAL - AKCIA | B176: M-1 odvíjení | D176: Otočná podložka pro automatické a plynulé odvíjení bužírky z cívky | E176: 1ks | F176: 25.2364994 | G176: =F176*(1-Elteq!$F$10) -> 25.2364994 | H176: 8591735051389
A177: TECHNIK SPECIAL - AKCIA | B177: M-1 podávání | D177: 3471A027 zařízení pro podávání bužírky v metráži pro tiskárny M-1 | E177: 1ks | F177: 523.6573626 | G177: =F177*(1-Elteq!$F$10) -> 523.6573626
A178: TECHNIK SPECIAL - AKCIA | B178: M-1 předehřívání | D178: 3471A026 zařízení pro předehřívání bužírky v metráži pro tiskárny M-1 | E178: 1ks | F178: 314.3428675 | G178: =F178*(1-Elteq!$F$10) -> 314.3428675 | H178: 8591735047252
A179: TECHNIK SPECIAL - AKCIA | B179: M-3E | D179: Elektrický potiskovač kabelů HOTMARKER, 7 znaků 2,4x2,4mm vč. transformátoru, pásky a kufru | E179: 1ks | F179: 2045.269826 | G179: =F179*(1-Elteq!$F$10) -> 2045.269826 | H179: 8591735038717
A180: TECHNIK SPECIAL - AKCIA | B180: M-3E razník | D180: Tiskové kolečko se znaky k tiskovým kleštím HOTMARKER M-3E | E180: 1ks | F180: 134.7183718 | G180: =F180*(1-Elteq!$F$10) -> 134.7183718 | H180: 8591735038731
A181: TECHNIK SPECIAL - AKCIA | B181: S700E | D181: Elektronický popisovač bužírek připojitelný k PC přes USB port, vč. kufru a SW pro Win7 + Vista + XP | E181: 1ks | F181: 593.4288609 | G181: =F181*(1-Elteq!$F$10) -> 593.4288609 | H181: 8591735038021
A182: TECHNIK SPECIAL - AKCIA | B182: TP76E | D182: Elektronický popisovač bužírek připojitelný k PC přes USB port, vč. kufru a SW | E182: 1ks | F182: 701.4262333 | G182: =F182*(1-Elteq!$F$10) -> 701.4262333
A183: TECHNIK SPECIAL - AKCIA | B183: TP80E | D183: Elektronický popisovač bužírek připojitelný k PC přes USB port, vč. kufru a SW | E183: 1ks | F183: 798.289856 | G183: =F183*(1-Elteq!$F$10) -> 798.289856
A184: TECHNIK SPECIAL - AKCIA | B184: SANITA 28,3 KPL | D184: 01293 ALFRA prostřihovací čelisti průměr 28,3mm pro sanitární techniku, vč. šroubu M10x1 | E184: 1sada | F184: 24.30868692 | G184: =F184*(1-Elteq!$F$10) -> 24.30868692
A185: TECHNIK SPECIAL - AKCIA | B185: SANITA 28/32 KPL | D185: 01456 ALFRA prostřihovací čelisti oboustranné 28/32mm pro sanitární techniku, vč. šroubu 10x55mm | E185: 1sada | F185: 42.86493648 | G185: =F185*(1-Elteq!$F$10) -> 42.86493648
A186: TECHNIK SPECIAL - AKCIA | B186: SANITA 31,7 KPL | D186: 01294 ALFRA prostřihovací čelisti průměr 31,7mm pro sanitární techniku, vč. šroubu M10x1 | E186: 1sada | F186: 23.56643694 | G186: =F186*(1-Elteq!$F$10) -> 23.56643694
A187: TECHNIK SPECIAL - AKCIA | B187: SANITA 35,0 KPL | D187: 01295 ALFRA prostřihovací čelisti průměr 35,0mm pro sanitární techniku, vč. šroubu M10x1 | E187: 1sada | F187: 28.57662432 | G187: =F187*(1-Elteq!$F$10) -> 28.57662432
A188: TECHNIK SPECIAL - AKCIA | B188: SANITA SET | D188: 01450 ALFRA sada prostřihovacích čelistí průměr 28,3/31,7/35,0mm pro sanitární techniku | E188: 1sada | F188: 97.0491852 | G188: =F188*(1-Elteq!$F$10) -> 97.0491852
A189: TECHNIK SPECIAL - AKCIA | B189: SANITA ŠROUB 10x55 | D189: 01457 ALFRA náhradní šroub 10x55 speciál pro sanitární techniku | E189: 1ks | F189: 8.350312302 | G189: =F189*(1-Elteq!$F$10) -> 8.350312302
A190: TECHNIK SPECIAL - AKCIA | B190: SANITA ŠROUB M10x1 | D190: 01299 ALFRA náhradní šroub M10x1 pro sanitární techniku | E190: 1ks | F190: 3.154562425 | G190: =F190*(1-Elteq!$F$10) -> 3.154562425
A191: TECHNIK SPECIAL - AKCIA | B191: P 19,0x 19,0 | D191: 01302 ALFRA prostřihovací čelist - komplet vč. šroubu | E191: 1sada | F191: 175.1709958 | G191: =F191*(1-Elteq!$F$10) -> 175.1709958 | H191: 8591735048778
A192: TECHNIK SPECIAL - AKCIA | B192: P 22,0x 42,0 | D192: 01320 ALFRA prostřihovací čelist - komplet vč. šroubu | E192: 1sada | F192: 256.4473689 | G192: =F192*(1-Elteq!$F$10) -> 256.4473689 | H192: 8591735049430
A193: TECHNIK SPECIAL - AKCIA | B193: P 22,2x 22,2 | D193: 01303 ALFRA prostřihovací čelist - komplet vč. šroubu | E193: 1sada | F193: 185.1913706 | G193: =F193*(1-Elteq!$F$10) -> 185.1913706 | H193: 8591735041403
A194: TECHNIK SPECIAL - AKCIA | B194: P 25,4x 25,4 | D194: 01304 ALFRA prostřihovací čelist - komplet vč. šroubu | E194: 1sada | F194: 195.2117454 | G194: =F194*(1-Elteq!$F$10) -> 195.2117454
A195: TECHNIK SPECIAL - AKCIA | B195: P 36,0x 52,0 | D195: 01325 ALFRA prostřihovací čelist - komplet vč. šroubu | E195: 1sada | F195: 582.2951112 | G195: =F195*(1-Elteq!$F$10) -> 582.2951112
A196: TECHNIK SPECIAL - AKCIA | B196: P 36,0x 65,0 | D196: 01326 ALFRA prostřihovací čelist - komplet vč. šroubu | E196: 1sada | F196: 640.1906098 | G196: =F196*(1-Elteq!$F$10) -> 640.1906098
A197: TECHNIK SPECIAL - AKCIA | B197: P 36,0x 86,0 | D197: 01327 ALFRA prostřihovací čelist - komplet vč. šroubu | E197: 1sada | F197: 719.2402329 | G197: =F197*(1-Elteq!$F$10) -> 719.2402329
A198: =REPLACE(CELL("Filename",$A$1),1,FIND("]",CELL("filename",$A$1)),"") -> TECHNIK SPECIAL - AKCIA | B198: P 45,0x 45,0 | D198: Prostřihovací čelist - komplet vč. šroubu | E198: 1sada | F198: 510.6679879 | G198: =F198*(1-Elteq!$F$10) -> 510.6679879
A199: TECHNIK SPECIAL - AKCIA | B199: P 45,0x 92,0 | D199: 01314 ALFRA prostřihovací čelist - komplet vč. šroubu pro hydraulické prostříhávání | E199: 1sada | F199: 782.7026064 | G199: =F199*(1-Elteq!$F$10) -> 782.7026064
A200: TECHNIK SPECIAL - AKCIA | B200: P 45,5x 45,5 | D200: 01313 ALFRA prostřihovací čelist - komplet vč. šroubu pro hydraulické prostříhávání | E200: 1sada | F200: 504.358863 | G200: =F200*(1-Elteq!$F$10) -> 504.358863
A201: TECHNIK SPECIAL - AKCIA | B201: P 46,0x 46,0 | D201: 01305 ALFRA prostřihovací čelist - komplet vč. šroubu pro hydraulické prostříhávání | E201: 1sada | F201: 490.6272383 | G201: =F201*(1-Elteq!$F$10) -> 490.6272383
A202: TECHNIK SPECIAL - AKCIA | B202: P 46,0x 92,0 | D202: 01329 ALFRA prostřihovací čelist - komplet vč. šroubu pro hydraulické prostříhávání | E202: 1sada | F202: 781.2181064 | G202: =F202*(1-Elteq!$F$10) -> 781.2181064
A203: TECHNIK SPECIAL - AKCIA | B203: P 68,0x 68,0 | D203: 01308 ALFRA prostřihovací čelist - komplet vč. šroubu pro hydraulické prostříhávání | E203: 1sada | F203: 695.4882335 | G203: =F203*(1-Elteq!$F$10) -> 695.4882335
... 6159 more rows

Sheet List (hidden)
A1: Sheet name | B1: Prod
A2: ANAMET-M | B2: 432310
A3: ANAMET-M | B3: 555810
A4: ANAMET-M | B4: 559730
A5: ANAMET-M | B5: 559830
A6: ANAMET-M | B6: 572610
A7: ANAMET-M | B7: 594010
A8: ANAMET-S | B8: 1070102
A9: ANAMET-S | B9: 1070122
A10: ANAMET-S | B10: 1070162
A11: ANAMET-S | B11: 1070202
A12: ANAMET-S | B12: 1070262
A13: ANAMET-S | B13: 1070352
A14: ANAMET-S | B14: 1077102
A15: ANAMET-S | B15: 1077122
A16: ANAMET-S | B16: 1077162
A17: ANAMET-S | B17: 1077202
A18: ANAMET-S | B18: 1077262
A19: ANAMET-S | B19: 1077352
A20: ANAMET-S | B20: 1077402
A21: ANAMET-S | B21: 1077502
A22: ANAMET-M | B22: 2227031
A23: ANAMET-M | B23: 2560120
A24: ANAMET-M | B24: 2560150
A25: ANAMET-M | B25: 2560160
A26: ANAMET-M | B26: 2560170
A27: ANAMET-M | B27: 2560200
A28: ANAMET-M | B28: 2560250
A29: ANAMET-M | B29: 2560320
A30: ANAMET-S | B30: 2560400
A31: ANAMET-S | B31: 2560500
A32: ANAMET-S | B32: 2560600
A33: ANAMET-M | B33: 2561120
A34: ANAMET-M | B34: 2561150
A35: ANAMET-M | B35: 2561160
A36: ANAMET-M | B36: 2561170
A37: ANAMET-M | B37: 2561200
A38: ANAMET-M | B38: 2561250
A39: ANAMET-M | B39: 2561320
A40: ANAMET-S | B40: 2561400
A41: ANAMET-S | B41: 2561500
A42: ANAMET-S | B42: 2561600
A43: ANAMET-M | B43: 2601100
A44: ANAMET-M | B44: 2601110
A45: ANAMET-M | B45: 2601120
A46: ANAMET-M | B46: 2601150
A47: ANAMET-M | B47: 2601160
A48: ANAMET-M | B48: 2601170
A49: ANAMET-M | B49: 2601180
A50: ANAMET-M | B50: 2601200
A51: ANAMET-M | B51: 2601250
A52: ANAMET-M | B52: 2601320
A53: ANAMET-S | B53: 2601400
A54: ANAMET-S | B54: 2601500
A55: ANAMET-S | B55: 2601600
A56: ANAMET-M | B56: 2602070
A57: ANAMET-M | B57: 2602090
A58: ANAMET-M | B58: 2602110
A59: ANAMET-M | B59: 2602130
A60: ANAMET-M | B60: 2602160
A61: ANAMET-M | B61: 2602210
A62: ANAMET-M | B62: 2602290
A63: ANAMET-S | B63: 2602360
A64: ANAMET-S | B64: 2602480
A65: ANAMET-M | B65: 2603110
A66: ANAMET-M | B66: 2603120
A67: ANAMET-M | B67: 2603160
A68: ANAMET-M | B68: 2603170
A69: ANAMET-M | B69: 2603200
A70: ANAMET-M | B70: 2603250
A71: ANAMET-M | B71: 2603320
A72: ANAMET-S | B72: 2603400
A73: ANAMET-S | B73: 2603500
A74: ANAMET-M | B74: 2605070
A75: ANAMET-M | B75: 2605090
A76: ANAMET-M | B76: 2605120
A77: ANAMET-M | B77: 2605130
A78: ANAMET-M | B78: 2611100
A79: ANAMET-M | B79: 2611110
A80: ANAMET-M | B80: 2611120
A81: ANAMET-M | B81: 2611150
A82: ANAMET-M | B82: 2611160
A83: ANAMET-M | B83: 2611170
A84: ANAMET-M | B84: 2611180
A85: ANAMET-M | B85: 2611200
A86: ANAMET-M | B86: 2611250
A87: ANAMET-M | B87: 2611320
A88: ANAMET-S | B88: 2611400
A89: ANAMET-S | B89: 2611500
A90: ANAMET-S | B90: 2611600
A91: ANAMET-M | B91: 2612070
A92: ANAMET-M | B92: 2612090
A93: ANAMET-M | B93: 2612110
A94: ANAMET-M | B94: 2612130
A95: ANAMET-M | B95: 2612160
A96: ANAMET-M | B96: 2612210
A97: ANAMET-M | B97: 2612290
A98: ANAMET-S | B98: 2612360
A99: ANAMET-S | B99: 2612480
A100: ANAMET-M | B100: 2615070
A101: ANAMET-M | B101: 2615090
A102: ANAMET-M | B102: 2615120
A103: ANAMET-M | B103: 2615130
A104: ANAMET-M | B104: 2622100
A105: ANAMET-M | B105: 2622120
A106: ANAMET-M | B106: 2622160
A107: ANAMET-M | B107: 2622180
A108: ANAMET-M | B108: 2622200
A109: ANAMET-M | B109: 2622250
A110: ANAMET-M | B110: 2622320
A111: ANAMET-S | B111: 2622400
A112: ANAMET-S | B112: 2622500
A113: ANAMET-M | B113: 2630160
A114: ANAMET-M | B114: 2630200
A115: ANAMET-M | B115: 2630250
A116: ANAMET-M | B116: 2630320
A117: ANAMET-M | B117: 2631160
A118: ANAMET-M | B118: 2631200
A119: ANAMET-M | B119: 2631250
A120: ANAMET-M | B120: 2631320
A121: ANAMET-M | B121: 2633120
A122: ANAMET-M | B122: 2633160
A123: ANAMET-M | B123: 2633200
A124: ANAMET-M | B124: 2633260
A125: ANAMET-M | B125: 2633350
A126: ANAMET-M | B126: 2633400
A127: ANAMET-M | B127: 2633500
A128: ANAMET-M | B128: 2634120
A129: ANAMET-M | B129: 2634160
A130: ANAMET-M | B130: 2634200
A131: ANAMET-M | B131: 2634260
A132: ANAMET-M | B132: 2634350
A133: ANAMET-M | B133: 2634400
A134: ANAMET-M | B134: 2634500
A135: ANAMET-M | B135: 2641100
A136: ANAMET-M | B136: 2641120
A137: ANAMET-M | B137: 2641160
A138: ANAMET-M | B138: 2641180
A139: ANAMET-M | B139: 2641200
A140: ANAMET-M | B140: 2641250
A141: ANAMET-M | B141: 2641320
A142: ANAMET-S | B142: 2641400
A143: ANAMET-S | B143: 2641500
A144: ANAMET-M | B144: 2651160
A145: ANAMET-M | B145: 2651161
A146: ANAMET-M | B146: 2651200
A147: ANAMET-M | B147: 2651201
A148: ANAMET-M | B148: 2651250
A149: ANAMET-M | B149: 2651251
A150: ANAMET-M | B150: 2651320
A151: ANAMET-M | B151: 2651400
A152: ANAMET-M | B152: 2651500
A153: ANAMET-M | B153: 2651630
A154: ANAMET-M | B154: 2653160
A155: ANAMET-M | B155: 2653161
A156: ANAMET-M | B156: 2653200
A157: ANAMET-M | B157: 2653201
A158: ANAMET-M | B158: 2653250
A159: ANAMET-M | B159: 2653251
A160: ANAMET-M | B160: 2653320
A161: ANAMET-M | B161: 2653400
A162: ANAMET-M | B162: 2653501
A163: ANAMET-M | B163: 2653630
A164: ANAMET-M | B164: 2655090
A165: ANAMET-M | B165: 2655110
A166: ANAMET-M | B166: 2655131
A167: ANAMET-M | B167: 2655160
A168: ANAMET-M | B168: 2655210
A169: ANAMET-M | B169: 2655290
A170: ANAMET-M | B170: 2655360
A171: ANAMET-M | B171: 2655480
A172: ANAMET-M | B172: 2657090
A173: ANAMET-M | B173: 2657110
A174: ANAMET-M | B174: 2657130
A175: ANAMET-M | B175: 2657160
A176: ANAMET-M | B176: 2657210
A177: ANAMET-M | B177: 2657290
A178: ANAMET-M | B178: 2657360
A179: ANAMET-M | B179: 2657480
A180: ANAMET-M | B180: 2661090
A181: ANAMET-M | B181: 2661110
A182: ANAMET-M | B182: 2661150
A183: ANAMET-M | B183: 2661160
A184: ANAMET-M | B184: 2661210
A185: ANAMET-M | B185: 2661290
A186: ANAMET-M | B186: 2661360
A187: ANAMET-M | B187: 2661420
A188: ANAMET-M | B188: 2661480
A189: ANAMET-M | B189: 2662070
A190: ANAMET-M | B190: 2662090
A191: ANAMET-M | B191: 2662110
A192: ANAMET-M | B192: 2662160
A193: ANAMET-M | B193: 2662210
A194: ANAMET-M | B194: 2662290
A195: ANAMET-M | B195: 2662360
A196: ANAMET-M | B196: 2662420
A197: ANAMET-M | B197: 2664160
A198: ANAMET-M | B198: 2664200
A199: ANAMET-M | B199: 2664250
A200: ANAMET-M | B200: 2664320
... 14098 more rows
